Workbook

Sheet Totals (hidden)
B1: 1 | C1: =IF('Page 1A'!B7="","LINE DESCRIPTION?",'Page 1A'!B7) -> Line Producer | D1: =SUMIF(PAYROLLLINE,B1:B50,PAYROLLAMOUNT) -> 0 | E1: =IF(D1:D50=0,0,SUMIF(PAYROLLLINE,B1:B50,PAYROLLST)/D1:D50) -> 0 | F1: =SUMIF(PAYROLLLINE,B1:B50,PAYROLLOTHRS) -> 0 | G1: =SUMIF(PAYROLLLINE,B1:B50,PAYROLLST) -> 0 | H1: =SUMIF(PAYROLLLINE,B1:B50,PAYROLLOT) -> 0 | I1: =SUMIF(PAYROLLLINE,B1:B50,PAYROLLMISCT)+SUMIF(PAYROLLLINE,B1:B50,PAYROLLMISCNT) -> 0 | J1: =SUMIF(POLINE,B1:B50,POACTUAL)-SUMIF(REFUNDSLINE,B1:B50,REFUNDSACTUAL)+SUMIF(PCLINE,B1:B50,PCACTUAL) -> 0 | K1: =SUMIF(POLINE,B1:B50,POACTUAL)-SUMIF(REFUNDSLINE,B1:B50,REFUNDSACTUAL)+SUMIF(PAYROLLLINE,B1:B50,PAYROLLACTUAL)+SUMIF(PCLINE,B1:B50,PCACTUAL) -> 0 | S1: Record Label:
B2: 2 | C2: =IF('Page 1A'!B8="","LINE DESCRIPTION?",'Page 1A'!B8) -> Assistant Director | D2: 0 | E2: 0 | F2: 0 | G2: 0 | H2: 0 | I2: 0 | J2: 0 | K2: 0 | S2: Address:
B3: 3 | C3: =IF('Page 1A'!B9="","LINE DESCRIPTION?",'Page 1A'!B9) -> Director of Photography | D3: 0 | E3: 0 | F3: 0 | G3: 0 | H3: 0 | I3: 0 | J3: 0 | K3: 0
B4: 4 | C4: =IF('Page 1A'!B10="","LINE DESCRIPTION?",'Page 1A'!B10) -> Camera Operator | D4: 0 | E4: 0 | F4: 0 | G4: 0 | H4: 0 | I4: 0 | J4: 0 | K4: 0 | S4: Telephone:
B5: 5 | C5: =IF('Page 1A'!B11="","LINE DESCRIPTION?",'Page 1A'!B11) -> 1st Camera Assistant | D5: 0 | E5: 0 | F5: 0 | G5: 0 | H5: 0 | I5: 0 | J5: 0 | K5: 0 | S5: Fax:
B6: 6 | C6: =IF('Page 1A'!B12="","LINE DESCRIPTION?",'Page 1A'!B12) -> 2nd AC | D6: 0 | E6: 0 | F6: 0 | G6: 0 | H6: 0 | I6: 0 | J6: 0 | K6: 0 | S6: Contacts:
B7: 7 | C7: =IF('Page 1A'!B13="","LINE DESCRIPTION?",'Page 1A'!B13) -> Loader | D7: 0 | E7: 0 | F7: 0 | G7: 0 | H7: 0 | I7: 0 | J7: 0 | K7: 0
B8: 8 | C8: =IF('Page 1A'!B14="","LINE DESCRIPTION?",'Page 1A'!B14) -> Production Manager | D8: 0 | E8: 0 | F8: 0 | G8: 0 | H8: 0 | I8: 0 | J8: 0 | K8: 0 | S8: Artist:
B9: 9 | C9: =IF('Page 1A'!B15="","LINE DESCRIPTION?",'Page 1A'!B15) -> Production Coordinator | D9: 0 | E9: 0 | F9: 0 | G9: 0 | H9: 0 | I9: 0 | J9: 0 | K9: 0 | S9: Track(s):
B10: 10 | C10: =IF('Page 1A'!B16="","LINE DESCRIPTION?",'Page 1A'!B16) -> 2nd AD | D10: 0 | E10: 0 | F10: 0 | G10: 0 | H10: 0 | I10: 0 | J10: 0 | K10: 0
B11: 11 | C11: =IF('Page 1A'!B17="","LINE DESCRIPTION?",'Page 1A'!B17) -> Gaffer | D11: 0 | E11: 0 | F11: 0 | G11: 0 | H11: 0 | I11: 0 | J11: 0 | K11: 0 | S11: Management:
B12: 12 | C12: =IF('Page 1A'!B18="","LINE DESCRIPTION?",'Page 1A'!B18) -> Best Boy Electric | D12: 0 | E12: 0 | F12: 0 | G12: 0 | H12: 0 | I12: 0 | J12: 0 | K12: 0 | S12: Address:
B13: 13 | C13: =IF('Page 1A'!B19="","LINE DESCRIPTION?",'Page 1A'!B19) -> Electric | D13: 0 | E13: 0 | F13: 0 | G13: 0 | H13: 0 | I13: 0 | J13: 0 | K13: 0
B14: 14 | C14: =IF('Page 1A'!B20="","LINE DESCRIPTION?",'Page 1A'!B20) -> Electric Driver | D14: 0 | E14: 0 | F14: 0 | G14: 0 | H14: 0 | I14: 0 | J14: 0 | K14: 0 | S14: Telephone:
B15: 15 | C15: =IF('Page 1A'!B21="","LINE DESCRIPTION?",'Page 1A'!B21) -> Rigger | D15: 0 | E15: 0 | F15: 0 | G15: 0 | H15: 0 | I15: 0 | J15: 0 | K15: 0 | S15: Fax:
B16: 16 | C16: =IF('Page 1A'!B22="","LINE DESCRIPTION?",'Page 1A'!B22) -> Key Grip | D16: 0 | E16: 0 | F16: 0 | G16: 0 | H16: 0 | I16: 0 | J16: 0 | K16: 0 | S16: Contacts:
B17: 17 | C17: =IF('Page 1A'!B23="","LINE DESCRIPTION?",'Page 1A'!B23) -> Best Boy Grip | D17: 0 | E17: 0 | F17: 0 | G17: 0 | H17: 0 | I17: 0 | J17: 0 | K17: 0 | S17: Delivery Date:
B18: 18 | C18: =IF('Page 1A'!B24="","LINE DESCRIPTION?",'Page 1A'!B24) -> Grip | D18: 0 | E18: 0 | F18: 0 | G18: 0 | H18: 0 | I18: 0 | J18: 0 | K18: 0 | S18: Shoot Date(s): | Y18: Delivery Format: | AA18: Delivery Format:
B19: 19 | C19: =IF('Page 1A'!B25="","LINE DESCRIPTION?",'Page 1A'!B25) -> Grip Driver | D19: 0 | E19: 0 | F19: 0 | G19: 0 | H19: 0 | I19: 0 | J19: 0 | K19: 0
B20: 20 | C20: =IF('Page 1A'!B26="","LINE DESCRIPTION?",'Page 1A'!B26) -> Mixer | D20: 0 | E20: 0 | F20: 0 | G20: 0 | H20: 0 | I20: 0 | J20: 0 | K20: 0 | S20: Agency:
B21: 21 | C21: =IF('Page 1A'!B27="","LINE DESCRIPTION?",'Page 1A'!B27) -> Boom Man | D21: 0 | E21: 0 | F21: 0 | G21: 0 | H21: 0 | I21: 0 | J21: 0 | K21: 0 | S21: Address:
B22: 22 | C22: =IF('Page 1A'!B28="","LINE DESCRIPTION?",'Page 1A'!B28) -> Playback | D22: 0 | E22: 0 | F22: 0 | G22: 0 | H22: 0 | I22: 0 | J22: 0 | K22: 0
B23: 23 | C23: =IF('Page 1A'!B29="","LINE DESCRIPTION?",'Page 1A'!B29) -> Make-up | D23: 0 | E23: 0 | F23: 0 | G23: 0 | H23: 0 | I23: 0 | J23: 0 | K23: 0 | S23: Telephone:
B24: 24 | C24: =IF('Page 1A'!B30="","LINE DESCRIPTION?",'Page 1A'!B30) -> Hair Stylist | D24: 0 | E24: 0 | F24: 0 | G24: 0 | H24: 0 | I24: 0 | J24: 0 | K24: 0 | S24: Fax:
B25: 25 | C25: =IF('Page 1A'!B31="","LINE DESCRIPTION?",'Page 1A'!B31) -> Make-up/Hair Assts. | D25: 0 | E25: 0 | F25: 0 | G25: 0 | H25: 0 | I25: 0 | J25: 0 | K25: 0 | S25: Agency Prod:
B26: 26 | C26: =IF('Page 1A'!B32="","LINE DESCRIPTION?",'Page 1A'!B32) -> Stylist | D26: 0 | E26: 0 | F26: 0 | G26: 0 | H26: 0 | I26: 0 | J26: 0 | K26: 0 | S26: Agency Art Dir:
B27: 27 | C27: =IF('Page 1A'!B33="","LINE DESCRIPTION?",'Page 1A'!B33) -> Wardrobe | D27: 0 | E27: 0 | F27: 0 | G27: 0 | H27: 0 | I27: 0 | J27: 0 | K27: 0 | S27: Agency Writer:
B28: 28 | C28: =IF('Page 1A'!B34="","LINE DESCRIPTION?",'Page 1A'!B34) -> Script Supervisor | D28: 0 | E28: 0 | F28: 0 | G28: 0 | H28: 0 | I28: 0 | J28: 0 | K28: 0 | S28: Agency Bus Mgr:
B29: 29 | C29: =IF('Page 1A'!B35="","LINE DESCRIPTION?",'Page 1A'!B35) -> Home Economist | D29: 0 | E29: 0 | F29: 0 | G29: 0 | H29: 0 | I29: 0 | J29: 0 | K29: 0 | S29: Client:
B30: 30 | C30: =IF('Page 1A'!B36="","LINE DESCRIPTION?",'Page 1A'!B36) -> Asst. Home Economist | D30: 0 | E30: 0 | F30: 0 | G30: 0 | H30: 0 | I30: 0 | J30: 0 | K30: 0 | S30: Product:
B31: 31 | C31: =IF('Page 1A'!B37="","LINE DESCRIPTION?",'Page 1A'!B37) -> VTR Operator | D31: 0 | E31: 0 | F31: 0 | G31: 0 | H31: 0 | I31: 0 | J31: 0 | K31: 0 | S31: Bid Name:
B32: 32 | C32: =IF('Page 1A'!B38="","LINE DESCRIPTION?",'Page 1A'!B38) -> Effects | D32: 0 | E32: 0 | F32: 0 | G32: 0 | H32: 0 | I32: 0 | J32: 0 | K32: 0 | S32: Commercial Title | Y32: Code | Z32: Length | AA32: Code | AB32: Length
B33: 33 | C33: =IF('Page 1A'!B39="","LINE DESCRIPTION?",'Page 1A'!B39) -> FX Assistant | D33: 0 | E33: 0 | F33: 0 | G33: 0 | H33: 0 | I33: 0 | J33: 0 | K33: 0 | R33: ="1." -> 1.
B34: 34 | C34: =IF('Page 1A'!B40="","LINE DESCRIPTION?",'Page 1A'!B40) -> 2nd 2nd AD | D34: 0 | E34: 0 | F34: 0 | G34: 0 | H34: 0 | I34: 0 | J34: 0 | K34: 0 | R34: ="2." -> 2.
B35: 35 | C35: =IF('Page 1A'!B41="","LINE DESCRIPTION?",'Page 1A'!B41) -> Camera Car Driver | D35: 0 | E35: 0 | F35: 0 | G35: 0 | H35: 0 | I35: 0 | J35: 0 | K35: 0 | R35: ="3." -> 3.
B36: 36 | C36: =IF('Page 1A'!B42="","LINE DESCRIPTION?",'Page 1A'!B42) -> Crane Tech | D36: 0 | E36: 0 | F36: 0 | G36: 0 | H36: 0 | I36: 0 | J36: 0 | K36: 0 | R36: ="4." -> 4.
B37: 37 | C37: =IF('Page 1A'!B43="","LINE DESCRIPTION?",'Page 1A'!B43) -> Remote Head Tech | D37: 0 | E37: 0 | F37: 0 | G37: 0 | H37: 0 | I37: 0 | J37: 0 | K37: 0 | R37: ="5." -> 5.
B38: 38 | C38: =IF('Page 1A'!B44="","LINE DESCRIPTION?",'Page 1A'!B44) -> Location Scout | D38: 0 | E38: 0 | F38: 0 | G38: 0 | H38: 0 | I38: 0 | J38: 0 | K38: 0 | R38: ="6." -> 6.
B39: 39 | C39: =IF('Page 1A'!B45="","LINE DESCRIPTION?",'Page 1A'!B45) -> Assistant Scout | D39: 0 | E39: 0 | F39: 0 | G39: 0 | H39: 0 | I39: 0 | J39: 0 | K39: 0
B40: 40 | C40: =IF('Page 1A'!B46="","LINE DESCRIPTION?",'Page 1A'!B46) -> Nurse/1st Aid | D40: 0 | E40: 0 | F40: 0 | G40: 0 | H40: 0 | I40: 0 | J40: 0 | K40: 0
B41: 41 | C41: =IF('Page 1A'!B47="","LINE DESCRIPTION?",'Page 1A'!B47) -> Craft Service | D41: 0 | E41: 0 | F41: 0 | G41: 0 | H41: 0 | I41: 0 | J41: 0 | K41: 0
B42: 42 | C42: =IF('Page 1A'!B48="","LINE DESCRIPTION?",'Page 1A'!B48) -> Firemen | D42: 0 | E42: 0 | F42: 0 | G42: 0 | H42: 0 | I42: 0 | J42: 0 | K42: 0
B43: 43 | C43: =IF('Page 1A'!B49="","LINE DESCRIPTION?",'Page 1A'!B49) -> Policemen | D43: 0 | E43: 0 | F43: 0 | G43: 0 | H43: 0 | I43: 0 | J43: 0 | K43: 0
B44: 44 | C44: =IF('Page 1A'!B50="","LINE DESCRIPTION?",'Page 1A'!B50) -> Welfare/Teacher | D44: 0 | E44: 0 | F44: 0 | G44: 0 | H44: 0 | I44: 0 | J44: 0 | K44: 0
B45: 45 | C45: =IF('Page 1A'!B51="","LINE DESCRIPTION?",'Page 1A'!B51) -> Choreographer | D45: 0 | E45: 0 | F45: 0 | G45: 0 | H45: 0 | I45: 0 | J45: 0 | K45: 0
B46: 46 | C46: =IF('Page 1A'!B52="","LINE DESCRIPTION?",'Page 1A'!B52) -> Gang Boss | D46: 0 | E46: 0 | F46: 0 | G46: 0 | H46: 0 | I46: 0 | J46: 0 | K46: 0
B47: 47 | C47: =IF('Page 1A'!B53="","LINE DESCRIPTION?",'Page 1A'!B53) -> Teamsters/Driver | D47: 0 | E47: 0 | F47: 0 | G47: 0 | H47: 0 | I47: 0 | J47: 0 | K47: 0
B48: 48 | C48: =IF('Page 1A'!B54="","LINE DESCRIPTION?",'Page 1A'!B54) -> Teamster/Caterers | D48: 0 | E48: 0 | F48: 0 | G48: 0 | H48: 0 | I48: 0 | J48: 0 | K48: 0
B49: 49 | C49: =IF('Page 1A'!B55="","LINE DESCRIPTION?",'Page 1A'!B55) -> Production Assistant | D49: 0 | E49: 0 | F49: 0 | G49: 0 | H49: 0 | I49: 0 | J49: 0 | K49: 0
B50: 50 | C50: =IF('Page 1A'!B56="","LINE DESCRIPTION?",'Page 1A'!B56) -> Runner | D50: 0 | E50: 0 | F50: 0 | G50: 0 | H50: 0 | I50: 0 | J50: 0 | K50: 0
C51: SUB-TOTAL A | K51: =SUM(K1:K50) -> 0
C52: PT/P&W | K52: =SUMIF(PAYROLLLINE,">=1",PAYROLLPT_DLR)-SUMIF(PAYROLLLINE,">=51",PAYROLLPT_DLR) -> 0
C53: TOTAL A | K53: =SUM(K51:K52) -> 0
B54: 51 | C54: =IF('Page 1B'!B7="","LINE DESCRIPTION?",'Page 1B'!B7) -> Line Producer | D54: =SUMIF(PAYROLLLINE,B54:B103,PAYROLLAMOUNT) -> 0 | E54: =IF(D54:D103=0,0,SUMIF(PAYROLLLINE,B54:B103,PAYROLLST)/D54:D103) -> 0 | F54: =SUMIF(PAYROLLLINE,B54:B103,PAYROLLOTHRS) -> 0 | G54: =SUMIF(PAYROLLLINE,B54:B103,PAYROLLST) -> 0 | H54: =SUMIF(PAYROLLLINE,B54:B103,PAYROLLOT) -> 0 | I54: =SUMIF(PAYROLLLINE,B54:B103,PAYROLLMISCT)+SUMIF(PAYROLLLINE,B54:B103,PAYROLLMISCNT) -> 0 | J54: =SUMIF(POLINE,B54:B103,POACTUAL)-SUMIF(REFUNDSLINE,B54:B103,REFUNDSACTUAL)+SUMIF(PCLINE,B54:B103,PCACTUAL) -> 0 | K54: =SUMIF(POLINE,B54:B103,POACTUAL)-SUMIF(REFUNDSLINE,B54:B103,REFUNDSACTUAL)+SUMIF(PAYROLLLINE,B54:B103,PAYROLLACTUAL)+SUMIF(PCLINE,B54:B103,PCACTUAL) -> 0
B55: 52 | C55: =IF('Page 1B'!B8="","LINE DESCRIPTION?",'Page 1B'!B8) -> Assistant Director | D55: 0 | E55: 0 | F55: 0 | G55: 0 | H55: 0 | I55: 0 | J55: 0 | K55: 0
B56: 53 | C56: =IF('Page 1B'!B9="","LINE DESCRIPTION?",'Page 1B'!B9) -> Director of Photography | D56: 0 | E56: 0 | F56: 0 | G56: 0 | H56: 0 | I56: 0 | J56: 0 | K56: 0
B57: 54 | C57: =IF('Page 1B'!B10="","LINE DESCRIPTION?",'Page 1B'!B10) -> Camera Operator | D57: 0 | E57: 0 | F57: 0 | G57: 0 | H57: 0 | I57: 0 | J57: 0 | K57: 0
B58: 55 | C58: =IF('Page 1B'!B11="","LINE DESCRIPTION?",'Page 1B'!B11) -> 1st Camera Assistant | D58: 0 | E58: 0 | F58: 0 | G58: 0 | H58: 0 | I58: 0 | J58: 0 | K58: 0
B59: 56 | C59: =IF('Page 1B'!B12="","LINE DESCRIPTION?",'Page 1B'!B12) -> 2nd AC | D59: 0 | E59: 0 | F59: 0 | G59: 0 | H59: 0 | I59: 0 | J59: 0 | K59: 0
B60: 57 | C60: =IF('Page 1B'!B13="","LINE DESCRIPTION?",'Page 1B'!B13) -> Loader | D60: 0 | E60: 0 | F60: 0 | G60: 0 | H60: 0 | I60: 0 | J60: 0 | K60: 0
B61: 58 | C61: =IF('Page 1B'!B14="","LINE DESCRIPTION?",'Page 1B'!B14) -> Production Manager | D61: 0 | E61: 0 | F61: 0 | G61: 0 | H61: 0 | I61: 0 | J61: 0 | K61: 0
B62: 59 | C62: =IF('Page 1B'!B15="","LINE DESCRIPTION?",'Page 1B'!B15) -> Production Coordinator | D62: 0 | E62: 0 | F62: 0 | G62: 0 | H62: 0 | I62: 0 | J62: 0 | K62: 0
B63: 60 | C63: =IF('Page 1B'!B16="","LINE DESCRIPTION?",'Page 1B'!B16) -> 2nd AD | D63: 0 | E63: 0 | F63: 0 | G63: 0 | H63: 0 | I63: 0 | J63: 0 | K63: 0
B64: 61 | C64: =IF('Page 1B'!B17="","LINE DESCRIPTION?",'Page 1B'!B17) -> Gaffer | D64: 0 | E64: 0 | F64: 0 | G64: 0 | H64: 0 | I64: 0 | J64: 0 | K64: 0
B65: 62 | C65: =IF('Page 1B'!B18="","LINE DESCRIPTION?",'Page 1B'!B18) -> Best Boy Electric | D65: 0 | E65: 0 | F65: 0 | G65: 0 | H65: 0 | I65: 0 | J65: 0 | K65: 0
B66: 63 | C66: =IF('Page 1B'!B19="","LINE DESCRIPTION?",'Page 1B'!B19) -> Electric | D66: 0 | E66: 0 | F66: 0 | G66: 0 | H66: 0 | I66: 0 | J66: 0 | K66: 0
B67: 64 | C67: =IF('Page 1B'!B20="","LINE DESCRIPTION?",'Page 1B'!B20) -> Electric Driver | D67: 0 | E67: 0 | F67: 0 | G67: 0 | H67: 0 | I67: 0 | J67: 0 | K67: 0
B68: 65 | C68: =IF('Page 1B'!B21="","LINE DESCRIPTION?",'Page 1B'!B21) -> Rigger | D68: 0 | E68: 0 | F68: 0 | G68: 0 | H68: 0 | I68: 0 | J68: 0 | K68: 0
B69: 66 | C69: =IF('Page 1B'!B22="","LINE DESCRIPTION?",'Page 1B'!B22) -> Key Grip | D69: 0 | E69: 0 | F69: 0 | G69: 0 | H69: 0 | I69: 0 | J69: 0 | K69: 0
B70: 67 | C70: =IF('Page 1B'!B23="","LINE DESCRIPTION?",'Page 1B'!B23) -> Best Boy Grip | D70: 0 | E70: 0 | F70: 0 | G70: 0 | H70: 0 | I70: 0 | J70: 0 | K70: 0
B71: 68 | C71: =IF('Page 1B'!B24="","LINE DESCRIPTION?",'Page 1B'!B24) -> Grip | D71: 0 | E71: 0 | F71: 0 | G71: 0 | H71: 0 | I71: 0 | J71: 0 | K71: 0
B72: 69 | C72: =IF('Page 1B'!B25="","LINE DESCRIPTION?",'Page 1B'!B25) -> Grip Driver | D72: 0 | E72: 0 | F72: 0 | G72: 0 | H72: 0 | I72: 0 | J72: 0 | K72: 0
B73: 70 | C73: =IF('Page 1B'!B26="","LINE DESCRIPTION?",'Page 1B'!B26) -> Mixer | D73: 0 | E73: 0 | F73: 0 | G73: 0 | H73: 0 | I73: 0 | J73: 0 | K73: 0
B74: 71 | C74: =IF('Page 1B'!B27="","LINE DESCRIPTION?",'Page 1B'!B27) -> Boom Man | D74: 0 | E74: 0 | F74: 0 | G74: 0 | H74: 0 | I74: 0 | J74: 0 | K74: 0
B75: 72 | C75: =IF('Page 1B'!B28="","LINE DESCRIPTION?",'Page 1B'!B28) -> Playback | D75: 0 | E75: 0 | F75: 0 | G75: 0 | H75: 0 | I75: 0 | J75: 0 | K75: 0
B76: 73 | C76: =IF('Page 1B'!B29="","LINE DESCRIPTION?",'Page 1B'!B29) -> Make-up | D76: 0 | E76: 0 | F76: 0 | G76: 0 | H76: 0 | I76: 0 | J76: 0 | K76: 0
B77: 74 | C77: =IF('Page 1B'!B30="","LINE DESCRIPTION?",'Page 1B'!B30) -> Hair Stylist | D77: 0 | E77: 0 | F77: 0 | G77: 0 | H77: 0 | I77: 0 | J77: 0 | K77: 0
B78: 75 | C78: =IF('Page 1B'!B31="","LINE DESCRIPTION?",'Page 1B'!B31) -> Make-up/Hair Assts. | D78: 0 | E78: 0 | F78: 0 | G78: 0 | H78: 0 | I78: 0 | J78: 0 | K78: 0
B79: 76 | C79: =IF('Page 1B'!B32="","LINE DESCRIPTION?",'Page 1B'!B32) -> Stylist | D79: 0 | E79: 0 | F79: 0 | G79: 0 | H79: 0 | I79: 0 | J79: 0 | K79: 0
B80: 77 | C80: =IF('Page 1B'!B33="","LINE DESCRIPTION?",'Page 1B'!B33) -> Wardrobe | D80: 0 | E80: 0 | F80: 0 | G80: 0 | H80: 0 | I80: 0 | J80: 0 | K80: 0
B81: 78 | C81: =IF('Page 1B'!B34="","LINE DESCRIPTION?",'Page 1B'!B34) -> Script Supervisor | D81: 0 | E81: 0 | F81: 0 | G81: 0 | H81: 0 | I81: 0 | J81: 0 | K81: 0
B82: 79 | C82: =IF('Page 1B'!B35="","LINE DESCRIPTION?",'Page 1B'!B35) -> Home Economist | D82: 0 | E82: 0 | F82: 0 | G82: 0 | H82: 0 | I82: 0 | J82: 0 | K82: 0
B83: 80 | C83: =IF('Page 1B'!B36="","LINE DESCRIPTION?",'Page 1B'!B36) -> Asst. Home Economist | D83: 0 | E83: 0 | F83: 0 | G83: 0 | H83: 0 | I83: 0 | J83: 0 | K83: 0
B84: 81 | C84: =IF('Page 1B'!B37="","LINE DESCRIPTION?",'Page 1B'!B37) -> VTR Operator | D84: 0 | E84: 0 | F84: 0 | G84: 0 | H84: 0 | I84: 0 | J84: 0 | K84: 0
B85: 82 | C85: =IF('Page 1B'!B38="","LINE DESCRIPTION?",'Page 1B'!B38) -> Effects | D85: 0 | E85: 0 | F85: 0 | G85: 0 | H85: 0 | I85: 0 | J85: 0 | K85: 0
B86: 83 | C86: =IF('Page 1B'!B39="","LINE DESCRIPTION?",'Page 1B'!B39) -> FX Assistant | D86: 0 | E86: 0 | F86: 0 | G86: 0 | H86: 0 | I86: 0 | J86: 0 | K86: 0
B87: 84 | C87: =IF('Page 1B'!B40="","LINE DESCRIPTION?",'Page 1B'!B40) -> 2nd 2nd AD | D87: 0 | E87: 0 | F87: 0 | G87: 0 | H87: 0 | I87: 0 | J87: 0 | K87: 0
B88: 85 | C88: =IF('Page 1B'!B41="","LINE DESCRIPTION?",'Page 1B'!B41) -> Camera Car Driver | D88: 0 | E88: 0 | F88: 0 | G88: 0 | H88: 0 | I88: 0 | J88: 0 | K88: 0
B89: 86 | C89: =IF('Page 1B'!B42="","LINE DESCRIPTION?",'Page 1B'!B42) -> Crane Tech | D89: 0 | E89: 0 | F89: 0 | G89: 0 | H89: 0 | I89: 0 | J89: 0 | K89: 0
B90: 87 | C90: =IF('Page 1B'!B43="","LINE DESCRIPTION?",'Page 1B'!B43) -> Remote Head Tech | D90: 0 | E90: 0 | F90: 0 | G90: 0 | H90: 0 | I90: 0 | J90: 0 | K90: 0
B91: 88 | C91: =IF('Page 1B'!B44="","LINE DESCRIPTION?",'Page 1B'!B44) -> Location Scout | D91: 0 | E91: 0 | F91: 0 | G91: 0 | H91: 0 | I91: 0 | J91: 0 | K91: 0
B92: 89 | C92: =IF('Page 1B'!B45="","LINE DESCRIPTION?",'Page 1B'!B45) -> Assistant Scout | D92: 0 | E92: 0 | F92: 0 | G92: 0 | H92: 0 | I92: 0 | J92: 0 | K92: 0
B93: 90 | C93: =IF('Page 1B'!B46="","LINE DESCRIPTION?",'Page 1B'!B46) -> Nurse/1st Aid | D93: 0 | E93: 0 | F93: 0 | G93: 0 | H93: 0 | I93: 0 | J93: 0 | K93: 0
B94: 91 | C94: =IF('Page 1B'!B47="","LINE DESCRIPTION?",'Page 1B'!B47) -> Craft Service | D94: 0 | E94: 0 | F94: 0 | G94: 0 | H94: 0 | I94: 0 | J94: 0 | K94: 0
B95: 92 | C95: =IF('Page 1B'!B48="","LINE DESCRIPTION?",'Page 1B'!B48) -> Firemen | D95: 0 | E95: 0 | F95: 0 | G95: 0 | H95: 0 | I95: 0 | J95: 0 | K95: 0
B96: 93 | C96: =IF('Page 1B'!B49="","LINE DESCRIPTION?",'Page 1B'!B49) -> Policemen | D96: 0 | E96: 0 | F96: 0 | G96: 0 | H96: 0 | I96: 0 | J96: 0 | K96: 0
B97: 94 | C97: =IF('Page 1B'!B50="","LINE DESCRIPTION?",'Page 1B'!B50) -> Welfare/Teacher | D97: 0 | E97: 0 | F97: 0 | G97: 0 | H97: 0 | I97: 0 | J97: 0 | K97: 0
B98: 95 | C98: =IF('Page 1B'!B51="","LINE DESCRIPTION?",'Page 1B'!B51) -> Choreographer | D98: 0 | E98: 0 | F98: 0 | G98: 0 | H98: 0 | I98: 0 | J98: 0 | K98: 0
B99: 96 | C99: =IF('Page 1B'!B52="","LINE DESCRIPTION?",'Page 1B'!B52) -> Gang Boss | D99: 0 | E99: 0 | F99: 0 | G99: 0 | H99: 0 | I99: 0 | J99: 0 | K99: 0
B100: 97 | C100: =IF('Page 1B'!B53="","LINE DESCRIPTION?",'Page 1B'!B53) -> Teamsters/Driver | D100: 0 | E100: 0 | F100: 0 | G100: 0 | H100: 0 | I100: 0 | J100: 0 | K100: 0
B101: 98 | C101: =IF('Page 1B'!B54="","LINE DESCRIPTION?",'Page 1B'!B54) -> Teamster/Caterers | D101: 0 | E101: 0 | F101: 0 | G101: 0 | H101: 0 | I101: 0 | J101: 0 | K101: 0
B102: 99 | C102: =IF('Page 1B'!B55="","LINE DESCRIPTION?",'Page 1B'!B55) -> Production Assistant | D102: 0 | E102: 0 | F102: 0 | G102: 0 | H102: 0 | I102: 0 | J102: 0 | K102: 0
B103: 100 | C103: =IF('Page 1B'!B56="","LINE DESCRIPTION?",'Page 1B'!B56) -> Runner | D103: 0 | E103: 0 | F103: 0 | G103: 0 | H103: 0 | I103: 0 | J103: 0 | K103: 0
C104: SUB-TOTAL A | K104: =SUM(K54:K103) -> 0
C105: PT/P&W | K105: =SUMIF(PAYROLLLINE,">=51",PAYROLLPT_DLR)-SUMIF(PAYROLLLINE,">=101",PAYROLLPT_DLR) -> 0
C106: TOTAL B | K106: =SUM(K104:K105) -> 0
B107: 101 | C107: =IF('Page 2'!B6="","LINE DESCRIPTION?",'Page 2'!B6) -> Auto/Passenger Van Rentals | K107: =SUMIF(POLINE,B107:B119,POACTUAL)-SUMIF(REFUNDSLINE,B107:B119,REFUNDSACTUAL)+SUMIF(PAYROLLLINE,B107:B119,PAYROLLACTUAL)+SUMIF(PCLINE,B107:B119,PCACTUAL) -> 0
B108: 102 | C108: =IF('Page 2'!B7="","LINE DESCRIPTION?",'Page 2'!B7) -> Air Fares | K108: 0
B109: 103 | C109: =IF('Page 2'!B8="","LINE DESCRIPTION?",'Page 2'!B8) -> Per Diems | K109: 0
B110: 104 | C110: =IF('Page 2'!B9="","LINE DESCRIPTION?",'Page 2'!B9) -> Still Camera & Film | K110: 0
B111: 105 | C111: =IF('Page 2'!B10="","LINE DESCRIPTION?",'Page 2'!B10) -> Messengers | K111: 0
B112: 106 | C112: =IF('Page 2'!B11="","LINE DESCRIPTION?",'Page 2'!B11) -> Trucking | K112: 0
B113: 107 | C113: =IF('Page 2'!B12="","LINE DESCRIPTION?",'Page 2'!B12) -> Deliveries & Taxis | K113: 0
B114: 108 | C114: =IF('Page 2'!B13="","LINE DESCRIPTION?",'Page 2'!B13) -> Video Conferencing | K114: 0
B115: 109 | C115: =IF('Page 2'!B14="","LINE DESCRIPTION?",'Page 2'!B14) -> Telephone & Cable | K115: 0
B116: 110 | C116: =IF('Page 2'!B15="","LINE DESCRIPTION?",'Page 2'!B15) -> Casting Director | K116: 0
B117: 111 | C117: =IF('Page 2'!B16="","LINE DESCRIPTION?",'Page 2'!B16) -> Casting Facilities | K117: 0
B118: 112 | C118: =IF('Page 2'!B17="","LINE DESCRIPTION?",'Page 2'!B17) -> Polaroids/Internet Posting | K118: 0
B119: 113 | C119: =IF('Page 2'!B18="","LINE DESCRIPTION?",'Page 2'!B18) -> Scouting Expenses | K119: 0
C120: TOTAL C | K120: =SUM(K107:K119) -> 0
B121: 114 | C121: =IF('Page 2'!B22="","LINE DESCRIPTION?",'Page 2'!B22) -> Location Fees | K121: =SUMIF(POLINE,B121:B146,POACTUAL)-SUMIF(REFUNDSLINE,B121:B146,REFUNDSACTUAL)+SUMIF(PAYROLLLINE,B121:B146,PAYROLLACTUAL)+SUMIF(PCLINE,B121:B146,PCACTUAL) -> 0
B122: 115 | C122: =IF('Page 2'!B23="","LINE DESCRIPTION?",'Page 2'!B23) -> Permits | K122: 0
B123: 116 | C123: =IF('Page 2'!B24="","LINE DESCRIPTION?",'Page 2'!B24) -> Car Rentals | K123: 0
B124: 117 | C124: =IF('Page 2'!B25="","LINE DESCRIPTION?",'Page 2'!B25) -> Bus/Passenger Van Rentals | K124: 0
B125: 118 | C125: =IF('Page 2'!B26="","LINE DESCRIPTION?",'Page 2'!B26) -> Dressing Room Vehicles | K125: 0
B126: 119 | C126: =IF('Page 2'!B27="","LINE DESCRIPTION?",'Page 2'!B27) -> Parking, Tolls, and Gas | K126: 0
B127: 120 | C127: =IF('Page 2'!B28="","LINE DESCRIPTION?",'Page 2'!B28) -> Production Trucking | K127: 0
B128: 121 | C128: =IF('Page 2'!B29="","LINE DESCRIPTION?",'Page 2'!B29) -> Camera Truck | K128: 0
B129: 122 | C129: =IF('Page 2'!B30="","LINE DESCRIPTION?",'Page 2'!B30) -> Stake Bed/Pick UP/ATV/Lighting and grip | K129: 0
B130: 123 | C130: =IF('Page 2'!B31="","LINE DESCRIPTION?",'Page 2'!B31) -> Customs | K130: 0
B131: 124 | C131: =IF('Page 2'!B32="","LINE DESCRIPTION?",'Page 2'!B32) -> Excess Bags | K131: 0
B132: 125 | C132: =IF('Page 2'!B33="","LINE DESCRIPTION?",'Page 2'!B33) -> Air Fares | K132: 0
B133: 126 | C133: =IF('Page 2'!B34="","LINE DESCRIPTION?",'Page 2'!B34) -> Hotel/Per Diems | K133: 0
B134: 127 | C134: =IF('Page 2'!B35="","LINE DESCRIPTION?",'Page 2'!B35) -> Tech Scout Breakfast & Lunch | K134: 0
B135: 128 | C135: =IF('Page 2'!B36="","LINE DESCRIPTION?",'Page 2'!B36) -> Pre-Production Meeting & Fittings Meals | K135: 0
B136: 129 | C136: =IF('Page 2'!B37="","LINE DESCRIPTION?",'Page 2'!B37) -> Breakfast | K136: 0
B137: 130 | C137: =IF('Page 2'!B38="","LINE DESCRIPTION?",'Page 2'!B38) -> Lunch | K137: 0
B138: 131 | C138: =IF('Page 2'!B39="","LINE DESCRIPTION?",'Page 2'!B39) -> Dinner | K138: 0
B139: 132 | C139: =IF('Page 2'!B40="","LINE DESCRIPTION?",'Page 2'!B40) -> Set Security | K139: 0
B140: 133 | C140: =IF('Page 2'!B41="","LINE DESCRIPTION?",'Page 2'!B41) -> Limousines | K140: 0
B141: 134 | C141: =IF('Page 2'!B42="","LINE DESCRIPTION?",'Page 2'!B42) -> Cabs and Other Transportation | K141: 0
B142: 135 | C142: =IF('Page 2'!B43="","LINE DESCRIPTION?",'Page 2'!B43) -> Kit Rental | K142: 0
B143: 136 | C143: =IF('Page 2'!B44="","LINE DESCRIPTION?",'Page 2'!B44) -> Art Work | K143: 0
B144: 137 | C144: =IF('Page 2'!B45="","LINE DESCRIPTION?",'Page 2'!B45) -> Talent Meal | K144: 0
B145: 138 | C145: =IF('Page 2'!B46="","LINE DESCRIPTION?",'Page 2'!B46) -> Craft Services | K145: 0
B146: 139 | C146: =IF('Page 2'!B47="","LINE DESCRIPTION?",'Page 2'!B47) -> Cell Phones | K146: 0
C147: TOTAL D | K147: =SUM(K121:K131) -> 0
B148: 140 | C148: =IF('Page 2'!B51="","LINE DESCRIPTION?",'Page 2'!B51) -> Prop Rentals | K148: =SUMIF(POLINE,B148:B158,POACTUAL)-SUMIF(REFUNDSLINE,B148:B158,REFUNDSACTUAL)+SUMIF(PAYROLLLINE,B148:B158,PAYROLLACTUAL)+SUMIF(PCLINE,B148:B158,PCACTUAL) -> 0
B149: 141 | C149: =IF('Page 2'!B52="","LINE DESCRIPTION?",'Page 2'!B52) -> Prop Purchases | K149: 0
B150: 142 | C150: =IF('Page 2'!B53="","LINE DESCRIPTION?",'Page 2'!B53) -> Wardrobe Rentals | K150: 0
B151: 143 | C151: =IF('Page 2'!B54="","LINE DESCRIPTION?",'Page 2'!B54) -> Wardrobe Purchases | K151: 0
B152: 144 | C152: =IF('Page 2'!#REF!="","LINE DESCRIPTION?",'Page 2'!#REF!) -> #ERROR! | K152: 0
B153: 145 | C153: =IF('Page 2'!B55="","LINE DESCRIPTION?",'Page 2'!B55) -> Picture Vehicles | K153: 0
B154: 146 | C154: =IF('Page 2'!B57="","LINE DESCRIPTION?",'Page 2'!B57) -> Wigs & Mustaches | K154: 0
B155: 147 | C155: =IF('Page 2'!B58="","LINE DESCRIPTION?",'Page 2'!B58) -> Color Correction | K155: 0
B156: 148 | C156: =IF('Page 2'!B59="","LINE DESCRIPTION?",'Page 2'!B59) -> Atmospheric FX (Wind, Fog, Rain, Etc.) | K156: 0
B157: 149 | C157: =IF('Page 2'!B60="","LINE DESCRIPTION?",'Page 2'!B60) -> Water Truck | K157: 0
B158: 150 | C158: =IF('Page 2'!B61="","LINE DESCRIPTION?",'Page 2'!B61) -> LINE DESCRIPTION? | K158: 0
C159: TOTAL E | K159: =SUM(K148:K158) -> 0
B160: 151 | C160: =IF('Page 3'!B6="","LINE DESCRIPTION?",'Page 3'!B6) -> Rental for Build | K160: =SUMIF(POLINE,B160:B176,POACTUAL)-SUMIF(REFUNDSLINE,B160:B176,REFUNDSACTUAL)+SUMIF(PAYROLLLINE,B160:B176,PAYROLLACTUAL)+SUMIF(PCLINE,B160:B176,PCACTUAL) -> 0
B161: 152 | C161: =IF('Page 3'!B7="","LINE DESCRIPTION?",'Page 3'!B7) -> Build OT Hours | K161: 0
B162: 153 | C162: =IF('Page 3'!B8="","LINE DESCRIPTION?",'Page 3'!B8) -> Rental for Pre-Lite Days | K162: 0
B163: 154 | C163: =IF('Page 3'!B9="","LINE DESCRIPTION?",'Page 3'!B9) -> Pre-Lite OT Hours | K163: 0
B164: 155 | C164: =IF('Page 3'!B10="","LINE DESCRIPTION?",'Page 3'!B10) -> Rental for Shoot Days | K164: 0
B165: 156 | C165: =IF('Page 3'!B11="","LINE DESCRIPTION?",'Page 3'!B11) -> Shoot OT Hours | K165: 0
B166: 157 | C166: =IF('Page 3'!B12="","LINE DESCRIPTION?",'Page 3'!B12) -> Rental for Strike Days | K166: 0
B167: 158 | C167: =IF('Page 3'!B13="","LINE DESCRIPTION?",'Page 3'!B13) -> Strike OT Hours | K167: 0
B168: 159 | C168: =IF('Page 3'!B14="","LINE DESCRIPTION?",'Page 3'!B14) -> Generator and Operator | K168: 0
B169: 160 | C169: =IF('Page 3'!B15="","LINE DESCRIPTION?",'Page 3'!B15) -> Studio Security | K169: 0
B170: 161 | C170: =IF('Page 3'!B16="","LINE DESCRIPTION?",'Page 3'!B16) -> Power Charges | K170: 0
B171: 162 | C171: =IF('Page 3'!B17="","LINE DESCRIPTION?",'Page 3'!B17) -> Trash | K171: 0
B172: 163 | C172: =IF('Page 3'!B18="","LINE DESCRIPTION?",'Page 3'!B18) -> Stage Manager | K172: 0
B173: 164 | C173: =IF('Page 3'!B19="","LINE DESCRIPTION?",'Page 3'!B19) -> Parking | K173: 0
B174: 165 | C174: =IF('Page 3'!B20="","LINE DESCRIPTION?",'Page 3'!B20) -> Telephones & Fax Machines | K174: 0
B175: 166 | C175: =IF('Page 3'!B21="","LINE DESCRIPTION?",'Page 3'!B21) -> Heat/Air Conditioning | K175: 0
B176: 167 | C176: =IF('Page 3'!B22="","LINE DESCRIPTION?",'Page 3'!B22) -> Misc Studio Charges | K176: 0
C177: TOTAL F | K177: =SUM(K160:K166) -> 0
B178: 168 | C178: =IF('Page 3'!B28="","LINE DESCRIPTION?",'Page 3'!B28) -> Production Designer | D178: =SUMIF(PAYROLLLINE,B178:B190,PAYROLLAMOUNT) -> 0 | E178: =IF(D178:D190=0,0,SUMIF(PAYROLLLINE,B178:B190,PAYROLLST)/D178:D190) -> 0 | F178: =SUMIF(PAYROLLLINE,B178:B190,PAYROLLOTHRS) -> 0 | G178: =SUMIF(PAYROLLLINE,B178:B190,PAYROLLST) -> 0 | H178: =SUMIF(PAYROLLLINE,B178:B190,PAYROLLOT) -> 0 | I178: =SUMIF(PAYROLLLINE,B178:B190,PAYROLLMISCT)+SUMIF(PAYROLLLINE,B178:B190,PAYROLLMISCNT) -> 0 | J178: =SUMIF(POLINE,B178:B190,POACTUAL)-SUMIF(REFUNDSLINE,B178:B190,REFUNDSACTUAL)+SUMIF(PCLINE,B178:B190,PCACTUAL) -> 0 | K178: =SUMIF(POLINE,B178:B190,POACTUAL)-SUMIF(REFUNDSLINE,B178:B190,REFUNDSACTUAL)+SUMIF(PAYROLLLINE,B178:B190,PAYROLLACTUAL)+SUMIF(PCLINE,B178:B190,PCACTUAL) -> 0
B179: 169 | C179: =IF('Page 3'!B29="","LINE DESCRIPTION?",'Page 3'!B29) -> Art Director | D179: 0 | E179: 0 | F179: 0 | G179: 0 | H179: 0 | I179: 0 | J179: 0 | K179: 0
B180: 170 | C180: =IF('Page 3'!B30="","LINE DESCRIPTION?",'Page 3'!B30) -> Art Department Coordinator | D180: 0 | E180: 0 | F180: 0 | G180: 0 | H180: 0 | I180: 0 | J180: 0 | K180: 0
B181: 171 | C181: =IF('Page 3'!B31="","LINE DESCRIPTION?",'Page 3'!B31) -> Buyer | D181: 0 | E181: 0 | F181: 0 | G181: 0 | H181: 0 | I181: 0 | J181: 0 | K181: 0
B182: 172 | C182: =IF('Page 3'!B32="","LINE DESCRIPTION?",'Page 3'!B32) -> Prop Master | D182: 0 | E182: 0 | F182: 0 | G182: 0 | H182: 0 | I182: 0 | J182: 0 | K182: 0
B183: 173 | C183: =IF('Page 3'!B33="","LINE DESCRIPTION?",'Page 3'!B33) -> Prop Assts. | D183: 0 | E183: 0 | F183: 0 | G183: 0 | H183: 0 | I183: 0 | J183: 0 | K183: 0
B184: 174 | C184: =IF('Page 3'!B34="","LINE DESCRIPTION?",'Page 3'!B34) -> Scenic | D184: 0 | E184: 0 | F184: 0 | G184: 0 | H184: 0 | I184: 0 | J184: 0 | K184: 0
B185: 175 | C185: =IF('Page 3'!B35="","LINE DESCRIPTION?",'Page 3'!B35) -> Set Dresser | D185: 0 | E185: 0 | F185: 0 | G185: 0 | H185: 0 | I185: 0 | J185: 0 | K185: 0
B186: 176 | C186: =IF('Page 3'!B36="","LINE DESCRIPTION?",'Page 3'!B36) -> Lead Man | D186: 0 | E186: 0 | F186: 0 | G186: 0 | H186: 0 | I186: 0 | J186: 0 | K186: 0
B187: 177 | C187: =IF('Page 3'!B37="","LINE DESCRIPTION?",'Page 3'!B37) -> Painter | D187: 0 | E187: 0 | F187: 0 | G187: 0 | H187: 0 | I187: 0 | J187: 0 | K187: 0
B188: 178 | C188: =IF('Page 3'!B38="","LINE DESCRIPTION?",'Page 3'!B38) -> Art PAs | D188: 0 | E188: 0 | F188: 0 | G188: 0 | H188: 0 | I188: 0 | J188: 0 | K188: 0
B189: 179 | C189: =IF('Page 3'!B39="","LINE DESCRIPTION?",'Page 3'!B39) -> Strike Crew | D189: 0 | E189: 0 | F189: 0 | G189: 0 | H189: 0 | I189: 0 | J189: 0 | K189: 0
B190: 180 | C190: =IF('Page 3'!B40="","LINE DESCRIPTION?",'Page 3'!B40) -> Illustrator | D190: 0 | E190: 0 | F190: 0 | G190: 0 | H190: 0 | I190: 0 | J190: 0 | K190: 0
C191: SUB-TOTAL F | K191: =SUM(K178:K190) -> 0
C192: PT/P&W | K192: =SUMIF(PAYROLLLINE,">=148",PAYROLLPT_DLR)-SUMIF(PAYROLLLINE,">=181",PAYROLLPT_DLR) -> 0
C193: TOTAL G | K193: =SUM(K191:K192) -> 0
B194: 181 | C194: =IF('Page 3'!B47="","LINE DESCRIPTION?",'Page 3'!B47) -> Set Dressing Purchases | K194: =SUMIF(POLINE,B194:B205,POACTUAL)-SUMIF(REFUNDSLINE,B194:B205,REFUNDSACTUAL)+SUMIF(PAYROLLLINE,B194:B205,PAYROLLACTUAL)+SUMIF(PCLINE,B194:B205,PCACTUAL) -> 0
B195: 182 | C195: =IF('Page 3'!B48="","LINE DESCRIPTION?",'Page 3'!B48) -> Set Dressing Rentals | K195: 0
B196: 183 | C196: =IF('Page 3'!B49="","LINE DESCRIPTION?",'Page 3'!B49) -> Polaroid/Film/Developing | K196: 0
B197: 184 | C197: =IF('Page 3'!B50="","LINE DESCRIPTION?",'Page 3'!B50) -> Art Supplies | K197: 0
B198: 185 | C198: =IF('Page 3'!B51="","LINE DESCRIPTION?",'Page 3'!B51) -> Paint/Hardware | K198: 0
B199: 186 | C199: =IF('Page 3'!B52="","LINE DESCRIPTION?",'Page 3'!B52) -> Special effects | K199: 0
B200: 187 | C200: =IF('Page 3'!B53="","LINE DESCRIPTION?",'Page 3'!B53) -> Set Build | K200: 0
... 159 more rows

Sheet Launch Box (hidden)

Sheet Client Info Box (hidden)

Sheet Print Sheets (hidden)

Sheet Travel
B2: TYPE OF DAY
B3: T = Travel / P = Prep / TS = Tech Scout / D = Down
B4: B = Build / PL = Pre-light / S = Shoot / W = Wrap
D6: Tue | E6: Wed | F6: Thu | G6: Fri | H6: Sat | I6: Sun | J6: Mon | K6: Tue | L6: Wed | M6: Thu | N6: Fri | O6: Sat | P6: Sun | Q6: Mon | R6: Tue | S6: Wed | T6: Thu | U6: Fri | V6: Sat | W6: Sun | X6: Mon | Y6: TOTAL | Z6: Car Rentals | AB6: Travel Fares | AD6: Hotels/Per Diem | AF6: TOTAL | AG6: TOTAL | AH6: TOTAL
B7: Name | C7: Title | D7: 2000-02-01 | E7: 2000-02-02 | F7: 2000-02-03 | G7: 2000-02-04 | H7: 2000-02-05 | I7: 2000-02-06 | J7: 2000-02-07 | K7: 2000-02-08 | L7: 2000-02-09 | M7: 2000-02-10 | N7: 2000-02-11 | O7: 2000-02-12 | P7: 2000-02-13 | Q7: 2000-02-14 | R7: 2000-02-15 | S7: 2000-02-16 | T7: 2000-02-17 | U7: 2000-02-18 | V7: 2000-02-19 | W7: 2000-02-20 | X7: 2000-02-21 | Y7: DAYS | Z7: No. | AA7: Cost | AB7: No. | AC7: Cost | AD7: No. | AE7: Cost | AF7: Car | AG7: Fare | AH7: Hotel/PD
C8: Director | Y8: =COUNTA(D8:X8) -> 0 | Z8: 1 | AA8: 500 | AF8: =Z8*AA8 -> 500 | AG8: =AB8*AC8 -> 0 | AH8: =AD8*AE8 -> 0
Y9: 0 | AF9: 0 | AG9: 0 | AH9: 0
C10: Line Producer | G10: 1 | H10: 1 | I10: 1 | J10: 1 | K10: 1 | L10: 1 | M10: 1 | N10: 1 | Y10: 8 | AF10: 0 | AG10: 0 | AH10: 0
C11: Assistant Director | Y11: 0 | AF11: 0 | AG11: 0 | AH11: 0
C12: Director of Photography | I12: x | J12: x | K12: x | L12: x | M12: x | Y12: 5 | AF12: 0 | AG12: 0 | AH12: 0
C13: Camera Operator | Y13: 0 | AF13: 0 | AG13: 0 | AH13: 0
C14: Assistant Camera | Y14: 0 | AF14: 0 | AG14: 0 | AH14: 0
C15: 2nd AC | Y15: 0 | AF15: 0 | AG15: 0 | AH15: 0
C16: Art Director | Y16: 0 | AF16: 0 | AG16: 0 | AH16: 0
C17: Asst. Art Director | Y17: 0 | AF17: 0 | AG17: 0 | AH17: 0
C18: Prop Master | Y18: 0 | AF18: 0 | AG18: 0 | AH18: 0
C19: Assistant Props | Y19: 0 | AF19: 0 | AG19: 0 | AH19: 0
C20: Gaffer | Y20: 0 | AF20: 0 | AG20: 0 | AH20: 0
C21: Best Boy | Y21: 0 | AF21: 0 | AG21: 0 | AH21: 0
C22: 3rd Electrician | Y22: 0 | AF22: 0 | AG22: 0 | AH22: 0
C23: Add'l Electricians | Y23: 0 | AF23: 0 | AG23: 0 | AH23: 0
C24: Grip/Electric Driver | Q24: T | R24: PL | S24: S | T24: S | U24: S | V24: T | Y24: 6 | AF24: 0 | AG24: 0 | AH24: 0
C25: Key Grip | Y25: 0 | AF25: 0 | AG25: 0 | AH25: 0
C26: 2nd Grip | Y26: 0 | AF26: 0 | AG26: 0 | AH26: 0
C27: 3rd Grip | Y27: 0 | AF27: 0 | AG27: 0 | AH27: 0
C28: Add'l Grips | Y28: 0 | AF28: 0 | AG28: 0 | AH28: 0
C29: Sound Mixer | Y29: 0 | AF29: 0 | AG29: 0 | AH29: 0
C30: Boom Operator | Y30: 0 | AF30: 0 | AG30: 0 | AH30: 0
C31: Sound Utility | Y31: 0 | AF31: 0 | AG31: 0 | AH31: 0
C32: Playback | Y32: 0 | AF32: 0 | AG32: 0 | AH32: 0
C33: Make-up | Y33: 0 | AF33: 0 | AG33: 0 | AH33: 0
C34: Hair | Y34: 0 | AF34: 0 | AG34: 0 | AH34: 0
C35: Stylist | Y35: 0 | AF35: 0 | AG35: 0 | AH35: 0
C36: Wardrobe | Y36: 0 | AF36: 0 | AG36: 0 | AH36: 0
C37: Script Supervisor | Y37: 0 | AF37: 0 | AG37: 0 | AH37: 0
C38: Home Economist | Y38: 0 | AF38: 0 | AG38: 0 | AH38: 0
Y39: 0 | AF39: 0 | AG39: 0 | AH39: 0
C40: VTR Operator | Y40: 0 | AF40: 0 | AG40: 0 | AH40: 0
C41: Effects | Y41: 0 | AF41: 0 | AG41: 0 | AH41: 0
C42: Scenics | Y42: 0 | AF42: 0 | AG42: 0 | AH42: 0
C43: Teleprompter Op | Y43: 0 | AF43: 0 | AG43: 0 | AH43: 0
C44: Generator Operator | Y44: 0 | AF44: 0 | AG44: 0 | AH44: 0
Y45: 0 | AF45: 0 | AG45: 0 | AH45: 0
C46: Location Scout | Y46: 0 | AF46: 0 | AG46: 0 | AH46: 0
C47: Production Manager | Y47: 0 | AF47: 0 | AG47: 0 | AH47: 0
C48: 2nd AD | Y48: 0 | AF48: 0 | AG48: 0 | AH48: 0
C49: Nurse/1st Aid | Y49: 0 | AF49: 0 | AG49: 0 | AH49: 0
C50: Food PA | Y50: 0 | AF50: 0 | AG50: 0 | AH50: 0
C51: Firemen | Y51: 0 | AF51: 0 | AG51: 0 | AH51: 0
C52: Policemen | Y52: 0 | AF52: 0 | AG52: 0 | AH52: 0
C53: Welfare/Teacher | Y53: 0 | AF53: 0 | AG53: 0 | AH53: 0
C54: Teamsters/Drivers | Y54: 0 | AF54: 0 | AG54: 0 | AH54: 0
C55: Caterer | Y55: 0 | AF55: 0 | AG55: 0 | AH55: 0
C56: Coordinator | Y56: 0 | AF56: 0 | AG56: 0 | AH56: 0
C57: PA's | Y57: 0 | AF57: 0 | AG57: 0 | AH57: 0
Y58: 0 | AF58: 0 | AG58: 0 | AH58: 0
Y59: 0 | AF59: 0 | AG59: 0 | AH59: 0
Y60: 0 | AF60: 0 | AG60: 0 | AH60: 0
Y61: 0 | AF61: 0 | AG61: 0 | AH61: 0
C62: Construction | Y62: 0 | AF62: 0 | AG62: 0 | AH62: 0
C63: Carpenters | Y63: 0 | AF63: 0 | AG63: 0 | AH63: 0
C64: Set Decorator | Y64: 0 | AF64: 0 | AG64: 0 | AH64: 0
C65: Leadperson | Y65: 0 | AF65: 0 | AG65: 0 | AH65: 0
C66: Dresser | Y66: 0 | AF66: 0 | AG66: 0 | AH66: 0
C67: Swing | Y67: 0 | AF67: 0 | AG67: 0 | AH67: 0
C68: Scenics | Y68: 0 | AF68: 0 | AG68: 0 | AH68: 0
C69: Teamsters | Y69: 0 | AF69: 0 | AG69: 0 | AH69: 0
C70: Strike Crew | Y70: 0 | AF70: 0 | AG70: 0 | AH70: 0
C71: Art Assistants | Y71: 0 | AF71: 0 | AG71: 0 | AH71: 0
Y72: 0 | AF72: 0 | AG72: 0 | AH72: 0
Y73: 0 | AF73: 0 | AG73: 0 | AH73: 0
Y74: 0 | AF74: 0 | AG74: 0 | AH74: 0
C75: Talent | Y75: 0 | AF75: 0 | AG75: 0 | AH75: 0
C76: Talent | Y76: 0 | AF76: 0 | AG76: 0 | AH76: 0
C77: Talent | Y77: 0 | AF77: 0 | AG77: 0 | AH77: 0
C78: Talent | Y78: 0 | AB78: 1 | AC78: 500 | AF78: 0 | AG78: 500 | AH78: 0
Y79: 0 | AF79: 0 | AG79: 0 | AH79: 0
Y80: 0 | AD80: 1 | AE80: 300 | AF80: 0 | AG80: 0 | AH80: 300
Y81: 0 | AF81: 0 | AG81: 0 | AH81: 0
Y82: 0 | AF82: 0 | AG82: 0 | AH82: 0
Y83: 0 | AF83: 0 | AG83: 0 | AH83: 0
C84: TOTALS | D84: =COUNTA(D8:D83) -> 0 | E84: 0 | F84: 0 | G84: 1 | H84: 1 | I84: 2 | J84: 2 | K84: 2 | L84: 2 | M84: 2 | N84: 1 | O84: 0 | P84: 0 | Q84: 1 | R84: 1 | S84: 1 | T84: 1 | U84: 1 | V84: 1 | W84: 0 | X84: 0 | Y84: =SUM(Y8:Y83) -> 19 | Z84: 1 | AA84: =IF(Z84=0,0,AF84/Z84) -> 500 | AB84: =SUM(AB8:AB83) -> 1 | AC84: =IF(AB84=0,0,AG84/AB84) -> 500 | AD84: =SUM(AD8:AD83) -> 1 | AE84: =IF(AD84=0,0,AH84/AD84) -> 300 | AF84: =SUM(AF8:AF83) -> 500 | AG84: 500 | AH84: 300
AA85: Average | AC85: Average | AE85: Average | AG85: sub-total | AH85: =AF84+AG84+AH84 -> 1300
AG86: handling fee | AH86: =AH85*AI86 -> 195 | AI86: 0.15
AG87: GRAND TOTAL | AH87: =AH85+AH86 -> 1495

Sheet Calendar
B2: NOVEMBER | J2: DECEMBER
B4: SUNDAY | C4: MONDAY | D4: TUESDAY | E4: WEDNESDAY | F4: THURSDAY | G4: FRIDAY | H4: SATURDAY | J4: SUNDAY | K4: MONDAY | L4: TUESDAY | M4: WEDNESDAY | N4: THURSDAY | O4: FRIDAY | P4: SATURDAY
B5: 2000-10-29 | C5: 2000-10-30 | D5: 2000-10-31 | E5: 2000-11-01 | F5: 2000-11-02 | G5: 2000-11-03 | H5: 2000-11-04 | J5: 2000-11-26 | K5: 2000-11-27 | L5: 2000-11-28 | M5: 2000-11-29 | N5: 2000-11-30 | O5: 2000-12-01 | P5: 2000-12-02
B13: 2000-11-05 | C13: 2000-11-06 | D13: 2000-11-07 | E13: 2000-11-08 | F13: 2000-11-09 | G13: 2000-11-10 | H13: 2000-11-11 | J13: 2000-12-03 | K13: 2000-12-04 | L13: 2000-12-05 | M13: 2000-12-06 | N13: 2000-12-07 | O13: 2000-12-08 | P13: 2000-12-09
B21: 2000-11-12 | C21: 2000-11-13 | D21: 2000-11-14 | E21: 2000-11-15 | F21: 2000-11-16 | G21: 2000-11-17 | H21: 2000-11-18 | J21: 2000-12-10 | K21: 2000-12-11 | L21: 2000-12-12 | M21: 2000-12-13 | N21: 2000-12-14 | O21: 2000-12-15 | P21: 2000-12-16
B29: 2000-11-19 | C29: 2000-11-20 | D29: 2000-11-21 | E29: 2000-11-22 | F29: 2000-11-23 | G29: 2000-11-24 | H29: 2000-11-25 | J29: 2000-12-17 | K29: 2000-12-18 | L29: 2000-12-19 | M29: 2000-12-20 | N29: 2000-12-21 | O29: 2000-12-22 | P29: 2000-12-23
B37: 2000-11-26 | C37: 2000-11-27 | D37: 2000-11-28 | E37: 2000-11-29 | F37: 2000-11-30 | G37: 2000-12-01 | H37: 2000-12-02 | J37: 2000-12-24 | K37: 2000-12-25 | L37: 2000-12-26 | M37: 2000-12-27 | N37: 2000-12-28 | O37: 2000-12-29 | P37: 2000-12-30
J45: 2000-12-31

Sheet Job Report
B2: J O B R E P O R T
B3: =IF('Top Sheet'!C5="","",'Top Sheet'!C5) -> 
B4: =IF('Top Sheet'!$G$5="Agency:",IF('Top Sheet'!$L$15="","",'Top Sheet'!$L$15),IF('Top Sheet'!$L$12="","",'Top Sheet'!$L$12)) -> 
B5: =IF('Top Sheet'!$G$5="Agency:",IF('Top Sheet'!$L$16="","",'Top Sheet'!$L$16),IF('Top Sheet'!$L$13="","",'Top Sheet'!$L$13)) -> 
B6: =IF('Top Sheet'!$C$10="","","Job #: "&'Top Sheet'!$C$10) -> 
B8: RECONCILIATION
H11: Difference between Logs and Actual Budget | J11: =IF(A_TOTAL_GRAND=0,"",ROUND(('Purchase Order Log'!F30-'Petty Cash Log'!H24-'Payroll Log'!P32-'Sales Log'!E19+'Payroll Log'!P29+'Payroll Log'!R29+'Petty Cash Log'!H19+A_TOTAL_INS+TOTAL_MARKUP)-'Top Sheet'!O47,2)) -> 
B13: =IF(A_TOTAL_GRAND=0,"",IF(J11="","",(IF(J11=0,"The logs and the actual budget are reconciled.",(IF(J11>0,"There are more costs in the logs than in the actual budget.","There are more costs in the actual budget than in the logs.")))))) -> 
B18: MARKUP AND INSURANCE
E20: Show | G20: Show
E22: MARKUP | G22: INSURANCE | J22: =IF(Markup_Show="Hide",EST_TOTAL_MARKUP+OVERAGE_MARKUP,'Top Sheet'!L38+'Top Sheet'!L41+E_TOTAL_TALENTMARKUP+E_TOTAL_TALENTEXPENSESMARKUP) -> #REF! | K22: Est Markup
C24: Production (A to K) | E24: 0 | F24: % | G24: 0 | H24: % | J24: =IF(A_TOTAL_GRAND=0, ,A_TOTAL_MARKUP+A_TOTAL_POSTMARKUP+E_TOTAL_TALENTMARKUP+E_TOTAL_TALENTEXPENSESMARKUP) ->  | K24: Act Markup
C26: Director/Creative Fees (L) | E26: 0 | F26: % | G26: 0 | H26: % | J26: =IF(A_TOTAL_GRAND=0,0,OVER_UNDER) -> 0 | K26: Over / (Under)
C28: Talent (M) | E28: 0 | F28: % | G28: 0 | H28: % | J28: Show this markup on Page 5 Line 270
C30: Talent Expenses (N) | E30: 0 | F30: % | G30: 0 | H30: % | I30: X | J30: Show this markup on Page 5 Line 276
C32: Editorial and Finishing (O and P) | E32: 0 | F32: % | G32: 0 | H32: % | J32: Show this markup on Top Sheet Line 16
C34: 0 | D34: Based On | E34: 0 | F34: % | G34: 0 | H34: %
B36: =IF(Markup_Show="Hide","All markup is hidden on the Top Sheet.","All markup is shown on Top Sheet Line 13 as the Production Fee unless otherwise noted above.") -> All markup is shown on Top Sheet Line 13 as the Production Fee unless otherwise noted above.
B37: =IF(Ins_Show="Hide","Insurance is hidden on the Top Sheet.","Insurance is on Top Sheet Line 11.") -> Insurance is on Top Sheet Line 11.
B42: DETAIL OF ADDITIONAL BILLINGS
B44: No. | C44: Description | J44: Markup | K44: TOTAL BILLED | L44: Row
L45: 1
L46: 2
L47: 3
L48: 4
L49: 5
I51: TOTALS | J51: =SUM(J45:J49) -> 0 | K51: 0
B54: COMPANY NOTES | G54: CURRENCY CONVERTER
I56: Exchange Rate | J56: 1
I57: Currency Reference | J57: US $
G59: All RATES in the Estimated Budget will be multiplied by the
G60: Exchange Rate when the Convert Rates button is pressed.

Sheet Top Sheet
A2: ASSOCIATION OF INDEPENDENT COMMERCIAL PRODUCERS
A3: FILM PRODUCTION COST SUMMARY
B4: Bid Date: | C4: =TODAY() -> 2023-05-22
B5: Production Co.: | G5: Agency:
B6: Address: | G6: Address:
B8: Telephone: | G8: Telephone:
B9: Fax: | G9: Fax:
B10: Job #: | G10: Agency Prod:
B11: Contact: | G11: Agency Art Dir:
B12: Director: | G12: Agency Writer:
B13: Producer: | G13: Agency Bus Mgr:
B14: DP: | G14: Client:
B15: Art Director: | G15: Product:
B16: Editor: | G16: Bid Name:
B17: Pre-Production Days: | G17: Commercial Title | M17: Code | N17: Length | O17: Code | P17: Length
B18: Build & Strike Days: | D18: Hours: | F18: ="1." -> 1.
B19: Pre-light Days: | D19: Hours: | F19: ="2." -> 2.
B20: Studio Shoot Days: | D20: Hours: | F20: ="3." -> 3.
B21: Location Days: | C21: 1 | D21: Hours: | E21: 12 | F21: ="4." -> 4.
B22: Location(s): | F22: ="5." -> 5.
F23: ="6." -> 6.
A25: SUMMARY OF ESTIMATED PRODUCTION COSTS | H25: true costs | I25: insurance | J25: markup | K25: est | L25: ESTIMATED | M25: WORKING | N25: =IF(M47<>0,"VARIANCE",0) -> #REF! | O25: =IF(A_TOTAL_GRAND=0, ,"ACTUAL") ->  | P25: =IF(O47<>0,"VARIANCE",0) -> 0
A26: 1 | B26: Pre-production & Wrap Costs | G26: Totals A & C | H26: =E_TOTAL_A+E_TOTAL_C -> 0 | I26: =ROUND(SUM(E_TOTAL_A+E_TOTAL_C)*ins_AtoK/100,0) -> 0 | J26: =ROUND(SUM(E_TOTAL_A+E_TOTAL_C)*markup_AtoK/100,0) -> 0 | K26: =H26+IF(Ins_Show="Show",0,I26)+IF(Markup_Show="Show",0,J26) -> 0 | L26: =E_TOTAL_1 -> 0 | M26: =W_TOTAL_A+W_TOTAL_C -> 0 | N26: =IF($M$47<>0,M26:M44-L26:L44,0) -> #REF! | O26: =A_TOTAL_A+A_TOTAL_C -> 0 | P26: =IF($O$47<>0,O26:O44-L26:L44,0) -> 0
A27: 2 | B27: Shooting Labor | G27: Total B | H27: =E_TOTAL_B -> 0 | I27: =ROUND(SUM(E_TOTAL_B)*ins_AtoK/100,0) -> 0 | J27: =ROUND(SUM(E_TOTAL_B)*markup_AtoK/100,0) -> 0 | K27: =H27+IF(Ins_Show="Show",0,I27)+IF(Markup_Show="Show",0,J27) -> 0 | L27: =E_TOTAL_2 -> 0 | M27: =W_TOTAL_B -> 0 | O27: =A_TOTAL_B -> 0
A28: 3 | B28: Location & Travel Expenses | G28: Total D | H28: =E_TOTAL_D -> 0 | I28: =ROUND(SUM(E_TOTAL_D)*ins_AtoK/100,0) -> 0 | J28: =ROUND(SUM(E_TOTAL_D)*markup_AtoK/100,0) -> 0 | K28: =H28+IF(Ins_Show="Show",0,I28)+IF(Markup_Show="Show",0,J28) -> 0 | L28: =E_TOTAL_3 -> 0 | M28: =W_TOTAL_D -> 0 | O28: =A_TOTAL_D -> 0
A29: 4 | B29: Props, Wardrobe, and Animals | G29: Total E | H29: =E_TOTAL_E -> 0 | I29: =ROUND(SUM(E_TOTAL_E)*ins_AtoK/100,0) -> 0 | J29: =ROUND(SUM(E_TOTAL_E)*markup_AtoK/100,0) -> 0 | K29: =H29+IF(Ins_Show="Show",0,I29)+IF(Markup_Show="Show",0,J29) -> 0 | L29: =E_TOTAL_4 -> 0 | M29: =W_TOTAL_E -> 0 | O29: =A_TOTAL_E -> 0
A30: 5 | B30: Studio & Set Construction Costs | G30: Totals F, G, & H | H30: =E_TOTAL_F+E_TOTAL_G+E_TOTAL_H -> 0 | I30: =ROUND(SUM(E_TOTAL_F+E_TOTAL_G+E_TOTAL_H)*ins_AtoK/100,0) -> 0 | J30: =ROUND(SUM(E_TOTAL_F+E_TOTAL_G+E_TOTAL_H)*markup_AtoK/100,0) -> 0 | K30: =H30+IF(Ins_Show="Show",0,I30)+IF(Markup_Show="Show",0,J30) -> 0 | L30: =E_TOTAL_5 -> 0 | M30: =W_TOTAL_F+W_TOTAL_G+W_TOTAL_H -> 0 | O30: =A_TOTAL_F+A_TOTAL_G+A_TOTAL_H -> 0
A31: 6 | B31: Equipment Costs | G31: Total I | H31: =E_TOTAL_I -> 0 | I31: =ROUND(SUM(E_TOTAL_I)*ins_AtoK/100,0) -> 0 | J31: =ROUND(SUM(E_TOTAL_I)*markup_AtoK/100,0) -> 0 | K31: =H31+IF(Ins_Show="Show",0,I31)+IF(Markup_Show="Show",0,J31) -> 0 | L31: =E_TOTAL_6 -> 0 | M31: =W_TOTAL_I -> 0 | O31: =A_TOTAL_I -> 0
A32: 7 | B32: Filmstock, Develop and Print | G32: Total J | H32: =E_TOTAL_J -> 0 | I32: =ROUND(SUM(E_TOTAL_J)*ins_AtoK/100,0) -> 0 | J32: =ROUND(SUM(E_TOTAL_J)*markup_AtoK/100,0) -> 0 | K32: =H32+IF(Ins_Show="Show",0,I32)+IF(Markup_Show="Show",0,J32) -> 0 | L32: =E_TOTAL_7 -> 0 | M32: =W_TOTAL_J -> 0 | O32: =A_TOTAL_J -> 0
A33: 8 | B33: Miscellaneous | G33: Total K | H33: =E_TOTAL_K -> 0 | I33: =ROUND(SUM(E_TOTAL_K)*ins_AtoK/100,0) -> 0 | J33: =ROUND(SUM(E_TOTAL_K)*markup_AtoK/100,0) -> 0 | K33: =H33+IF(Ins_Show="Show",0,I33)+IF(Markup_Show="Show",0,J33) -> 0 | L33: =E_TOTAL_8 -> 0 | M33: =W_TOTAL_K -> 0 | O33: =A_TOTAL_K -> 0
A34: 9 | E34: Sub-total | G34: A to K | H34: =SUM(H26:H33) -> 0 | I34: 0 | J34: 0 | K34: 0 | L34: 0 | M34: 0 | O34: =SUM(O26:O33) -> 0
A35: 10 | B35: Director / Creative Fees (not included in Direct Costs) | G35: Total L | H35: =E_TOTAL_L -> 0 | I35: =ROUND(SUM(E_TOTAL_L)*ins_Director/100,0) -> 0 | J35: =ROUND(SUM(E_TOTAL_L)*markup_Director/100,0) -> 0 | K35: =H35+IF(Ins_Show="Show",0,I35)+IF(Markup_Show="Show",0,J35) -> 0 | L35: =E_TOTAL_10 -> 0 | M35: =W_TOTAL_L -> 0 | O35: =A_TOTAL_L -> 0
A36: 11 | B36: Insurance | H36: =I34+I35+I39+I40+IF(Ins_Show="Show",(base_Flat*ins_Flat/100),0) -> #REF! | K36: =IF(Ins_Show="Hide",0,H36) -> #REF! | L36: =E_TOTAL_11 -> #REF! | M36: =IF(OR(W_TOTAL_AtoK<>0,SUM('Page 5'!Y39:Y44)<>0,SUM('Page 5'!Y50:Y54)<>0,W_TOTAL_O<>0,W_TOTAL_P<>0),((W_TOTAL_AtoK*ins_AtoK)+(W_TOTAL_L*ins_Director)+(SUM('Page 5'!Y39:Y44)*ins_Talent)+(SUM('Page 5'!Y50:Y54)*ins_TalentExpenses)+((W_TOTAL_O+W_TOTAL_P)*ins_Post))/100,0)+IF(Ins_Show="Show",(base_Flat*ins_Flat/100)) -> #REF! | O36: =IF(OR(A_TOTAL_AtoK<>0,SUM('Page 5'!AH39:AH44)<>0,SUM(ACTUAL_N)<>0,A_TOTAL_O<>0,A_TOTAL_P<>0),((A_TOTAL_AtoK*ins_AtoK)+(A_TOTAL_L*ins_Director)+(SUM('Page 5'!AH39:AH44)*ins_Talent)+(SUM('Page 5'!AH50:AH54)*ins_TalentExpenses)+((A_TOTAL_O+A_TOTAL_P)*ins_Post))/100,0)+IF(A_TOTAL_AtoK=0, ,IF(Ins_Show="Show",(base_Flat*ins_Flat/100))) -> 0
A37: 12 | E37: Sub-total | G37: Direct Costs | K37: =E_TOTAL_9+E_TOTAL_11 -> #REF! | L37: =E_TOTAL_AtoK+L36 -> #REF! | M37: =W_TOTAL_AtoK+W_TOTAL_INS -> #REF! | O37: =A_TOTAL_AtoK+A_TOTAL_INS -> 0
A38: 13 | B38: Production Fee | C38: =markup_AtoK/100 -> 0 | H38: =J34+J35+IF(D_Talent=0,ROUND(SUM('Page 5'!N39:N44)*markup_Talent/100,0),0)+IF(D_TalentExpenses=0,ROUND(SUM('Page 5'!N50:N54)*markup_TalentExpenses/100,0),0)+IF(D_Post=0,ROUND(SUM(E_TOTAL_O+E_TOTAL_P)*markup_Post/100,0),0)+IF(Markup_Show="Show",(base_Flat*markup_Flat/100),0) -> #REF! | I38: =J34+J35+ROUND(SUM('Page 5'!N39:N44)*markup_Talent/100,0)+ROUND(SUM('Page 5'!N50:N54)*markup_TalentExpenses/100,0)+ROUND(SUM(E_TOTAL_O+E_TOTAL_P)*markup_Post/100,0)++IF(Markup_Show="Show",(base_Flat*markup_Flat/100),0) -> #REF! | J38: =ROUND(SUM('Page 5'!N39:N44)*markup_Talent/100,0) -> 0 | K38: =IF(Markup_Show="Hide",0,H38) -> #REF! | L38: =E_TOTAL_13 -> #REF! | M38: =IF(OR(W_TOTAL_AtoK<>0,SUM('Page 5'!Y39:Y44)<>0,SUM('Page 5'!Y50:Y54),W_TOTAL_O<>0,W_TOTAL_P<>0),E_TOTAL_MARKUP+OVERAGE_MARKUP,0) -> #REF! | O38: =IF(OR(A_TOTAL_AtoK<>0,SUM('Page 5'!AH39:AH44)<>0,SUM(ACTUAL_N)<>0,A_TOTAL_O<>0,A_TOTAL_P<>0),E_TOTAL_MARKUP+OVERAGE_MARKUP,0) -> 0
A39: 14 | B39: Talent | G39: Totals M & N | H39: =E_TOTAL_M+E_TOTAL_N -> 0 | I39: =ROUND(SUM('Page 5'!N39:N44)*ins_Talent/100+SUM('Page 5'!N50:N54)*ins_TalentExpenses/100,0) -> 0 | J39: =ROUND(SUM('Page 5'!N50:N54)*markup_TalentExpenses/100,0) -> 0 | K39: =H39+IF(Ins_Show="Show",0,I39)+IF(Markup_Show="Show",0,J38+J39) -> 0 | L39: =E_TOTAL_14 -> 0 | M39: =W_TOTAL_M+W_TOTAL_N -> 0 | O39: =A_TOTAL_M+A_TOTAL_N -> 0
A40: 15 | B40: Off-line & Crew Travel Expenses | G40: Totals O & P | H40: =E_TOTAL_O+E_TOTAL_P -> #REF! | I40: =ROUND(SUM(E_TOTAL_O+E_TOTAL_P)*ins_Post/100,0) -> #REF! | J40: =ROUND(SUM(E_TOTAL_O+E_TOTAL_P)*markup_Post/100,0) -> #REF! | K40: =H40+IF(Ins_Show="Show",0,I40)+IF(Markup_Show="Show",0,J40) -> #REF! | L40: =E_TOTAL_15 -> #REF! | M40: =W_TOTAL_O+W_TOTAL_P -> #REF! | O40: =A_TOTAL_O+A_TOTAL_P -> 0
A41: 16 | B41: =IF(Markup_Show="Hide",0,IF(D_Post=0,0,"Editorial Fee")) -> 0 | K41: =IF(Markup_Show="Hide",0,IF(D_Post=0,0,ROUND(SUM(E_TOTAL_O+E_TOTAL_P)*markup_Post/100,0))) -> 0 | L41: =E_TOTAL_16 -> 0 | M41: =E_TOTAL_POSTMARKUP -> 0 | O41: =IF(OR(A_TOTAL_AtoK<>0,SUM('Page 5'!AH39:AH44)<>0,SUM(ACTUAL_N)<>0,A_TOTAL_O<>0,A_TOTAL_P<>0),E_TOTAL_POSTMARKUP,0) -> 0
A42: 17 | M42: =L42 -> 
A43: 18
A44: 19 | B44: =IF(OVERAGE_TOTALS=0, ,"Additional Billings") ->  | L44: =OVERAGE_TOTALS -> 0
D46: Contracted Total | E46: =E_TOTAL_GRAND-OVERAGE_TOTALS -> #REF!
G47: GRAND TOTAL | L47: =SUM(L37:L44)+L35 -> #REF! | M47: #REF! | N47: =IF($M$47<>0,M47:M63-L47:L63,0) -> #REF! | O47: =SUM(O37:O44)+O35 -> 0 | P47: =IF($O$47<>0,O47-L47,0) -> 0
D48: Contingency/Weather Day
A50: COMMENTS
N62: © 1996-2003 PointZero Media LLC

Sheet Page 1A
A2: =IF('Top Sheet'!$C$5="","",'Top Sheet'!$C$5) ->  | U2: Page 1A | AD2: Page 1A
A3: =IF('Top Sheet'!$G$5="Agency:",IF('Top Sheet'!$L$15="","",'Top Sheet'!$L$15),IF('Top Sheet'!$L$12="","",'Top Sheet'!$L$12)) -> 
A4: =IF('Top Sheet'!$G$5="Agency:",IF('Top Sheet'!$L$16="","",'Top Sheet'!$L$16),IF('Top Sheet'!$L$13="","",'Top Sheet'!$L$13)) ->  | AF4: OVERTIME CALCULATOR
B5: PRE-PRO & WRAP | E5: % | F5: OT | I5: OT Hours | K5: Rate | O5: % | P5: OT | S5: OT Hours | W5: Payroll Log Detail | AA5: Payroll Log Costs | AC5: Other | AF5: % | AG5: OT | AI5: OT Hours | AK5: OVERTIME
A6: A | B6: CREW | D6: Notes | E6: PT/P&W | F6: Based | G6: Days | H6: Rate | I6: 1.5 | J6: 2 | K6: Change | L6: ESTIMATED | M6: PT/P&W | O6: PT/P&W | P6: Based | Q6: Days | R6: Rate | S6: =I6 -> 1.5 | T6: 2 | U6: WORKING | V6: PT/P&W | W6: Days | X6: Rate | Y6: OT Hrs | Z6: Misc | AA6: ST | AB6: OT | AC6: Logs | AD6: ACTUAL | AF6: PT/P&W | AG6: Based | AH6: Rate | AI6: 1.5 | AJ6: 2 | AK6: TOTAL
A7: 1 | B7: Line Producer | E7: 29 | F7: 10 | H7: 1200 | K7: =H7:H56*X_RATE -> 1200 | L7: =ROUND((G7:G56*H7:H56)+(H7:H56/F7:F56*$I$6*I7:I56)+(H7:H56/F7:F56*$J$6*J7:J56),0) -> 0 | M7: =ROUND(L7:L56*E7:E56/100,2) -> 0 | O7: =E7 -> 29 | P7: 10 | R7: 1200 | U7: =ROUND((Q7:Q56*R7:R56)+(R7:R56/P7:P56*$I$6*S7:S56)+(R7:R56/P7:P56*$J$6*T7:T56),2) -> 0 | V7: =ROUND(U7:U56*O7:O56/100,2) -> 0 | W7: 0 | X7: 0 | Y7: 0 | Z7: 0 | AA7: 0 | AB7: 0 | AC7: 0 | AD7: 0 | AF7: =O7 -> 29 | AG7: 10 | AH7: =R7 -> 1200 | AK7: =IF(AG7:AG56=0,0,ROUND((AH7:AH56/AG7:AG56*$AI$6*AI7:AI56)+(AH7:AH56/AG7:AG56*$AJ$6*AJ7:AJ56),2)) -> 0 | AL7: =ROUND(AK7:AK56*AF7:AF56/100,2) -> 0
A8: 2 | B8: Assistant Director | E8: 43 | F8: 12 | H8: 1200 | K8: 1200 | L8: 0 | M8: 0 | O8: =E8 -> 43 | P8: 12 | R8: 1200 | U8: 0 | V8: 0 | W8: 0 | X8: 0 | Y8: 0 | Z8: 0 | AA8: 0 | AB8: 0 | AC8: 0 | AD8: 0 | AF8: =O8 -> 43 | AG8: 12 | AH8: 1200 | AK8: 0 | AL8: 0
A9: 3 | B9: Director of Photography | E9: 31 | F9: 10 | H9: 4500 | K9: 4500 | L9: 0 | M9: 0 | O9: =E9 -> 31 | P9: 10 | R9: 4500 | U9: 0 | V9: 0 | W9: 0 | X9: 0 | Y9: 0 | Z9: 0 | AA9: 0 | AB9: 0 | AC9: 0 | AD9: 0 | AF9: =O9 -> 31 | AG9: 10 | AH9: 4500 | AK9: 0 | AL9: 0
A10: 4 | B10: Camera Operator | E10: 31 | F10: 10 | H10: 1500 | K10: 1500 | L10: 0 | M10: 0 | O10: =E10 -> 31 | P10: 10 | R10: 1500 | U10: 0 | V10: 0 | W10: 0 | X10: 0 | Y10: 0 | Z10: 0 | AA10: 0 | AB10: 0 | AC10: 0 | AD10: 0 | AF10: =O10 -> 31 | AG10: 10 | AH10: 1500 | AK10: 0 | AL10: 0
A11: 5 | B11: 1st Camera Assistant | E11: 31 | F11: 10 | H11: 600 | K11: 600 | L11: 0 | M11: 0 | O11: =E11 -> 31 | P11: 10 | R11: 600 | U11: 0 | V11: 0 | W11: 0 | X11: 0 | Y11: 0 | Z11: 0 | AA11: 0 | AB11: 0 | AC11: 0 | AD11: 0 | AF11: =O11 -> 31 | AG11: 10 | AH11: 600 | AK11: 0 | AL11: 0
A12: 6 | B12: 2nd AC | E12: 31 | F12: 10 | H12: 575 | K12: 575 | L12: 0 | M12: 0 | O12: =E12 -> 31 | P12: 10 | R12: 575 | U12: 0 | V12: 0 | W12: 0 | X12: 0 | Y12: 0 | Z12: 0 | AA12: 0 | AB12: 0 | AC12: 0 | AD12: 0 | AF12: =O12 -> 31 | AG12: 10 | AH12: 575 | AK12: 0 | AL12: 0
A13: 7 | B13: Loader | E13: 31 | F13: 10 | H13: 550 | K13: 550 | L13: 0 | M13: 0 | O13: =E13 -> 31 | P13: 10 | R13: 550 | U13: 0 | V13: 0 | W13: 0 | X13: 0 | Y13: 0 | Z13: 0 | AA13: 0 | AB13: 0 | AC13: 0 | AD13: 0 | AF13: =O13 -> 31 | AG13: 10 | AH13: 550 | AK13: 0 | AL13: 0
A14: 8 | B14: Production Manager | E14: 29 | F14: 10 | H14: 600 | K14: 600 | L14: 0 | M14: 0 | O14: =E14 -> 29 | P14: 10 | R14: 600 | U14: 0 | V14: 0 | W14: 0 | X14: 0 | Y14: 0 | Z14: 0 | AA14: 0 | AB14: 0 | AC14: 0 | AD14: 0 | AF14: =O14 -> 29 | AG14: 10 | AH14: 600 | AK14: 0 | AL14: 0
A15: 9 | B15: Production Coordinator | E15: 29 | F15: 10 | H15: 400 | K15: 400 | L15: 0 | M15: 0 | O15: =E15 -> 29 | P15: 10 | R15: 400 | U15: 0 | V15: 0 | W15: 0 | X15: 0 | Y15: 0 | Z15: 0 | AA15: 0 | AB15: 0 | AC15: 0 | AD15: 0 | AF15: =O15 -> 29 | AG15: 10 | AH15: 400 | AK15: 0 | AL15: 0
A16: 10 | B16: 2nd AD | E16: 43 | F16: 12 | H16: 550 | K16: 550 | L16: 0 | M16: 0 | O16: =E16 -> 43 | P16: 12 | R16: 550 | U16: 0 | V16: 0 | W16: 0 | X16: 0 | Y16: 0 | Z16: 0 | AA16: 0 | AB16: 0 | AC16: 0 | AD16: 0 | AF16: =O16 -> 43 | AG16: 12 | AH16: 550 | AK16: 0 | AL16: 0
A17: 11 | B17: Gaffer | E17: 31 | F17: 10 | H17: 600 | K17: 600 | L17: 0 | M17: 0 | O17: =E17 -> 31 | P17: 10 | R17: 600 | U17: 0 | V17: 0 | W17: 0 | X17: 0 | Y17: 0 | Z17: 0 | AA17: 0 | AB17: 0 | AC17: 0 | AD17: 0 | AF17: =O17 -> 31 | AG17: 10 | AH17: 600 | AK17: 0 | AL17: 0
A18: 12 | B18: Best Boy Electric | E18: 31 | F18: 10 | H18: 575 | K18: 575 | L18: 0 | M18: 0 | O18: =E18 -> 31 | P18: 10 | R18: 575 | U18: 0 | V18: 0 | W18: 0 | X18: 0 | Y18: 0 | Z18: 0 | AA18: 0 | AB18: 0 | AC18: 0 | AD18: 0 | AF18: =O18 -> 31 | AG18: 10 | AH18: 575 | AK18: 0 | AL18: 0
A19: 13 | B19: Electric | E19: 31 | F19: 10 | H19: 550 | K19: 550 | L19: 0 | M19: 0 | O19: =E19 -> 31 | P19: 10 | R19: 550 | U19: 0 | V19: 0 | W19: 0 | X19: 0 | Y19: 0 | Z19: 0 | AA19: 0 | AB19: 0 | AC19: 0 | AD19: 0 | AF19: =O19 -> 31 | AG19: 10 | AH19: 550 | AK19: 0 | AL19: 0
A20: 14 | B20: Electric Driver | E20: 31 | F20: 10 | H20: 550 | K20: 550 | L20: 0 | M20: 0 | O20: =E20 -> 31 | P20: 10 | R20: 550 | U20: 0 | V20: 0 | W20: 0 | X20: 0 | Y20: 0 | Z20: 0 | AA20: 0 | AB20: 0 | AC20: 0 | AD20: 0 | AF20: =O20 -> 31 | AG20: 10 | AH20: 550 | AK20: 0 | AL20: 0
A21: 15 | B21: Rigger | E21: 31 | F21: 10 | H21: 550 | K21: 550 | L21: 0 | M21: 0 | O21: =E21 -> 31 | P21: 10 | R21: 550 | U21: 0 | V21: 0 | W21: 0 | X21: 0 | Y21: 0 | Z21: 0 | AA21: 0 | AB21: 0 | AC21: 0 | AD21: 0 | AF21: =O21 -> 31 | AG21: 10 | AH21: 550 | AK21: 0 | AL21: 0
A22: 16 | B22: Key Grip | E22: 31 | F22: 10 | H22: 600 | K22: 600 | L22: 0 | M22: 0 | O22: =E22 -> 31 | P22: 10 | R22: 600 | U22: 0 | V22: 0 | W22: 0 | X22: 0 | Y22: 0 | Z22: 0 | AA22: 0 | AB22: 0 | AC22: 0 | AD22: 0 | AF22: =O22 -> 31 | AG22: 10 | AH22: 600 | AK22: 0 | AL22: 0
A23: 17 | B23: Best Boy Grip | E23: 31 | F23: 10 | H23: 575 | K23: 575 | L23: 0 | M23: 0 | O23: =E23 -> 31 | P23: 10 | R23: 575 | U23: 0 | V23: 0 | W23: 0 | X23: 0 | Y23: 0 | Z23: 0 | AA23: 0 | AB23: 0 | AC23: 0 | AD23: 0 | AF23: =O23 -> 31 | AG23: 10 | AH23: 575 | AK23: 0 | AL23: 0
A24: 18 | B24: Grip | E24: 31 | F24: 10 | H24: 550 | K24: 550 | L24: 0 | M24: 0 | O24: =E24 -> 31 | P24: 10 | R24: 550 | U24: 0 | V24: 0 | W24: 0 | X24: 0 | Y24: 0 | Z24: 0 | AA24: 0 | AB24: 0 | AC24: 0 | AD24: 0 | AF24: =O24 -> 31 | AG24: 10 | AH24: 550 | AK24: 0 | AL24: 0
A25: 19 | B25: Grip Driver | E25: 31 | F25: 10 | H25: 550 | K25: 550 | L25: 0 | M25: 0 | O25: =E25 -> 31 | P25: 10 | R25: 550 | U25: 0 | V25: 0 | W25: 0 | X25: 0 | Y25: 0 | Z25: 0 | AA25: 0 | AB25: 0 | AC25: 0 | AD25: 0 | AF25: =O25 -> 31 | AG25: 10 | AH25: 550 | AK25: 0 | AL25: 0
A26: 20 | B26: Mixer | E26: 31 | F26: 10 | H26: 730 | K26: 730 | L26: 0 | M26: 0 | O26: =E26 -> 31 | P26: 10 | R26: 730 | U26: 0 | V26: 0 | W26: 0 | X26: 0 | Y26: 0 | Z26: 0 | AA26: 0 | AB26: 0 | AC26: 0 | AD26: 0 | AF26: =O26 -> 31 | AG26: 10 | AH26: 730 | AK26: 0 | AL26: 0
A27: 21 | B27: Boom Man | E27: 31 | F27: 10 | H27: 525 | K27: 525 | L27: 0 | M27: 0 | O27: =E27 -> 31 | P27: 10 | R27: 525 | U27: 0 | V27: 0 | W27: 0 | X27: 0 | Y27: 0 | Z27: 0 | AA27: 0 | AB27: 0 | AC27: 0 | AD27: 0 | AF27: =O27 -> 31 | AG27: 10 | AH27: 525 | AK27: 0 | AL27: 0
A28: 22 | B28: Playback | E28: 31 | F28: 10 | H28: 600 | K28: 600 | L28: 0 | M28: 0 | O28: =E28 -> 31 | P28: 10 | R28: 600 | U28: 0 | V28: 0 | W28: 0 | X28: 0 | Y28: 0 | Z28: 0 | AA28: 0 | AB28: 0 | AC28: 0 | AD28: 0 | AF28: =O28 -> 31 | AG28: 10 | AH28: 600 | AK28: 0 | AL28: 0
A29: 23 | B29: Make-up | E29: 31 | F29: 10 | H29: 1000 | K29: 1000 | L29: 0 | M29: 0 | O29: =E29 -> 31 | P29: 10 | R29: 1000 | U29: 0 | V29: 0 | W29: 0 | X29: 0 | Y29: 0 | Z29: 0 | AA29: 0 | AB29: 0 | AC29: 0 | AD29: 0 | AF29: =O29 -> 31 | AG29: 10 | AH29: 1000 | AK29: 0 | AL29: 0
A30: 24 | B30: Hair Stylist | E30: 31 | F30: 10 | H30: 1000 | K30: 1000 | L30: 0 | M30: 0 | O30: =E30 -> 31 | P30: 10 | R30: 1000 | U30: 0 | V30: 0 | W30: 0 | X30: 0 | Y30: 0 | Z30: 0 | AA30: 0 | AB30: 0 | AC30: 0 | AD30: 0 | AF30: =O30 -> 31 | AG30: 10 | AH30: 1000 | AK30: 0 | AL30: 0
A31: 25 | B31: Make-up/Hair Assts. | E31: 31 | F31: 10 | H31: 450 | K31: 450 | L31: 0 | M31: 0 | O31: =E31 -> 31 | P31: 10 | R31: 450 | U31: 0 | V31: 0 | W31: 0 | X31: 0 | Y31: 0 | Z31: 0 | AA31: 0 | AB31: 0 | AC31: 0 | AD31: 0 | AF31: =O31 -> 31 | AG31: 10 | AH31: 450 | AK31: 0 | AL31: 0
A32: 26 | B32: Stylist | E32: 31 | F32: 10 | H32: 1000 | K32: 1000 | L32: 0 | M32: 0 | O32: =E32 -> 31 | P32: 10 | R32: 1000 | U32: 0 | V32: 0 | W32: 0 | X32: 0 | Y32: 0 | Z32: 0 | AA32: 0 | AB32: 0 | AC32: 0 | AD32: 0 | AF32: =O32 -> 31 | AG32: 10 | AH32: 1000 | AK32: 0 | AL32: 0
A33: 27 | B33: Wardrobe | E33: 31 | F33: 10 | H33: 450 | K33: 450 | L33: 0 | M33: 0 | O33: =E33 -> 31 | P33: 10 | R33: 450 | U33: 0 | V33: 0 | W33: 0 | X33: 0 | Y33: 0 | Z33: 0 | AA33: 0 | AB33: 0 | AC33: 0 | AD33: 0 | AF33: =O33 -> 31 | AG33: 10 | AH33: 450 | AK33: 0 | AL33: 0
A34: 28 | B34: Script Supervisor | E34: 31 | F34: 10 | H34: 600 | K34: 600 | L34: 0 | M34: 0 | O34: =E34 -> 31 | P34: 10 | R34: 600 | U34: 0 | V34: 0 | W34: 0 | X34: 0 | Y34: 0 | Z34: 0 | AA34: 0 | AB34: 0 | AC34: 0 | AD34: 0 | AF34: =O34 -> 31 | AG34: 10 | AH34: 600 | AK34: 0 | AL34: 0
A35: 29 | B35: Home Economist | E35: 31 | F35: 10 | H35: 1200 | K35: 1200 | L35: 0 | M35: 0 | O35: =E35 -> 31 | P35: 10 | R35: 1200 | U35: 0 | V35: 0 | W35: 0 | X35: 0 | Y35: 0 | Z35: 0 | AA35: 0 | AB35: 0 | AC35: 0 | AD35: 0 | AF35: =O35 -> 31 | AG35: 10 | AH35: 1200 | AK35: 0 | AL35: 0
A36: 30 | B36: Asst. Home Economist | E36: 31 | F36: 10 | H36: 600 | K36: 600 | L36: 0 | M36: 0 | O36: =E36 -> 31 | P36: 10 | R36: 600 | U36: 0 | V36: 0 | W36: 0 | X36: 0 | Y36: 0 | Z36: 0 | AA36: 0 | AB36: 0 | AC36: 0 | AD36: 0 | AF36: =O36 -> 31 | AG36: 10 | AH36: 600 | AK36: 0 | AL36: 0
A37: 31 | B37: VTR Operator | E37: 31 | F37: 10 | H37: 600 | K37: 600 | L37: 0 | M37: 0 | O37: =E37 -> 31 | P37: 10 | R37: 600 | U37: 0 | V37: 0 | W37: 0 | X37: 0 | Y37: 0 | Z37: 0 | AA37: 0 | AB37: 0 | AC37: 0 | AD37: 0 | AF37: =O37 -> 31 | AG37: 10 | AH37: 600 | AK37: 0 | AL37: 0
A38: 32 | B38: Effects | E38: 31 | F38: 10 | H38: 650 | K38: 650 | L38: 0 | M38: 0 | O38: =E38 -> 31 | P38: 10 | R38: 650 | U38: 0 | V38: 0 | W38: 0 | X38: 0 | Y38: 0 | Z38: 0 | AA38: 0 | AB38: 0 | AC38: 0 | AD38: 0 | AF38: =O38 -> 31 | AG38: 10 | AH38: 650 | AK38: 0 | AL38: 0
A39: 33 | B39: FX Assistant | E39: 31 | F39: 10 | H39: 525 | K39: 525 | L39: 0 | M39: 0 | O39: =E39 -> 31 | P39: 10 | R39: 525 | U39: 0 | V39: 0 | W39: 0 | X39: 0 | Y39: 0 | Z39: 0 | AA39: 0 | AB39: 0 | AC39: 0 | AD39: 0 | AF39: =O39 -> 31 | AG39: 10 | AH39: 525 | AK39: 0 | AL39: 0
A40: 34 | B40: 2nd 2nd AD | E40: 43 | F40: 10 | H40: 400 | K40: 400 | L40: 0 | M40: 0 | O40: =E40 -> 43 | P40: 10 | R40: 400 | U40: 0 | V40: 0 | W40: 0 | X40: 0 | Y40: 0 | Z40: 0 | AA40: 0 | AB40: 0 | AC40: 0 | AD40: 0 | AF40: =O40 -> 43 | AG40: 10 | AH40: 400 | AK40: 0 | AL40: 0
A41: 35 | B41: Camera Car Driver | E41: 31 | F41: 10 | H41: 650 | K41: 650 | L41: 0 | M41: 0 | O41: =E41 -> 31 | P41: 10 | R41: 650 | U41: 0 | V41: 0 | W41: 0 | X41: 0 | Y41: 0 | Z41: 0 | AA41: 0 | AB41: 0 | AC41: 0 | AD41: 0 | AF41: =O41 -> 31 | AG41: 10 | AH41: 650 | AK41: 0 | AL41: 0
A42: 36 | B42: Crane Tech | E42: 31 | F42: 10 | H42: 650 | K42: 650 | L42: 0 | M42: 0 | O42: =E42 -> 31 | P42: 10 | R42: 650 | U42: 0 | V42: 0 | W42: 0 | X42: 0 | Y42: 0 | Z42: 0 | AA42: 0 | AB42: 0 | AC42: 0 | AD42: 0 | AF42: =O42 -> 31 | AG42: 10 | AH42: 650 | AK42: 0 | AL42: 0
A43: 37 | B43: Remote Head Tech | E43: 31 | F43: 10 | H43: 650 | K43: 650 | L43: 0 | M43: 0 | O43: =E43 -> 31 | P43: 10 | R43: 650 | U43: 0 | V43: 0 | W43: 0 | X43: 0 | Y43: 0 | Z43: 0 | AA43: 0 | AB43: 0 | AC43: 0 | AD43: 0 | AF43: =O43 -> 31 | AG43: 10 | AH43: 650 | AK43: 0 | AL43: 0
A44: 38 | B44: Location Scout | E44: 31 | F44: 10 | H44: 650 | K44: 650 | L44: 0 | M44: 0 | O44: =E44 -> 31 | P44: 10 | R44: 650 | U44: 0 | V44: 0 | W44: 0 | X44: 0 | Y44: 0 | Z44: 0 | AA44: 0 | AB44: 0 | AC44: 0 | AD44: 0 | AF44: =O44 -> 31 | AG44: 10 | AH44: 650 | AK44: 0 | AL44: 0
A45: 39 | B45: Assistant Scout | E45: 31 | F45: 10 | H45: 450 | K45: 450 | L45: 0 | M45: 0 | O45: =E45 -> 31 | P45: 10 | R45: 450 | U45: 0 | V45: 0 | W45: 0 | X45: 0 | Y45: 0 | Z45: 0 | AA45: 0 | AB45: 0 | AC45: 0 | AD45: 0 | AF45: =O45 -> 31 | AG45: 10 | AH45: 450 | AK45: 0 | AL45: 0
A46: 40 | B46: Nurse/1st Aid | E46: 31 | F46: 10 | H46: 360 | K46: 360 | L46: 0 | M46: 0 | O46: =E46 -> 31 | P46: 10 | R46: 360 | U46: 0 | V46: 0 | W46: 0 | X46: 0 | Y46: 0 | Z46: 0 | AA46: 0 | AB46: 0 | AC46: 0 | AD46: 0 | AF46: =O46 -> 31 | AG46: 10 | AH46: 360 | AK46: 0 | AL46: 0
A47: 41 | B47: Craft Service | E47: 31 | F47: 10 | H47: 350 | K47: 350 | L47: 0 | M47: 0 | O47: =E47 -> 31 | P47: 10 | R47: 350 | U47: 0 | V47: 0 | W47: 0 | X47: 0 | Y47: 0 | Z47: 0 | AA47: 0 | AB47: 0 | AC47: 0 | AD47: 0 | AF47: =O47 -> 31 | AG47: 10 | AH47: 350 | AK47: 0 | AL47: 0
A48: 42 | B48: Firemen | E48: 20 | F48: 10 | H48: 500 | K48: 500 | L48: 0 | M48: 0 | O48: =E48 -> 20 | P48: 10 | R48: 500 | U48: 0 | V48: 0 | W48: 0 | X48: 0 | Y48: 0 | Z48: 0 | AA48: 0 | AB48: 0 | AC48: 0 | AD48: 0 | AF48: =O48 -> 20 | AG48: 10 | AH48: 500 | AK48: 0 | AL48: 0
A49: 43 | B49: Policemen | E49: 20 | F49: 10 | H49: 500 | K49: 500 | L49: 0 | M49: 0 | O49: =E49 -> 20 | P49: 10 | R49: 500 | U49: 0 | V49: 0 | W49: 0 | X49: 0 | Y49: 0 | Z49: 0 | AA49: 0 | AB49: 0 | AC49: 0 | AD49: 0 | AF49: =O49 -> 20 | AG49: 10 | AH49: 500 | AK49: 0 | AL49: 0
A50: 44 | B50: Welfare/Teacher | E50: 20 | F50: 10 | H50: 500 | K50: 500 | L50: 0 | M50: 0 | O50: =E50 -> 20 | P50: 10 | R50: 500 | U50: 0 | V50: 0 | W50: 0 | X50: 0 | Y50: 0 | Z50: 0 | AA50: 0 | AB50: 0 | AC50: 0 | AD50: 0 | AF50: =O50 -> 20 | AG50: 10 | AH50: 500 | AK50: 0 | AL50: 0
A51: 45 | B51: Choreographer | E51: 20 | F51: 10 | H51: 2500 | K51: 2500 | L51: 0 | M51: 0 | O51: =E51 -> 20 | P51: 10 | R51: 2500 | U51: 0 | V51: 0 | W51: 0 | X51: 0 | Y51: 0 | Z51: 0 | AA51: 0 | AB51: 0 | AC51: 0 | AD51: 0 | AF51: =O51 -> 20 | AG51: 10 | AH51: 2500 | AK51: 0 | AL51: 0
A52: 46 | B52: Gang Boss | E52: 31 | F52: 10 | H52: 460 | K52: 460 | L52: 0 | M52: 0 | O52: =E52 -> 31 | P52: 10 | R52: 460 | U52: 0 | V52: 0 | W52: 0 | X52: 0 | Y52: 0 | Z52: 0 | AA52: 0 | AB52: 0 | AC52: 0 | AD52: 0 | AF52: =O52 -> 31 | AG52: 10 | AH52: 460 | AK52: 0 | AL52: 0
A53: 47 | B53: Teamsters/Driver | E53: 31 | F53: 10 | H53: 420 | K53: 420 | L53: 0 | M53: 0 | O53: =E53 -> 31 | P53: 10 | R53: 420 | U53: 0 | V53: 0 | W53: 0 | X53: 0 | Y53: 0 | Z53: 0 | AA53: 0 | AB53: 0 | AC53: 0 | AD53: 0 | AF53: =O53 -> 31 | AG53: 10 | AH53: 420 | AK53: 0 | AL53: 0
A54: 48 | B54: Teamster/Caterers | C54: 2 people | E54: 31 | F54: 10 | H54: 850 | K54: 850 | L54: 0 | M54: 0 | O54: =E54 -> 31 | P54: 10 | R54: 850 | U54: 0 | V54: 0 | W54: 0 | X54: 0 | Y54: 0 | Z54: 0 | AA54: 0 | AB54: 0 | AC54: 0 | AD54: 0 | AF54: =O54 -> 31 | AG54: 10 | AH54: 850 | AK54: 0 | AL54: 0
A55: 49 | B55: Production Assistant | E55: 29 | F55: 10 | H55: 200 | K55: 200 | L55: 0 | M55: 0 | O55: =E55 -> 29 | P55: 10 | R55: 200 | U55: 0 | V55: 0 | W55: 0 | X55: 0 | Y55: 0 | Z55: 0 | AA55: 0 | AB55: 0 | AC55: 0 | AD55: 0 | AF55: =O55 -> 29 | AG55: 10 | AH55: 200 | AK55: 0 | AL55: 0
A56: 50 | B56: Runner | E56: 29 | F56: 10 | H56: 200 | K56: 200 | L56: 0 | M56: 0 | O56: =E56 -> 29 | P56: 10 | R56: 200 | U56: 0 | V56: 0 | W56: 0 | X56: 0 | Y56: 0 | Z56: 0 | AA56: 0 | AB56: 0 | AC56: 0 | AD56: 0 | AF56: =O56 -> 29 | AG56: 10 | AH56: 200 | AK56: 0 | AL56: 0
G57: =SUM(G7:G56) -> 0 | J57: Sub-total A | L57: =SUM(L7:L56) -> 0 | M57: 0 | Q57: =SUM(Q7:Q56) -> 0 | T57: Sub-total Aw | U57: =SUM(U7:U56) -> 0 | V57: 0 | AC57: Sub-total A | AD57: =SUM(AD7:AD56) -> 0 | AJ57: Sub-total OT | AK57: =SUM(AK7:AK56) -> 0 | AL57: 0
I58: PT/P&W | L58: =PT_A -> 0 | S58: PT/P&W | U58: =PT_Aw -> 0 | AB58: PT/P&W | AD58: 0 | AJ58: PT/P&W | AK58: =PT_Aot -> 0
I59: TOTAL A | L59: =SUM(L57:L58) -> 0 | S59: TOTAL Aw | U59: =SUM(U57:U58) -> 0 | AB59: TOTAL A | AD59: =SUM(AD57:AD58) -> 0 | AJ59: TOTAL OT | AK59: =SUM(AK57:AK58) -> 0

Sheet Page 1B
A2: =IF('Top Sheet'!$C$5="","",'Top Sheet'!$C$5) ->  | U2: Page 1B | AD2: Page 1B
A3: =IF('Top Sheet'!$G$5="Agency:",IF('Top Sheet'!$L$15="","",'Top Sheet'!$L$15),IF('Top Sheet'!$L$12="","",'Top Sheet'!$L$12)) -> 
A4: =IF('Top Sheet'!$G$5="Agency:",IF('Top Sheet'!$L$16="","",'Top Sheet'!$L$16),IF('Top Sheet'!$L$13="","",'Top Sheet'!$L$13)) ->  | AF4: OVERTIME CALCULATOR
B5: SHOOTING | E5: % | F5: OT | I5: OT Hours | K5: Rate | O5: % | P5: OT | S5: OT Hours | W5: Payroll Log Detail | Z5: Payroll Log Costs | AC5: Other | AF5: % | AG5: OT | AI5: OT Hours | AK5: OVERTIME
A6: B | B6: CREW | D6: Notes | E6: PT/P&W | F6: Based | G6: Days | H6: Rate | I6: 1.5 | J6: 2 | K6: Change | L6: ESTIMATED | M6: PT/P&W | O6: PT/P&W | P6: Based | Q6: Days | R6: Rate | S6: =I6 -> 1.5 | T6: 2 | U6: WORKING | V6: PT/P&W | W6: Days | X6: Rate | Y6: OT Hrs | Z6: Misc | AA6: ST | AB6: OT | AC6: Logs | AD6: ACTUAL | AF6: PT/P&W | AG6: Based | AH6: Rate | AI6: 1.5 | AJ6: 2 | AK6: TOTAL
A7: 51 | B7: ='Page 1A'!B7 -> Line Producer | E7: ='Page 1A'!E7 -> 29 | F7: 10 | H7: ='Page 1A'!H7 -> 1200 | K7: =H7:H56*X_RATE -> 1200 | L7: =ROUND((G7:G56*H7:H56)+(H7:H56/F7:F56*$I$6*I7:I56)+(H7:H56/F7:F56*$J$6*J7:J56),0) -> 0 | M7: =ROUND(L7:L56*E7:E56/100,0) -> 0 | O7: =E7 -> 29 | P7: 10 | R7: 1200 | U7: =ROUND((Q7:Q56*R7:R56)+(R7:R56/P7:P56*$S$6*S7:S56)+(R7:R56/P7:P56*$T$6*T7:T56),2) -> 0 | V7: =ROUND(U7:U56*O7:O56/100,2) -> 0 | W7: 0 | X7: 0 | Y7: 0 | Z7: 0 | AA7: 0 | AB7: 0 | AC7: 0 | AD7: 0 | AF7: =O7 -> 29 | AG7: 10 | AH7: =R7 -> 1200 | AK7: =IF(AG7:AG56=0,0,ROUND((AH7:AH56/AG7:AG56*$AI$6*AI7:AI56)+(AH7:AH56/AG7:AG56*$AJ$6*AJ7:AJ56),2)) -> 0 | AL7: =ROUND(AK7:AK56*AF7:AF56/100,2) -> 0
A8: 52 | B8: ='Page 1A'!B8 -> Assistant Director | E8: ='Page 1A'!E8 -> 43 | F8: 12 | H8: ='Page 1A'!H8 -> 1200 | K8: 1200 | L8: 0 | M8: 0 | O8: =E8 -> 43 | P8: 12 | R8: 1200 | U8: 0 | V8: 0 | W8: 0 | X8: 0 | Y8: 0 | Z8: 0 | AA8: 0 | AB8: 0 | AC8: 0 | AD8: 0 | AF8: =O8 -> 43 | AG8: 12 | AH8: 1200 | AK8: 0 | AL8: 0
A9: 53 | B9: ='Page 1A'!B9 -> Director of Photography | E9: ='Page 1A'!E9 -> 31 | F9: 10 | H9: ='Page 1A'!H9 -> 4500 | K9: 4500 | L9: 0 | M9: 0 | O9: =E9 -> 31 | P9: 10 | R9: 4500 | U9: 0 | V9: 0 | W9: 0 | X9: 0 | Y9: 0 | Z9: 0 | AA9: 0 | AB9: 0 | AC9: 0 | AD9: 0 | AF9: =O9 -> 31 | AG9: 10 | AH9: 4500 | AK9: 0 | AL9: 0
A10: 54 | B10: ='Page 1A'!B10 -> Camera Operator | E10: ='Page 1A'!E10 -> 31 | F10: 10 | H10: ='Page 1A'!H10 -> 1500 | K10: 1500 | L10: 0 | M10: 0 | O10: =E10 -> 31 | P10: 10 | R10: 1500 | U10: 0 | V10: 0 | W10: 0 | X10: 0 | Y10: 0 | Z10: 0 | AA10: 0 | AB10: 0 | AC10: 0 | AD10: 0 | AF10: =O10 -> 31 | AG10: 10 | AH10: 1500 | AK10: 0 | AL10: 0
A11: 55 | B11: ='Page 1A'!B11 -> 1st Camera Assistant | E11: ='Page 1A'!E11 -> 31 | F11: 10 | H11: ='Page 1A'!H11 -> 600 | K11: 600 | L11: 0 | M11: 0 | O11: =E11 -> 31 | P11: 10 | R11: 600 | U11: 0 | V11: 0 | W11: 0 | X11: 0 | Y11: 0 | Z11: 0 | AA11: 0 | AB11: 0 | AC11: 0 | AD11: 0 | AF11: =O11 -> 31 | AG11: 10 | AH11: 600 | AK11: 0 | AL11: 0
A12: 56 | B12: ='Page 1A'!B12 -> 2nd AC | E12: ='Page 1A'!E12 -> 31 | F12: 10 | H12: ='Page 1A'!H12 -> 575 | K12: 575 | L12: 0 | M12: 0 | O12: =E12 -> 31 | P12: 10 | R12: 575 | U12: 0 | V12: 0 | W12: 0 | X12: 0 | Y12: 0 | Z12: 0 | AA12: 0 | AB12: 0 | AC12: 0 | AD12: 0 | AF12: =O12 -> 31 | AG12: 10 | AH12: 575 | AK12: 0 | AL12: 0
A13: 57 | B13: ='Page 1A'!B13 -> Loader | E13: ='Page 1A'!E13 -> 31 | F13: 10 | H13: ='Page 1A'!H13 -> 550 | K13: 550 | L13: 0 | M13: 0 | O13: =E13 -> 31 | P13: 10 | R13: 550 | U13: 0 | V13: 0 | W13: 0 | X13: 0 | Y13: 0 | Z13: 0 | AA13: 0 | AB13: 0 | AC13: 0 | AD13: 0 | AF13: =O13 -> 31 | AG13: 10 | AH13: 550 | AK13: 0 | AL13: 0
A14: 58 | B14: ='Page 1A'!B14 -> Production Manager | E14: ='Page 1A'!E14 -> 29 | F14: 10 | H14: ='Page 1A'!H14 -> 600 | K14: 600 | L14: 0 | M14: 0 | O14: =E14 -> 29 | P14: 10 | R14: 600 | U14: 0 | V14: 0 | W14: 0 | X14: 0 | Y14: 0 | Z14: 0 | AA14: 0 | AB14: 0 | AC14: 0 | AD14: 0 | AF14: =O14 -> 29 | AG14: 10 | AH14: 600 | AK14: 0 | AL14: 0
A15: 59 | B15: ='Page 1A'!B15 -> Production Coordinator | E15: ='Page 1A'!E15 -> 29 | F15: 10 | H15: ='Page 1A'!H15 -> 400 | K15: 400 | L15: 0 | M15: 0 | O15: =E15 -> 29 | P15: 10 | R15: 400 | U15: 0 | V15: 0 | W15: 0 | X15: 0 | Y15: 0 | Z15: 0 | AA15: 0 | AB15: 0 | AC15: 0 | AD15: 0 | AF15: =O15 -> 29 | AG15: 10 | AH15: 400 | AK15: 0 | AL15: 0
A16: 60 | B16: ='Page 1A'!B16 -> 2nd AD | E16: ='Page 1A'!E16 -> 43 | F16: 12 | H16: ='Page 1A'!H16 -> 550 | K16: 550 | L16: 0 | M16: 0 | O16: =E16 -> 43 | P16: 12 | R16: 550 | U16: 0 | V16: 0 | W16: 0 | X16: 0 | Y16: 0 | Z16: 0 | AA16: 0 | AB16: 0 | AC16: 0 | AD16: 0 | AF16: =O16 -> 43 | AG16: 12 | AH16: 550 | AK16: 0 | AL16: 0
A17: 61 | B17: ='Page 1A'!B17 -> Gaffer | E17: ='Page 1A'!E17 -> 31 | F17: 10 | H17: ='Page 1A'!H17 -> 600 | K17: 600 | L17: 0 | M17: 0 | O17: =E17 -> 31 | P17: 10 | R17: 600 | U17: 0 | V17: 0 | W17: 0 | X17: 0 | Y17: 0 | Z17: 0 | AA17: 0 | AB17: 0 | AC17: 0 | AD17: 0 | AF17: =O17 -> 31 | AG17: 10 | AH17: 600 | AK17: 0 | AL17: 0
A18: 62 | B18: ='Page 1A'!B18 -> Best Boy Electric | E18: ='Page 1A'!E18 -> 31 | F18: 10 | H18: ='Page 1A'!H18 -> 575 | K18: 575 | L18: 0 | M18: 0 | O18: =E18 -> 31 | P18: 10 | R18: 575 | U18: 0 | V18: 0 | W18: 0 | X18: 0 | Y18: 0 | Z18: 0 | AA18: 0 | AB18: 0 | AC18: 0 | AD18: 0 | AF18: =O18 -> 31 | AG18: 10 | AH18: 575 | AK18: 0 | AL18: 0
A19: 63 | B19: ='Page 1A'!B19 -> Electric | E19: ='Page 1A'!E19 -> 31 | F19: 10 | H19: ='Page 1A'!H19 -> 550 | K19: 550 | L19: 0 | M19: 0 | O19: =E19 -> 31 | P19: 10 | R19: 550 | U19: 0 | V19: 0 | W19: 0 | X19: 0 | Y19: 0 | Z19: 0 | AA19: 0 | AB19: 0 | AC19: 0 | AD19: 0 | AF19: =O19 -> 31 | AG19: 10 | AH19: 550 | AK19: 0 | AL19: 0
A20: 64 | B20: ='Page 1A'!B20 -> Electric Driver | E20: ='Page 1A'!E20 -> 31 | F20: 10 | H20: ='Page 1A'!H20 -> 550 | K20: 550 | L20: 0 | M20: 0 | O20: =E20 -> 31 | P20: 10 | R20: 550 | U20: 0 | V20: 0 | W20: 0 | X20: 0 | Y20: 0 | Z20: 0 | AA20: 0 | AB20: 0 | AC20: 0 | AD20: 0 | AF20: =O20 -> 31 | AG20: 10 | AH20: 550 | AK20: 0 | AL20: 0
A21: 65 | B21: ='Page 1A'!B21 -> Rigger | E21: ='Page 1A'!E21 -> 31 | F21: 10 | H21: ='Page 1A'!H21 -> 550 | K21: 550 | L21: 0 | M21: 0 | O21: =E21 -> 31 | P21: 10 | R21: 550 | U21: 0 | V21: 0 | W21: 0 | X21: 0 | Y21: 0 | Z21: 0 | AA21: 0 | AB21: 0 | AC21: 0 | AD21: 0 | AF21: =O21 -> 31 | AG21: 10 | AH21: 550 | AK21: 0 | AL21: 0
A22: 66 | B22: ='Page 1A'!B22 -> Key Grip | E22: ='Page 1A'!E22 -> 31 | F22: 10 | H22: ='Page 1A'!H22 -> 600 | K22: 600 | L22: 0 | M22: 0 | O22: =E22 -> 31 | P22: 10 | R22: 600 | U22: 0 | V22: 0 | W22: 0 | X22: 0 | Y22: 0 | Z22: 0 | AA22: 0 | AB22: 0 | AC22: 0 | AD22: 0 | AF22: =O22 -> 31 | AG22: 10 | AH22: 600 | AK22: 0 | AL22: 0
A23: 67 | B23: ='Page 1A'!B23 -> Best Boy Grip | E23: ='Page 1A'!E23 -> 31 | F23: 10 | H23: ='Page 1A'!H23 -> 575 | K23: 575 | L23: 0 | M23: 0 | O23: =E23 -> 31 | P23: 10 | R23: 575 | U23: 0 | V23: 0 | W23: 0 | X23: 0 | Y23: 0 | Z23: 0 | AA23: 0 | AB23: 0 | AC23: 0 | AD23: 0 | AF23: =O23 -> 31 | AG23: 10 | AH23: 575 | AK23: 0 | AL23: 0
A24: 68 | B24: ='Page 1A'!B24 -> Grip | E24: ='Page 1A'!E24 -> 31 | F24: 10 | H24: ='Page 1A'!H24 -> 550 | K24: 550 | L24: 0 | M24: 0 | O24: =E24 -> 31 | P24: 10 | R24: 550 | U24: 0 | V24: 0 | W24: 0 | X24: 0 | Y24: 0 | Z24: 0 | AA24: 0 | AB24: 0 | AC24: 0 | AD24: 0 | AF24: =O24 -> 31 | AG24: 10 | AH24: 550 | AK24: 0 | AL24: 0
A25: 69 | B25: ='Page 1A'!B25 -> Grip Driver | E25: ='Page 1A'!E25 -> 31 | F25: 10 | H25: ='Page 1A'!H25 -> 550 | K25: 550 | L25: 0 | M25: 0 | O25: =E25 -> 31 | P25: 10 | R25: 550 | U25: 0 | V25: 0 | W25: 0 | X25: 0 | Y25: 0 | Z25: 0 | AA25: 0 | AB25: 0 | AC25: 0 | AD25: 0 | AF25: =O25 -> 31 | AG25: 10 | AH25: 550 | AK25: 0 | AL25: 0
A26: 70 | B26: ='Page 1A'!B26 -> Mixer | E26: ='Page 1A'!E26 -> 31 | F26: 10 | H26: ='Page 1A'!H26 -> 730 | K26: 730 | L26: 0 | M26: 0 | O26: =E26 -> 31 | P26: 10 | R26: 730 | U26: 0 | V26: 0 | W26: 0 | X26: 0 | Y26: 0 | Z26: 0 | AA26: 0 | AB26: 0 | AC26: 0 | AD26: 0 | AF26: =O26 -> 31 | AG26: 10 | AH26: 730 | AK26: 0 | AL26: 0
A27: 71 | B27: ='Page 1A'!B27 -> Boom Man | E27: ='Page 1A'!E27 -> 31 | F27: 10 | H27: ='Page 1A'!H27 -> 525 | K27: 525 | L27: 0 | M27: 0 | O27: =E27 -> 31 | P27: 10 | R27: 525 | U27: 0 | V27: 0 | W27: 0 | X27: 0 | Y27: 0 | Z27: 0 | AA27: 0 | AB27: 0 | AC27: 0 | AD27: 0 | AF27: =O27 -> 31 | AG27: 10 | AH27: 525 | AK27: 0 | AL27: 0
A28: 72 | B28: ='Page 1A'!B28 -> Playback | E28: ='Page 1A'!E28 -> 31 | F28: 10 | H28: ='Page 1A'!H28 -> 600 | K28: 600 | L28: 0 | M28: 0 | O28: =E28 -> 31 | P28: 10 | R28: 600 | U28: 0 | V28: 0 | W28: 0 | X28: 0 | Y28: 0 | Z28: 0 | AA28: 0 | AB28: 0 | AC28: 0 | AD28: 0 | AF28: =O28 -> 31 | AG28: 10 | AH28: 600 | AK28: 0 | AL28: 0
A29: 73 | B29: ='Page 1A'!B29 -> Make-up | D29: incl. 20%agency | E29: ='Page 1A'!E29 -> 31 | F29: 10 | H29: ='Page 1A'!H29 -> 1000 | K29: 1000 | L29: 0 | M29: 0 | O29: =E29 -> 31 | P29: 10 | R29: 1000 | U29: 0 | V29: 0 | W29: 0 | X29: 0 | Y29: 0 | Z29: 0 | AA29: 0 | AB29: 0 | AC29: 0 | AD29: 0 | AF29: =O29 -> 31 | AG29: 10 | AH29: 1000 | AK29: 0 | AL29: 0
A30: 74 | B30: ='Page 1A'!B30 -> Hair Stylist | D30: incl. 20%agency | E30: ='Page 1A'!E30 -> 31 | F30: 10 | H30: ='Page 1A'!H30 -> 1000 | K30: 1000 | L30: 0 | M30: 0 | O30: =E30 -> 31 | P30: 10 | R30: 1000 | U30: 0 | V30: 0 | W30: 0 | X30: 0 | Y30: 0 | Z30: 0 | AA30: 0 | AB30: 0 | AC30: 0 | AD30: 0 | AF30: =O30 -> 31 | AG30: 10 | AH30: 1000 | AK30: 0 | AL30: 0
A31: 75 | B31: ='Page 1A'!B31 -> Make-up/Hair Assts. | E31: ='Page 1A'!E31 -> 31 | F31: 10 | H31: ='Page 1A'!H31 -> 450 | K31: 450 | L31: 0 | M31: 0 | O31: =E31 -> 31 | P31: 10 | R31: 450 | U31: 0 | V31: 0 | W31: 0 | X31: 0 | Y31: 0 | Z31: 0 | AA31: 0 | AB31: 0 | AC31: 0 | AD31: 0 | AF31: =O31 -> 31 | AG31: 10 | AH31: 450 | AK31: 0 | AL31: 0
A32: 76 | B32: ='Page 1A'!B32 -> Stylist | D32: incl. 20%agency | E32: ='Page 1A'!E32 -> 31 | F32: 10 | H32: ='Page 1A'!H32 -> 1000 | K32: 1000 | L32: 0 | M32: 0 | O32: =E32 -> 31 | P32: 10 | R32: 1000 | U32: 0 | V32: 0 | W32: 0 | X32: 0 | Y32: 0 | Z32: 0 | AA32: 0 | AB32: 0 | AC32: 0 | AD32: 0 | AF32: =O32 -> 31 | AG32: 10 | AH32: 1000 | AK32: 0 | AL32: 0
A33: 77 | B33: ='Page 1A'!B33 -> Wardrobe | E33: ='Page 1A'!E33 -> 31 | F33: 10 | H33: ='Page 1A'!H33 -> 450 | K33: 450 | L33: 0 | M33: 0 | O33: =E33 -> 31 | P33: 10 | R33: 450 | U33: 0 | V33: 0 | W33: 0 | X33: 0 | Y33: 0 | Z33: 0 | AA33: 0 | AB33: 0 | AC33: 0 | AD33: 0 | AF33: =O33 -> 31 | AG33: 10 | AH33: 450 | AK33: 0 | AL33: 0
A34: 78 | B34: ='Page 1A'!B34 -> Script Supervisor | E34: ='Page 1A'!E34 -> 31 | F34: 10 | H34: ='Page 1A'!H34 -> 600 | K34: 600 | L34: 0 | M34: 0 | O34: =E34 -> 31 | P34: 10 | R34: 600 | U34: 0 | V34: 0 | W34: 0 | X34: 0 | Y34: 0 | Z34: 0 | AA34: 0 | AB34: 0 | AC34: 0 | AD34: 0 | AF34: =O34 -> 31 | AG34: 10 | AH34: 600 | AK34: 0 | AL34: 0
A35: 79 | B35: ='Page 1A'!B35 -> Home Economist | E35: ='Page 1A'!E35 -> 31 | F35: 10 | H35: ='Page 1A'!H35 -> 1200 | K35: 1200 | L35: 0 | M35: 0 | O35: =E35 -> 31 | P35: 10 | R35: 1200 | U35: 0 | V35: 0 | W35: 0 | X35: 0 | Y35: 0 | Z35: 0 | AA35: 0 | AB35: 0 | AC35: 0 | AD35: 0 | AF35: =O35 -> 31 | AG35: 10 | AH35: 1200 | AK35: 0 | AL35: 0
A36: 80 | B36: ='Page 1A'!B36 -> Asst. Home Economist | E36: ='Page 1A'!E36 -> 31 | F36: 10 | H36: ='Page 1A'!H36 -> 600 | K36: 600 | L36: 0 | M36: 0 | O36: =E36 -> 31 | P36: 10 | R36: 600 | U36: 0 | V36: 0 | W36: 0 | X36: 0 | Y36: 0 | Z36: 0 | AA36: 0 | AB36: 0 | AC36: 0 | AD36: 0 | AF36: =O36 -> 31 | AG36: 10 | AH36: 600 | AK36: 0 | AL36: 0
A37: 81 | B37: ='Page 1A'!B37 -> VTR Operator | E37: ='Page 1A'!E37 -> 31 | F37: 10 | H37: ='Page 1A'!H37 -> 600 | K37: 600 | L37: 0 | M37: 0 | O37: =E37 -> 31 | P37: 10 | R37: 600 | U37: 0 | V37: 0 | W37: 0 | X37: 0 | Y37: 0 | Z37: 0 | AA37: 0 | AB37: 0 | AC37: 0 | AD37: 0 | AF37: =O37 -> 31 | AG37: 10 | AH37: 600 | AK37: 0 | AL37: 0
A38: 82 | B38: ='Page 1A'!B38 -> Effects | E38: ='Page 1A'!E38 -> 31 | F38: 10 | H38: ='Page 1A'!H38 -> 650 | K38: 650 | L38: 0 | M38: 0 | O38: =E38 -> 31 | P38: 10 | R38: 650 | U38: 0 | V38: 0 | W38: 0 | X38: 0 | Y38: 0 | Z38: 0 | AA38: 0 | AB38: 0 | AC38: 0 | AD38: 0 | AF38: =O38 -> 31 | AG38: 10 | AH38: 650 | AK38: 0 | AL38: 0
A39: 83 | B39: ='Page 1A'!B39 -> FX Assistant | E39: ='Page 1A'!E39 -> 31 | F39: 10 | H39: ='Page 1A'!H39 -> 525 | K39: 525 | L39: 0 | M39: 0 | O39: =E39 -> 31 | P39: 10 | R39: 525 | U39: 0 | V39: 0 | W39: 0 | X39: 0 | Y39: 0 | Z39: 0 | AA39: 0 | AB39: 0 | AC39: 0 | AD39: 0 | AF39: =O39 -> 31 | AG39: 10 | AH39: 525 | AK39: 0 | AL39: 0
A40: 84 | B40: ='Page 1A'!B40 -> 2nd 2nd AD | E40: ='Page 1A'!E40 -> 43 | F40: 10 | H40: ='Page 1A'!H40 -> 400 | K40: 400 | L40: 0 | M40: 0 | O40: =E40 -> 43 | P40: 10 | R40: 400 | U40: 0 | V40: 0 | W40: 0 | X40: 0 | Y40: 0 | Z40: 0 | AA40: 0 | AB40: 0 | AC40: 0 | AD40: 0 | AF40: =O40 -> 43 | AG40: 10 | AH40: 400 | AK40: 0 | AL40: 0
A41: 85 | B41: ='Page 1A'!B41 -> Camera Car Driver | E41: ='Page 1A'!E41 -> 31 | F41: 10 | H41: ='Page 1A'!H41 -> 650 | K41: 650 | L41: 0 | M41: 0 | O41: =E41 -> 31 | P41: 10 | R41: 650 | U41: 0 | V41: 0 | W41: 0 | X41: 0 | Y41: 0 | Z41: 0 | AA41: 0 | AB41: 0 | AC41: 0 | AD41: 0 | AF41: =O41 -> 31 | AG41: 10 | AH41: 650 | AK41: 0 | AL41: 0
A42: 86 | B42: ='Page 1A'!B42 -> Crane Tech | E42: ='Page 1A'!E42 -> 31 | F42: 10 | H42: ='Page 1A'!H42 -> 650 | K42: 650 | L42: 0 | M42: 0 | O42: =E42 -> 31 | P42: 10 | R42: 650 | U42: 0 | V42: 0 | W42: 0 | X42: 0 | Y42: 0 | Z42: 0 | AA42: 0 | AB42: 0 | AC42: 0 | AD42: 0 | AF42: =O42 -> 31 | AG42: 10 | AH42: 650 | AK42: 0 | AL42: 0
A43: 87 | B43: ='Page 1A'!B43 -> Remote Head Tech | E43: ='Page 1A'!E43 -> 31 | F43: 10 | H43: ='Page 1A'!H43 -> 650 | K43: 650 | L43: 0 | M43: 0 | O43: =E43 -> 31 | P43: 10 | R43: 650 | U43: 0 | V43: 0 | W43: 0 | X43: 0 | Y43: 0 | Z43: 0 | AA43: 0 | AB43: 0 | AC43: 0 | AD43: 0 | AF43: =O43 -> 31 | AG43: 10 | AH43: 650 | AK43: 0 | AL43: 0
A44: 88 | B44: ='Page 1A'!B44 -> Location Scout | E44: ='Page 1A'!E44 -> 31 | F44: 10 | H44: ='Page 1A'!H44 -> 650 | K44: 650 | L44: 0 | M44: 0 | O44: =E44 -> 31 | P44: 10 | R44: 650 | U44: 0 | V44: 0 | W44: 0 | X44: 0 | Y44: 0 | Z44: 0 | AA44: 0 | AB44: 0 | AC44: 0 | AD44: 0 | AF44: =O44 -> 31 | AG44: 10 | AH44: 650 | AK44: 0 | AL44: 0
A45: 89 | B45: ='Page 1A'!B45 -> Assistant Scout | E45: ='Page 1A'!E45 -> 31 | F45: 10 | H45: ='Page 1A'!H45 -> 450 | K45: 450 | L45: 0 | M45: 0 | O45: =E45 -> 31 | P45: 10 | R45: 450 | U45: 0 | V45: 0 | W45: 0 | X45: 0 | Y45: 0 | Z45: 0 | AA45: 0 | AB45: 0 | AC45: 0 | AD45: 0 | AF45: =O45 -> 31 | AG45: 10 | AH45: 450 | AK45: 0 | AL45: 0
A46: 90 | B46: ='Page 1A'!B46 -> Nurse/1st Aid | E46: ='Page 1A'!E46 -> 31 | F46: 10 | H46: ='Page 1A'!H46 -> 360 | K46: 360 | L46: 0 | M46: 0 | O46: =E46 -> 31 | P46: 10 | R46: 360 | U46: 0 | V46: 0 | W46: 0 | X46: 0 | Y46: 0 | Z46: 0 | AA46: 0 | AB46: 0 | AC46: 0 | AD46: 0 | AF46: =O46 -> 31 | AG46: 10 | AH46: 360 | AK46: 0 | AL46: 0
A47: 91 | B47: ='Page 1A'!B47 -> Craft Service | E47: ='Page 1A'!E47 -> 31 | F47: 10 | H47: ='Page 1A'!H47 -> 350 | K47: 350 | L47: 0 | M47: 0 | O47: =E47 -> 31 | P47: 10 | R47: 350 | U47: 0 | V47: 0 | W47: 0 | X47: 0 | Y47: 0 | Z47: 0 | AA47: 0 | AB47: 0 | AC47: 0 | AD47: 0 | AF47: =O47 -> 31 | AG47: 10 | AH47: 350 | AK47: 0 | AL47: 0
A48: 92 | B48: ='Page 1A'!B48 -> Firemen | E48: ='Page 1A'!E48 -> 20 | F48: 10 | H48: ='Page 1A'!H48 -> 500 | K48: 500 | L48: 0 | M48: 0 | O48: =E48 -> 20 | P48: 10 | R48: 500 | U48: 0 | V48: 0 | W48: 0 | X48: 0 | Y48: 0 | Z48: 0 | AA48: 0 | AB48: 0 | AC48: 0 | AD48: 0 | AF48: =O48 -> 20 | AG48: 10 | AH48: 500 | AK48: 0 | AL48: 0
A49: 93 | B49: ='Page 1A'!B49 -> Policemen | E49: ='Page 1A'!E49 -> 20 | F49: 10 | H49: ='Page 1A'!H49 -> 500 | K49: 500 | L49: 0 | M49: 0 | O49: =E49 -> 20 | P49: 10 | R49: 500 | U49: 0 | V49: 0 | W49: 0 | X49: 0 | Y49: 0 | Z49: 0 | AA49: 0 | AB49: 0 | AC49: 0 | AD49: 0 | AF49: =O49 -> 20 | AG49: 10 | AH49: 500 | AK49: 0 | AL49: 0
A50: 94 | B50: ='Page 1A'!B50 -> Welfare/Teacher | E50: ='Page 1A'!E50 -> 20 | F50: 10 | H50: ='Page 1A'!H50 -> 500 | K50: 500 | L50: 0 | M50: 0 | O50: =E50 -> 20 | P50: 10 | R50: 500 | U50: 0 | V50: 0 | W50: 0 | X50: 0 | Y50: 0 | Z50: 0 | AA50: 0 | AB50: 0 | AC50: 0 | AD50: 0 | AF50: =O50 -> 20 | AG50: 10 | AH50: 500 | AK50: 0 | AL50: 0
A51: 95 | B51: ='Page 1A'!B51 -> Choreographer | D51: incl. 20%agency | E51: ='Page 1A'!E51 -> 20 | F51: 10 | H51: ='Page 1A'!H51 -> 2500 | K51: 2500 | L51: 0 | M51: 0 | O51: =E51 -> 20 | P51: 10 | R51: 2500 | U51: 0 | V51: 0 | W51: 0 | X51: 0 | Y51: 0 | Z51: 0 | AA51: 0 | AB51: 0 | AC51: 0 | AD51: 0 | AF51: =O51 -> 20 | AG51: 10 | AH51: 2500 | AK51: 0 | AL51: 0
A52: 96 | B52: ='Page 1A'!B52 -> Gang Boss | E52: ='Page 1A'!E52 -> 31 | F52: 10 | H52: ='Page 1A'!H52 -> 460 | K52: 460 | L52: 0 | M52: 0 | O52: =E52 -> 31 | P52: 10 | R52: 460 | U52: 0 | V52: 0 | W52: 0 | X52: 0 | Y52: 0 | Z52: 0 | AA52: 0 | AB52: 0 | AC52: 0 | AD52: 0 | AF52: =O52 -> 31 | AG52: 10 | AH52: 460 | AK52: 0 | AL52: 0
A53: 97 | B53: ='Page 1A'!B53 -> Teamsters/Driver | E53: ='Page 1A'!E53 -> 31 | F53: 10 | H53: ='Page 1A'!H53 -> 420 | K53: 420 | L53: 0 | M53: 0 | O53: =E53 -> 31 | P53: 10 | R53: 420 | U53: 0 | V53: 0 | W53: 0 | X53: 0 | Y53: 0 | Z53: 0 | AA53: 0 | AB53: 0 | AC53: 0 | AD53: 0 | AF53: =O53 -> 31 | AG53: 10 | AH53: 420 | AK53: 0 | AL53: 0
A54: 98 | B54: ='Page 1A'!B54 -> Teamster/Caterers | C54: ='Page 1A'!C54 -> 2 people | E54: ='Page 1A'!E54 -> 31 | F54: 10 | H54: ='Page 1A'!H54 -> 850 | K54: 850 | L54: 0 | M54: 0 | O54: =E54 -> 31 | P54: 10 | R54: 850 | U54: 0 | V54: 0 | W54: 0 | X54: 0 | Y54: 0 | Z54: 0 | AA54: 0 | AB54: 0 | AC54: 0 | AD54: 0 | AF54: =O54 -> 31 | AG54: 10 | AH54: 850 | AK54: 0 | AL54: 0
A55: 99 | B55: ='Page 1A'!B55 -> Production Assistant | E55: ='Page 1A'!E55 -> 29 | F55: 10 | H55: ='Page 1A'!H55 -> 200 | K55: 200 | L55: 0 | M55: 0 | O55: =E55 -> 29 | P55: 10 | R55: 200 | U55: 0 | V55: 0 | W55: 0 | X55: 0 | Y55: 0 | Z55: 0 | AA55: 0 | AB55: 0 | AC55: 0 | AD55: 0 | AF55: =O55 -> 29 | AG55: 10 | AH55: 200 | AK55: 0 | AL55: 0
A56: 100 | B56: ='Page 1A'!B56 -> Runner | E56: ='Page 1A'!E56 -> 29 | F56: 10 | H56: ='Page 1A'!H56 -> 200 | K56: 200 | L56: 0 | M56: 0 | O56: =E56 -> 29 | P56: 10 | R56: 200 | U56: 0 | V56: 0 | W56: 0 | X56: 0 | Y56: 0 | Z56: 0 | AA56: 0 | AB56: 0 | AC56: 0 | AD56: 0 | AF56: =O56 -> 29 | AG56: 10 | AH56: 200 | AK56: 0 | AL56: 0
G57: =SUM(G7:G56) -> 0 | J57: Sub-total B | L57: =SUM(L7:L56) -> 0 | M57: 0 | T57: Sub-total Bw | U57: =SUM(U7:U56) -> 0 | V57: 0 | AC57: Sub-total B | AD57: =SUM(AD7:AD56) -> 0 | AJ57: Sub-total OT | AK57: =SUM(AK7:AK56) -> 0 | AL57: 0
I58: PT/P&W | L58: =PT_B -> 0 | S58: PT/P&W | U58: =PT_Bw -> 0 | AB58: PT/P&W | AD58: 0 | AJ58: PT/P&W | AK58: =PT_Bot -> 0
I59: TOTAL B | L59: =SUM(L57:L58) -> 0 | S59: TOTAL Bw | U59: =SUM(U57:U58) -> 0 | AB59: TOTAL B | AD59: =SUM(AD57:AD58) -> 0 | AJ59: TOTAL OT | AK59: =SUM(AK57:AK58) -> 0

Sheet Page 2
A2: =IF('Top Sheet'!$C$5="","",'Top Sheet'!$C$5) ->  | M2: Page 2 | N2: Page 2
A3: =IF('Top Sheet'!$G$5="Agency:",IF('Top Sheet'!$L$15="","",'Top Sheet'!$L$15),IF('Top Sheet'!$L$12="","",'Top Sheet'!$L$12)) -> 
A4: =IF('Top Sheet'!$G$5="Agency:",IF('Top Sheet'!$L$16="","",'Top Sheet'!$L$16),IF('Top Sheet'!$L$13="","",'Top Sheet'!$L$13)) -> 
A5: C | B5: PRE-PRODUCTION & WRAP EXPENSES | D5: Amount | E5: Rate | F5: x | G5: R/C | H5: ESTIMATED | J5: Amount | K5: Rate | L5: x | M5: WORKING | N5: ACTUAL
A6: 101 | B6: Auto/Passenger Van Rentals | E6: 150 | G6: =E6:E18*X_RATE -> 150 | H6: =ROUND(D6:D18*E6:E18*IF(F6:F18=0,1,F6:F18),0) -> 0 | J6: =D6 ->  | K6: 150 | M6: =ROUND(J6:J18*K6:K18*IF(L6:L18=0,1,L6:L18),2) -> 0 | N6: 0
A7: 102 | B7: Air Fares | E7: 0 | G7: 0 | H7: 0 | J7: =D7 ->  | K7: 0 | M7: 0 | N7: 0
A8: 103 | B8: Per Diems | G8: 0 | H8: 0 | J8: =D8 ->  | M8: 0 | N8: 0
A9: 104 | B9: Still Camera & Film | E9: 350 | G9: 350 | H9: 0 | J9: =D9 ->  | K9: 350 | M9: 0 | N9: 0
A10: 105 | B10: Messengers | E10: 300 | G10: 300 | H10: 0 | J10: =D10 ->  | K10: 300 | M10: 0 | N10: 0
A11: 106 | B11: Trucking | E11: 400 | G11: 400 | H11: 0 | J11: =D11 ->  | K11: 400 | M11: 0 | N11: 0
A12: 107 | B12: Deliveries & Taxis | G12: 0 | H12: 0 | J12: =D12 ->  | M12: 0 | N12: 0
A13: 108 | B13: Video Conferencing | E13: 0 | G13: 0 | H13: 0 | J13: =D13 ->  | K13: 0 | M13: 0 | N13: 0
A14: 109 | B14: Telephone & Cable | G14: 0 | H14: 0 | J14: =D14 ->  | M14: 0 | N14: 0
A15: 110 | B15: Casting Director | C15: Prep: 2 Cast: 2 Callback: 1 | E15: 1200 | G15: 1200 | H15: 0 | J15: =D15 ->  | K15: 1200 | M15: 0 | N15: 0
A16: 111 | B16: Casting Facilities | E16: 1100 | G16: 1100 | H16: 0 | J16: =D16 ->  | K16: 1100 | M16: 0 | N16: 0
A17: 112 | B17: Polaroids/Internet Posting | E17: 350 | G17: 350 | H17: 0 | J17: =D17 ->  | K17: 350 | M17: 0 | N17: 0
A18: 113 | B18: Scouting Expenses | D18: ='Page 1A'!G44 ->  | E18: 150 | G18: 150 | H18: 0 | J18: =D18 ->  | K18: 150 | M18: 0 | N18: 0
E19: TOTAL C | H19: =SUM(H6:H18) -> 0 | K19: TOTAL Cw | M19: =SUM(M6:M18) -> 0 | N19: 0
A21: D | B21: LOCATION EXPENSES | D21: Amount | E21: Rate | F21: x | G21: R/C | H21: ESTIMATED | J21: Amount | K21: Rate | L21: x | M21: WORKING | N21: ACTUAL
A22: 114 | B22: Location Fees | E22: 20000 | G22: =E22:E47*X_RATE -> 20000 | H22: =ROUND(D22:D47*E22:E47*IF(F22:F47=0,1,F22:F47),0) -> 0 | J22: =D22 ->  | K22: 20000 | M22: =ROUND(J22:J47*K22:K47*IF(L22:L47=0,1,L22:L47),2) -> 0 | N22: 0
A23: 115 | B23: Permits | E23: 1500 | G23: 1500 | H23: 0 | J23: =D23 ->  | K23: 1500 | M23: 0 | N23: 0
A24: 116 | B24: Car Rentals | G24: 0 | H24: 0 | J24: =D24 ->  | M24: 0 | N24: 0
A25: 117 | B25: Bus/Passenger Van Rentals | E25: 150 | F25: 1 | G25: 150 | H25: 0 | J25: =D25 ->  | K25: 150 | L25: 1 | M25: 0 | N25: 0
A26: 118 | B26: Dressing Room Vehicles | E26: 1100 | F26: 1 | G26: 1100 | H26: 0 | J26: =D26 ->  | K26: 1100 | L26: 1 | M26: 0 | N26: 0
A27: 119 | B27: Parking, Tolls, and Gas | E27: 1500 | F27: 1 | G27: 1500 | H27: 0 | J27: =D27 ->  | K27: 1500 | L27: 1 | M27: 0 | N27: 0
A28: 120 | B28: Production Trucking | E28: 250 | F28: 3 | G28: 250 | H28: 0 | J28: =D28 ->  | K28: 250 | L28: 3 | M28: 0 | N28: 0
A29: 121 | B29: Camera Truck | E29: 300 | F29: 3 | G29: 300 | H29: 0 | J29: =D29 ->  | K29: 300 | L29: 3 | M29: 0 | N29: 0
A30: 122 | B30: Stake Bed/Pick UP/ATV/Lighting and grip | E30: 250 | F30: 1 | G30: 250 | H30: 0 | J30: =D30 ->  | K30: 250 | L30: 1 | M30: 0 | N30: 0
A31: 123 | B31: Customs | G31: 0 | H31: 0 | J31: =D31 ->  | M31: 0 | N31: 0
A32: 124 | B32: Excess Bags | E32: 0 | G32: 0 | H32: 0 | J32: =D32 ->  | K32: 0 | M32: 0 | N32: 0
A33: 125 | B33: Air Fares | E33: 0 | G33: 0 | H33: 0 | J33: =D33 ->  | K33: 0 | M33: 0 | N33: 0
A34: 126 | B34: Hotel/Per Diems | G34: 0 | H34: 0 | J34: =D34 ->  | M34: 0 | N34: 0
A35: 127 | B35: Tech Scout Breakfast & Lunch | E35: 200 | G35: 200 | H35: 0 | J35: =D35 ->  | K35: 200 | M35: 0 | N35: 0
A36: 128 | B36: Pre-Production Meeting & Fittings Meals | E36: 500 | G36: 500 | H36: 0 | J36: =D36 ->  | K36: 500 | M36: 0 | N36: 0
A37: 129 | B37: Breakfast | E37: 18 | F37: 1 | G37: 18 | H37: 0 | J37: =D37 ->  | K37: 18 | L37: 1 | M37: 0 | N37: 0
A38: 130 | B38: Lunch | E38: 21 | F38: 1 | G38: 21 | H38: 0 | J38: =D38 ->  | K38: 21 | L38: 1 | M38: 0 | N38: 0
A39: 131 | B39: Dinner | E39: 15 | F39: 1 | G39: 15 | H39: 0 | J39: =D39 ->  | K39: 15 | L39: 1 | M39: 0 | N39: 0
A40: 132 | B40: Set Security | E40: 350 | F40: 2 | G40: 350 | H40: 0 | J40: =D40 ->  | K40: 350 | L40: 2 | M40: 0 | N40: 0
A41: 133 | B41: Limousines | E41: 400 | G41: 400 | H41: 0 | J41: =D41 ->  | K41: 400 | M41: 0 | N41: 0
A42: 134 | B42: Cabs and Other Transportation | E42: 200 | F42: 1 | G42: 200 | H42: 0 | J42: =D42 ->  | K42: 200 | L42: 1 | M42: 0 | N42: 0
A43: 135 | B43: Kit Rental | E43: 100 | F43: 4 | G43: 100 | H43: 0 | J43: =D43 ->  | K43: 100 | L43: 4 | M43: 0 | N43: 0
A44: 136 | B44: Art Work | G44: 0 | H44: 0 | J44: =D44 ->  | M44: 0 | N44: 0
A45: 137 | B45: Talent Meal | E45: 39 | G45: 39 | H45: 0 | J45: =D45 ->  | K45: 39 | M45: 0 | N45: 0
A46: 138 | B46: Craft Services | E46: 10 | F46: 1 | G46: 10 | H46: 0 | J46: =D46 ->  | K46: 10 | L46: 1 | M46: 0 | N46: 0
A47: 139 | B47: Cell Phones | G47: 0 | H47: 0 | J47: =D47 ->  | M47: 0 | N47: 0
E48: TOTAL D | H48: =SUM(H22:H47) -> 0 | K48: TOTAL Dw | M48: =SUM(M22:M47) -> 0 | N48: 0
A50: E | B50: PROPS, WARDROBE & ANIMALS | D50: Amount | E50: Rate | F50: x | G50: R/C | H50: ESTIMATED | J50: Amount | K50: Rate | L50: x | M50: WORKING | N50: ACTUAL
A51: 140 | B51: Prop Rentals | E51: 500 | G51: =E51:E61*X_RATE -> 500 | H51: =ROUND(D51:D61*E51:E61*IF(F51:F61=0,1,F51:F61),0) -> 0 | J51: =D51 ->  | K51: 500 | M51: =ROUND(J51:J61*K51:K61*IF(L51:L61=0,1,L51:L61),2) -> 0 | N51: 0
A52: 141 | B52: Prop Purchases | E52: 500 | G52: 500 | H52: 0 | J52: =D52 ->  | K52: 500 | M52: 0 | N52: 0
A53: 142 | B53: Wardrobe Rentals | E53: 1000 | F53: 2 | G53: 1000 | H53: 0 | J53: =D53 ->  | K53: 1000 | L53: 2 | M53: 0 | N53: 0
A54: 143 | B54: Wardrobe Purchases | E54: 1000 | F54: 2 | G54: 1000 | H54: 0 | J54: =D54 ->  | K54: 1000 | L54: 2 | M54: 0 | N54: 0
A55: 144 | B55: Picture Vehicles | G55: 0 | H55: 0 | J55: =D55 ->  | M55: 0 | N55: 0
A56: 145 | B56: Animals and Handlers | G56: 0 | H56: 0 | J56: =D56 ->  | M56: 0 | N56: 0
A57: 146 | B57: Wigs & Mustaches | G57: 0 | H57: 0 | J57: =D57 ->  | M57: 0 | N57: 0
A58: 147 | B58: Color Correction | G58: 0 | H58: 0 | J58: =D58 ->  | M58: 0 | N58: 0
A59: 148 | B59: Atmospheric FX (Wind, Fog, Rain, Etc.) | G59: 0 | H59: 0 | J59: =D59 ->  | M59: 0 | N59: 0
A60: 149 | B60: Water Truck | E60: 1200 | G60: 1200 | H60: 0 | J60: =D60 ->  | K60: 1200 | M60: 0 | N60: 0
A61: 150 | E61: 0 | G61: 0 | H61: 0 | J61: =D61 ->  | K61: 0 | M61: 0 | N61: 0
E62: TOTAL E | H62: =SUM(H51:H61) -> 0 | K62: TOTAL Ew | M62: =SUM(M51:M61) -> 0 | N62: 0

Sheet Page 3
A2: =IF('Top Sheet'!$C$5="","",'Top Sheet'!$C$5) ->  | U2: Page 3 | AD2: Page 3
A3: =IF('Top Sheet'!$G$5="Agency:",IF('Top Sheet'!$L$15="","",'Top Sheet'!$L$15),IF('Top Sheet'!$L$12="","",'Top Sheet'!$L$12)) -> 
A4: =IF('Top Sheet'!$G$5="Agency:",IF('Top Sheet'!$L$16="","",'Top Sheet'!$L$16),IF('Top Sheet'!$L$13="","",'Top Sheet'!$L$13)) -> 
A5: F | B5: STUDIO RENTAL & EXPENSES | H5: Amount | I5: Rate | J5: x | K5: R/C | L5: ESTIMATED | R5: Amount | S5: Rate | T5: x | U5: WORKING | AD5: ACTUAL
A6: 151 | B6: Rental for Build | K6: =I6:I22*X_RATE -> 0 | L6: =ROUND(H6:H22*I6:I22*IF(J6:J22=0,1,J6:J22),0) -> 0 | R6: =H6 ->  | U6: =ROUND(R6:R22*S6:S22*IF(T6:T22=0,1,T6:T22),2) -> 0 | AD6: 0
A7: 152 | B7: Build OT Hours | K7: 0 | L7: 0 | R7: =H7 ->  | U7: 0 | AD7: 0
A8: 153 | B8: Rental for Pre-Lite Days | K8: 0 | L8: 0 | T8: =J8 ->  | U8: 0 | AD8: 0
A9: 154 | B9: Pre-Lite OT Hours | K9: 0 | L9: 0 | R9: =H8 ->  | U9: 0 | AD9: 0
A10: 155 | B10: Rental for Shoot Days | K10: 0 | L10: 0 | U10: 0 | AD10: 0
A11: 156 | B11: Shoot OT Hours | K11: 0 | L11: 0 | R11: =H10 ->  | U11: 0 | AD11: 0
A12: 157 | B12: Rental for Strike Days | K12: 0 | L12: 0 | R12: =H11 ->  | U12: 0 | AD12: 0
A13: 158 | B13: Strike OT Hours | K13: 0 | L13: 0 | R13: =H13 ->  | U13: 0 | AD13: 0
A14: 159 | B14: Generator and Operator | K14: 0 | L14: 0 | R14: =H14 ->  | U14: 0 | AD14: 0
A15: 160 | B15: Studio Security | K15: 0 | L15: 0 | R15: =H15 ->  | U15: 0 | AD15: 0
A16: 161 | B16: Power Charges | K16: 0 | L16: 0 | R16: =H16 ->  | U16: 0 | AD16: 0
A17: 162 | B17: Trash | K17: 0 | L17: 0 | R17: =H17 ->  | U17: 0 | AD17: 0
A18: 163 | B18: Stage Manager | K18: 0 | L18: 0 | R18: =H18 ->  | U18: 0 | AD18: 0
A19: 164 | B19: Parking | K19: 0 | L19: 0 | R19: =H19 ->  | U19: 0 | AD19: 0
A20: 165 | B20: Telephones & Fax Machines | K20: 0 | L20: 0 | R20: =H20 ->  | U20: 0 | AD20: 0
A21: 166 | B21: Heat/Air Conditioning | K21: 0 | L21: 0 | R21: =H21 ->  | U21: 0 | AD21: 0
A22: 167 | B22: Misc Studio Charges | K22: 0 | L22: 0 | R22: =H22 ->  | U22: 0 | AD22: 0
I23: TOTAL F | L23: =SUM(L6:L22) -> 0 | S23: TOTAL Fw | U23: =SUM(U6:U22) -> 0 | AB23: TOTAL F | AD23: =SUM(AD6:AD22) -> 0
AF25: OVERTIME CALCULATOR
B26: SET CONSTRUCTION | E26: % | F26: OT | I26: OT Hours | O26: % | P26: OT | S26: OT Hours | W26: Payroll Log Detail | Z26: Payroll Log Costs | AC26: Other | AF26: % | AG26: OT | AI26: OT Hours | AK26: OVERTIME
A27: G | B27: CREW | D27: Notes | E27: PT/P&W | F27: Based | G27: Days | H27: Rate | I27: 1.5 | J27: 2 | K27: R/C | L27: ESTIMATED | M27: PT/P&W | O27: PT/P&W | P27: Based | Q27: Days | R27: Rate | S27: =I27 -> 1.5 | T27: 2 | U27: WORKING | V27: PT/P&W | W27: Days | X27: Rate | Y27: OT Hrs | Z27: Misc | AA27: ST | AB27: OT | AC27: Logs | AD27: ACTUAL | AF27: PT/P&W | AG27: Based | AH27: Rate | AI27: 1.5 | AJ27: 2 | AK27: TOTAL
A28: 168 | B28: Production Designer | C28: Prep: Shoot: Wrap: | E28: 31 | F28: 10 | H28: 1200 | K28: =H28:H40*X_RATE -> 1200 | L28: =ROUND((G28:G40*H28:H40)+(H28:H40/F28:F40*$I$27*I28:I40)+(H28:H40/F28:F40*$J$27*J28:J40),0) -> 0 | M28: =ROUND(L28:L40*E28:E40/100,0) -> 0 | O28: =E28 -> 31 | P28: 10 | R28: 1200 | U28: =ROUND((Q28:Q40*R28:R40)+(R28:R40/P28:P40*$S$27*S28:S40)+(R28:R40/P28:P40*$T$27*T28:T40),2) -> 0 | V28: =ROUND(U28:U40*O28:O40/100,2) -> 0 | W28: 0 | X28: 0 | Y28: 0 | Z28: 0 | AA28: 0 | AB28: 0 | AC28: 0 | AD28: 0 | AF28: =O28 -> 31 | AG28: 10 | AH28: =R28 -> 1200 | AK28: =IF(AG28:AG240=0,0,ROUND((AH28:AH40/AG28:AG40*$AI$27*AI28:AI40)+(AH28:AH40/AG28:AG40*$AJ$27*AJ28:AJ40),2)) -> 0 | AL28: =ROUND(AK28:AK40*AF28:AF40/100,2) -> 0
A29: 169 | B29: Art Director | E29: 31 | F29: 10 | H29: 850 | K29: 850 | L29: 0 | M29: 0 | O29: =E29 -> 31 | P29: 10 | R29: 850 | U29: 0 | V29: 0 | W29: 0 | X29: 0 | Y29: 0 | Z29: 0 | AA29: 0 | AB29: 0 | AC29: 0 | AD29: 0 | AF29: =O29 -> 31 | AG29: 10 | AH29: 850 | AK29: 0 | AL29: 0
A30: 170 | B30: Art Department Coordinator | E30: 31 | F30: 10 | H30: 650 | K30: 650 | L30: 0 | M30: 0 | O30: =E30 -> 31 | P30: 10 | R30: 650 | U30: 0 | V30: 0 | W30: 0 | X30: 0 | Y30: 0 | Z30: 0 | AA30: 0 | AB30: 0 | AC30: 0 | AD30: 0 | AF30: =O30 -> 31 | AG30: 10 | AH30: 650 | AK30: 0 | AL30: 0
A31: 171 | B31: Buyer | E31: 31 | F31: 10 | H31: 600 | K31: 600 | L31: 0 | M31: 0 | O31: =E31 -> 31 | P31: 10 | R31: 600 | U31: 0 | V31: 0 | W31: 0 | X31: 0 | Y31: 0 | Z31: 0 | AA31: 0 | AB31: 0 | AC31: 0 | AD31: 0 | AF31: =O31 -> 31 | AG31: 10 | AH31: 600 | AK31: 0 | AL31: 0
A32: 172 | B32: Prop Master | E32: 31 | F32: 10 | H32: 600 | K32: 600 | L32: 0 | M32: 0 | O32: =E32 -> 31 | P32: 10 | R32: 600 | U32: 0 | V32: 0 | W32: 0 | X32: 0 | Y32: 0 | Z32: 0 | AA32: 0 | AB32: 0 | AC32: 0 | AD32: 0 | AF32: =O32 -> 31 | AG32: 10 | AH32: 600 | AK32: 0 | AL32: 0
A33: 173 | B33: Prop Assts. | E33: 31 | F33: 10 | H33: 500 | K33: 500 | L33: 0 | M33: 0 | O33: =E33 -> 31 | P33: 10 | R33: 500 | U33: 0 | V33: 0 | W33: 0 | X33: 0 | Y33: 0 | Z33: 0 | AA33: 0 | AB33: 0 | AC33: 0 | AD33: 0 | AF33: =O33 -> 31 | AG33: 10 | AH33: 500 | AK33: 0 | AL33: 0
A34: 174 | B34: Scenic | E34: 31 | F34: 10 | H34: 600 | K34: 600 | L34: 0 | M34: 0 | O34: =E34 -> 31 | P34: 10 | R34: 600 | U34: 0 | V34: 0 | W34: 0 | X34: 0 | Y34: 0 | Z34: 0 | AA34: 0 | AB34: 0 | AC34: 0 | AD34: 0 | AF34: =O34 -> 31 | AG34: 10 | AH34: 600 | AK34: 0 | AL34: 0
A35: 175 | B35: Set Dresser | E35: 31 | F35: 10 | H35: 450 | K35: 450 | L35: 0 | M35: 0 | O35: =E35 -> 31 | P35: 10 | R35: 450 | U35: 0 | V35: 0 | W35: 0 | X35: 0 | Y35: 0 | Z35: 0 | AA35: 0 | AB35: 0 | AC35: 0 | AD35: 0 | AF35: =O35 -> 31 | AG35: 10 | AH35: 450 | AK35: 0 | AL35: 0
A36: 176 | B36: Lead Man | E36: 31 | F36: 10 | H36: 600 | K36: 600 | L36: 0 | M36: 0 | O36: =E36 -> 31 | P36: 10 | R36: 600 | U36: 0 | V36: 0 | W36: 0 | X36: 0 | Y36: 0 | Z36: 0 | AA36: 0 | AB36: 0 | AC36: 0 | AD36: 0 | AF36: =O36 -> 31 | AG36: 10 | AH36: 600 | AK36: 0 | AL36: 0
A37: 177 | B37: Painter | E37: 31 | F37: 10 | H37: 450 | K37: 450 | L37: 0 | M37: 0 | O37: =E37 -> 31 | P37: 10 | R37: 450 | U37: 0 | V37: 0 | W37: 0 | X37: 0 | Y37: 0 | Z37: 0 | AA37: 0 | AB37: 0 | AC37: 0 | AD37: 0 | AF37: =O37 -> 31 | AG37: 10 | AH37: 450 | AK37: 0 | AL37: 0
A38: 178 | B38: Art PAs | E38: 31 | F38: 10 | H38: 225 | K38: 225 | L38: 0 | M38: 0 | O38: =E38 -> 31 | P38: 10 | R38: 225 | U38: 0 | V38: 0 | W38: 0 | X38: 0 | Y38: 0 | Z38: 0 | AA38: 0 | AB38: 0 | AC38: 0 | AD38: 0 | AF38: =O38 -> 31 | AG38: 10 | AH38: 225 | AK38: 0 | AL38: 0
A39: 179 | B39: Strike Crew | E39: 31 | F39: 10 | H39: 450 | K39: 450 | L39: 0 | M39: 0 | O39: =E39 -> 31 | P39: 10 | R39: 450 | U39: 0 | V39: 0 | W39: 0 | X39: 0 | Y39: 0 | Z39: 0 | AA39: 0 | AB39: 0 | AC39: 0 | AD39: 0 | AF39: =O39 -> 31 | AG39: 10 | AH39: 450 | AK39: 0 | AL39: 0
A40: 180 | B40: Illustrator | E40: 20 | F40: 10 | H40: 750 | K40: 750 | L40: 0 | M40: 0 | O40: =E40 -> 20 | P40: 10 | R40: 750 | U40: 0 | V40: 0 | W40: 0 | X40: 0 | Y40: 0 | Z40: 0 | AA40: 0 | AB40: 0 | AC40: 0 | AD40: 0 | AF40: =O40 -> 20 | AG40: 10 | AH40: 750 | AK40: 0 | AL40: 0
G41: =SUM(G28:G40) -> 0 | J41: Sub-total G | L41: =SUM(L27:L40) -> 0 | M41: =SUM(M28:M40) -> 0 | Q41: =SUM(Q28:Q40) -> 0 | T41: Sub-total Gw | U41: =SUM(U28:U40) -> 0 | V41: 0 | AC41: Sub-total G | AD41: =SUM(AD28:AD40) -> 0 | AJ41: Sub-total OT | AK41: =SUM(AK28:AK40) -> 0 | AL41: 0
I42: PT/P&W | L42: =PT_G -> 0 | S42: PT/P&W | U42: =PT_Gw -> 0 | AB42: PT/P&W | AD42: 0 | AJ42: PT/P&W | AK42: =PT_Got -> 0
I43: TOTAL G | L43: =SUM(L41:L42) -> 0 | S43: TOTAL Gw | U43: =SUM(U41:U42) -> 0 | AB43: TOTAL G | AD43: =SUM(AD41:AD42) -> 0 | AJ43: TOTAL OT | AK43: =SUM(AK41:AK42) -> 0
A46: H | B46: SET CONSTRUCTION MATERIALS | H46: Amount | I46: Rate | J46: x | K46: R/C | L46: ESTIMATED | R46: Amount | S46: Rate | T46: x | U46: WORKING | AD46: ACTUAL
A47: 181 | B47: Set Dressing Purchases | K47: =I47:I58*X_RATE -> 0 | L47: =ROUND(H47:H58*I47:I58*IF(J47:J58=0,1,J47:J58),0) -> 0 | R47: =H47 ->  | U47: =ROUND(R47:R58*S47:S58*IF(T47:T58=0,1,T47:T58),2) -> 0 | AD47: 0
A48: 182 | B48: Set Dressing Rentals | K48: 0 | L48: 0 | R48: =H48 ->  | U48: 0 | AD48: 0
A49: 183 | B49: Polaroid/Film/Developing | K49: 0 | L49: 0 | R49: =H49 ->  | U49: 0 | AD49: 0
A50: 184 | B50: Art Supplies | K50: 0 | L50: 0 | R50: =H50 ->  | U50: 0 | AD50: 0
A51: 185 | B51: Paint/Hardware | K51: 0 | L51: 0 | R51: =H51 ->  | U51: 0 | AD51: 0
A52: 186 | B52: Special effects | K52: 0 | L52: 0 | R52: =H52 ->  | U52: 0 | AD52: 0
A53: 187 | B53: Set Build | K53: 0 | L53: 0 | R53: =H53 ->  | U53: 0 | AD53: 0
A54: 188 | B54: Art Trucking | I54: 250 | K54: 250 | L54: 0 | R54: =H54 ->  | S54: 250 | U54: 0 | AD54: 0
A55: 189 | B55: Messengers/Deliveries | K55: 0 | L55: 0 | R55: =H55 ->  | U55: 0 | AD55: 0
A56: 190 | B56: Parking/Gasoline/Mileage | K56: 0 | L56: 0 | R56: =H56 ->  | U56: 0 | AD56: 0
A57: 191 | B57: Kit Rental | I57: 250 | K57: 250 | L57: 0 | R57: =H57 ->  | S57: 250 | U57: 0 | AD57: 0
A58: 192 | B58: Expendables | K58: 0 | L58: 0 | R58: =H58 ->  | U58: 0 | AD58: 0
I59: TOTAL H | L59: =SUM(L47:L58) -> 0 | S59: TOTAL Hw | U59: =SUM(U47:U58) -> 0 | AB59: TOTAL H | AD59: =SUM(AD47:AD58) -> 0

Sheet Page 4
A2: =IF('Top Sheet'!$C$5="","",'Top Sheet'!$C$5) ->  | O2: Page 4 | P2: Page 4
A3: =IF('Top Sheet'!$G$5="Agency:",IF('Top Sheet'!$L$15="","",'Top Sheet'!$L$15),IF('Top Sheet'!$L$12="","",'Top Sheet'!$L$12)) -> 
A4: =IF('Top Sheet'!$G$5="Agency:",IF('Top Sheet'!$L$16="","",'Top Sheet'!$L$16),IF('Top Sheet'!$L$13="","",'Top Sheet'!$L$13)) -> 
A5: I | B5: EQUIPMENT RENTAL | E5: Amount | F5: Rate | G5: x | H5: R/C | I5: ESTIMATED | L5: Amount | M5: Rate | N5: x | O5: WORKING | P5: ACTUAL
A6: 193 | B6: Camera Rental | F6: 5500 | G6: 1 | H6: =F6:F23*X_RATE -> 5500 | I6: =ROUND(E6:E23*F6:F23*IF(G6:G23=0,1,G6:G23),0) -> 0 | L6: =E6 ->  | M6: 5500 | N6: 1 | O6: =ROUND(L6:L23*M6:M23*IF(N6:N23=0,1,N6:N23),2) -> 0 | P6: 0
A7: 194 | B7: Sound Rental | F7: 850 | G7: 1 | H7: 850 | I7: 0 | L7: =E7 ->  | M7: 850 | N7: 1 | O7: 0 | P7: 0
A8: 195 | B8: Lighting Rental | F8: 7000 | G8: 1 | H8: 7000 | I8: 0 | L8: =E8 ->  | M8: 7000 | N8: 1 | O8: 0 | P8: 0
A9: 196 | B9: Grip Rental | F9: 3500 | G9: 1 | H9: 3500 | I9: 0 | L9: =E9 ->  | M9: 3500 | N9: 1 | O9: 0 | P9: 0
A10: 197 | B10: Generator Rental | F10: 950 | G10: 1 | H10: 950 | I10: 0 | L10: =E10 ->  | M10: 950 | N10: 1 | O10: 0 | P10: 0
A11: 198 | B11: Crane Rental | F11: 1500 | H11: 1500 | I11: 0 | L11: =E11 ->  | M11: 1500 | O11: 0 | P11: 0
A12: 199 | B12: VTR Rental | F12: 850 | G12: 1 | H12: 850 | I12: 0 | L12: =E12 ->  | M12: 850 | N12: 1 | O12: 0 | P12: 0
A13: 200 | B13: Walkie Talkie Rental | F13: 12 | G13: 1 | H13: 12 | I13: 0 | L13: =E13 ->  | M13: 12 | N13: 1 | O13: 0 | P13: 0
A14: 201 | B14: Dolly Rental | F14: 450 | G14: 1 | H14: 450 | I14: 0 | L14: =E14 ->  | M14: 450 | N14: 1 | O14: 0 | P14: 0
A15: 202 | B15: Camera Car Rental | H15: 0 | I15: 0 | L15: =E15 ->  | O15: 0 | P15: 0
A16: 203 | B16: Helicopter | H16: 0 | I16: 0 | L16: =E16 ->  | O16: 0 | P16: 0
A17: 204 | B17: Production Supplies | F17: 1000 | G17: 1 | H17: 1000 | I17: 0 | L17: =E17 ->  | M17: 1000 | N17: 1 | O17: 0 | P17: 0
A18: 205 | B18: Construction Cranes | H18: 0 | I18: 0 | L18: =E18 ->  | O18: 0 | P18: 0
A19: 206 | B19: Remote Head | H19: 0 | I19: 0 | L19: =E19 ->  | O19: 0 | P19: 0
A20: 207 | B20: Special Camera Equipment | H20: 0 | I20: 0 | L20: =E20 ->  | O20: 0 | P20: 0
A21: 208 | B21: Blue/Green Screen | H21: 0 | I21: 0 | L21: =E21 ->  | O21: 0 | P21: 0
A22: 209 | B22: Expendables | F22: 1000 | G22: 1 | H22: 1000 | I22: 0 | L22: =E22 ->  | M22: 1000 | N22: 1 | O22: 0 | P22: 0
A23: 210 | B23: Steadicam | F23: 1500 | H23: 1500 | I23: 0 | L23: =E23 ->  | M23: 1500 | O23: 0 | P23: 0
F24: TOTAL I | I24: =SUM(I6:I23) -> 0 | M24: TOTAL Iw | O24: =SUM(O6:O23) -> 0 | P24: 0
A27: J | B27: FILMSTOCK, DEVELOP & PRINT | E27: Amount | F27: Rate | G27: x | H27: R/C | I27: ESTIMATED | L27: Amount | M27: Rate | N27: x | O27: WORKING | P27: ACTUAL
A28: 211 | B28: Purchase Filmstock | F28: 0.72 | G28: ='Page 1B'!G7 ->  | H28: =F28:F33*X_RATE -> 0.72 | I28: =ROUND(E28:E33*F28:F33*IF(G28:G33=0,1,G28:G33),0) -> 0 | L28: =E28 ->  | M28: 0.72 | O28: =ROUND(L28:L33*M28:M33*IF(N28:N33=0,1,N28:N33),2) -> 0 | P28: 0
A29: 212 | B29: Develop Filmstock | F29: 0.21 | G29: =G28 ->  | H29: 0.21 | I29: 0 | L29: =E29 ->  | M29: 0.21 | O29: 0 | P29: 0
A30: 213 | B30: Hard Drives/Tapes | F30: 350 | H30: 350 | I30: 0 | L30: =E30 ->  | M30: 350 | O30: 0 | P30: 0
A31: 214 | B31: HD MOS Video Dailies | F31: 0.55 | H31: 0.55 | I31: 0 | L31: =E31 ->  | M31: 0.55 | O31: 0 | P31: 0
A32: 215 | B32: SD MOS Video Dallies | F32: 0.35 | G32: =G28 ->  | H32: 0.35 | I32: 0 | L32: =E32 ->  | M32: 0.35 | O32: 0 | P32: 0
A33: 216 | B33: Transcoding | F33: 0 | H33: 0 | I33: 0 | L33: =E33 ->  | M33: 0 | O33: 0 | P33: 0
F34: TOTAL J | I34: =SUM(I28:I33) -> 0 | M34: TOTAL Jw | O34: =SUM(O28:O33) -> 0 | P34: 0
A37: K | B37: MISCELLANEOUS COSTS | E37: Amount | F37: Rate | G37: x | H37: R/C | I37: ESTIMATED | L37: Amount | M37: Rate | N37: x | O37: WORKING | P37: ACTUAL
A38: 217 | B38: Petty Cash | F38: 0 | H38: =F38:F47*X_RATE -> 0 | I38: =ROUND(E38:E47*F38:F47*IF(G38:G47=0,1,G38:G47),0) -> 0 | L38: =E38 ->  | M38: 0 | O38: =ROUND(L38:L47*M38:M47*IF(N38:N47=0,1,N38:N47),2) -> 0 | P38: 0
A39: 218 | B39: Air Shipping and Carriers | F39: 1000 | H39: 1000 | I39: 0 | L39: =E39 ->  | M39: 1000 | O39: 0 | P39: 0
A40: 219 | B40: Phones and Cables | F40: 0 | H40: 0 | I40: 0 | L40: =E40 ->  | M40: 0 | O40: 0 | P40: 0
A41: 220 | B41: Cash Under $15 Each | F41: 0 | H41: 0 | I41: 0 | L41: =E41 ->  | M41: 0 | O41: 0 | P41: 0
A42: 221 | B42: Internal Billing Costs | H42: 0 | I42: 0 | L42: =E42 ->  | O42: 0 | P42: 0
A43: 222 | B43: Special Insurance | F43: 0 | H43: 0 | I43: 0 | L43: =E43 ->  | M43: 0 | O43: 0 | P43: 0
A44: 223 | B44: Foreign Work Comp | F44: 150 | H44: 150 | I44: 0 | L44: =E44 ->  | M44: 150 | O44: 0 | P44: 0
A45: 224 | B45: Negative/Dailies Shipping | F45: 0 | H45: 0 | I45: 0 | L45: =E45 ->  | M45: 0 | O45: 0 | P45: 0
A46: 225 | B46: Glam Squad Agents fees | F46: ='Page 1A'!L29+'Page 1A'!L30+'Page 1A'!L32+'Page 1B'!L29+'Page 1B'!L30+'Page 1B'!L32 -> 0 | G46: 1 | H46: 0 | I46: 0 | L46: =E46 ->  | M46: 0 | N46: 1 | O46: 0 | P46: 0
A47: 226 | F47: 0 | H47: 0 | I47: 0 | L47: =E47 ->  | M47: 0 | O47: 0 | P47: 0
F48: TOTAL K | I48: =SUM(I38:I47) -> 0 | M48: TOTAL Kw | O48: =SUM(O38:O47) -> 0 | P48: 0
D50: %
A51: L | B51: DIRECTOR/CREATIVE FEES | D51: PT/P&W | E51: Amount | F51: Rate | G51: x | H51: R/C | I51: ESTIMATED | J51: PT/P&W | L51: Amount | M51: Rate | N51: x | O51: WORKING | P51: ACTUAL
A52: 227 | B52: Director Prep | H52: =F52:F58*X_RATE -> 0 | I52: =ROUND(E52:E58*F52:F58*IF(G52:G58=0,1,G52:G58),0) -> 0 | J52: =ROUND(I52:I58*D52:D58/100,0) -> 0 | L52: =E52 ->  | O52: =ROUND(L52:L58*M52:M58*IF(N52:N58=0,1,N52:N58),2) -> 0 | P52: 0
A53: 228 | B53: Director Travel | H53: 0 | I53: 0 | J53: 0 | L53: =E53 ->  | O53: 0 | P53: 0
A54: 229 | B54: Director Shoot | F54: 21500 | G54: 1 | H54: 21500 | I54: 0 | J54: 0 | L54: =E54 ->  | M54: 21500 | N54: 1 | O54: 0 | P54: 0
A55: 230 | B55: Director Post | H55: 0 | I55: 0 | J55: 0 | L55: =E55 ->  | O55: 0 | P55: 0
A56: 231 | B56: Fringes | H56: 0 | I56: 0 | J56: 0 | L56: =E56 ->  | O56: 0 | P56: 0
A57: 232 | H57: 0 | I57: 0 | J57: 0 | L57: =E57 ->  | O57: 0 | P57: 0
A58: 233 | F58: 0 | H58: 0 | I58: 0 | J58: 0 | L58: =E58 ->  | M58: 0 | O58: 0 | P58: 0
G59: Sub-total L | I59: =SUM(I52:I58) -> 0 | J59: 0 | N59: Sub-total Lw | O59: =SUM(O52:O58) -> 0 | P59: 0
F60: PT/P&W | I60: =PT_L -> 0 | M60: PT/P&W | O60: =I60 -> 0 | P60: 0
F61: TOTAL L | I61: =SUM(I59:I60) -> 0 | M61: TOTAL Lw | O61: =SUM(O59:O60) -> 0 | P61: 0

Sheet Page 5
A2: =IF('Top Sheet'!$C$5="","",'Top Sheet'!$C$5) ->  | Y2: Page 5 | AH2: Page 5
A3: =IF('Top Sheet'!$G$5="Agency:",IF('Top Sheet'!$L$15="","",'Top Sheet'!$L$15),IF('Top Sheet'!$L$12="","",'Top Sheet'!$L$12)) -> 
A4: =IF('Top Sheet'!$G$5="Agency:",IF('Top Sheet'!$L$16="","",'Top Sheet'!$L$16),IF('Top Sheet'!$L$13="","",'Top Sheet'!$L$13)) ->  | AJ4: OVERTIME CALCULATOR
B5: Talent | E5: % | F5: OT | H5: Travel | I5: Shoot | K5: OT Hours | M5: Rate | Q5: % | R5: OT | T5: Travel | U5: Shoot | W5: OT Hours | AA5: Payroll Log Detail | AD5: Payroll Log Costs | AG5: Other | AJ5: % | AK5: OT | AM5: OT Hours | AO5: OVERTIME
A6: M | D6: Notes | E6: PT/P&W | F6: Based | G6: No. | H6: Days | I6: Days | J6: Rate | K6: 1.5 | L6: 2 | M6: Change | N6: ESTIMATED | O6: PT/P&W | Q6: PT/P&W | R6: Based | S6: No. | T6: Days | U6: Days | V6: Rate | W6: =K6 -> 1.5 | X6: 2 | Y6: WORKING | Z6: PT/P&W | AA6: Days | AB6: Rate | AC6: OT Hrs | AD6: Misc | AE6: ST | AF6: OT | AG6: Logs | AH6: ACTUAL | AJ6: PT/P&W | AK6: Based | AL6: Rate | AM6: 1.5 | AN6: 2 | AO6: TOTAL
A7: 234 | B7: O/C Principals | E7: 20 | F7: 8 | M7: =J7:J38*X_RATE -> 0 | N7: =ROUND(G7:G38*(((I7:I38+H7:H38)*J7:J38)+(J7:J38/F7:F38*$K$6*K7:K38)+(J7:J38/F7:F38*$L$6*L7:L38)),0) -> 0 | O7: =ROUND(N7:N38*E7:E38/100,0) -> 0 | Q7: =E7 -> 20 | R7: 8 | Y7: =ROUND(S7:S38*(((U7:U38+T7:T38)*V7:V38)+(V7:V38/R7:R38*$W$6*W7:W38)+(V7:V38/R7:R38*$X$6*X7:X38)),2) -> 0 | Z7: =ROUND(Y7:Y38*Q7:Q38/100,2) -> 0 | AA7: 0 | AB7: 0 | AC7: 0 | AD7: 0 | AE7: 0 | AF7: 0 | AG7: 0 | AH7: 0 | AJ7: =Q7 -> 20 | AK7: 8 | AL7: =V7 ->  | AO7: =IF(AK7:AK38=0,0,ROUND((AL7:AL38/AK7:AK38*$AM$6*AM7:AM38)+(AL7:AL38/AK7:AK38*$AN$6*AN7:AN38),2)) -> 0 | AP7: =ROUND(AO7:AO38*AJ7:AJ38/100,2) -> 0
A8: 235 | B8: O/C Principals | E8: 20 | F8: 8 | M8: 0 | N8: 0 | O8: 0 | Q8: =E8 -> 20 | R8: 8 | Y8: 0 | Z8: 0 | AA8: 0 | AB8: 0 | AC8: 0 | AD8: 0 | AE8: 0 | AF8: 0 | AG8: 0 | AH8: 0 | AJ8: =Q8 -> 20 | AK8: 8 | AO8: 0 | AP8: 0
A9: 236 | B9: O/C Principals | E9: 20 | F9: 8 | M9: 0 | N9: 0 | O9: 0 | Q9: =E9 -> 20 | R9: 8 | Y9: 0 | Z9: 0 | AA9: 0 | AB9: 0 | AC9: 0 | AD9: 0 | AE9: 0 | AF9: 0 | AG9: 0 | AH9: 0 | AJ9: =Q9 -> 20 | AK9: 8 | AO9: 0 | AP9: 0
A10: 237 | B10: O/C Principals | E10: 20 | F10: 8 | M10: 0 | N10: 0 | O10: 0 | Q10: =E10 -> 20 | R10: 8 | Y10: 0 | Z10: 0 | AA10: 0 | AB10: 0 | AC10: 0 | AD10: 0 | AE10: 0 | AF10: 0 | AG10: 0 | AH10: 0 | AJ10: =Q10 -> 20 | AK10: 8 | AO10: 0 | AP10: 0
A11: 238 | B11: O/C Principals | E11: 20 | F11: 8 | J11: 0 | M11: 0 | N11: 0 | O11: 0 | Q11: =E11 -> 20 | R11: 8 | V11: 0 | Y11: 0 | Z11: 0 | AA11: 0 | AB11: 0 | AC11: 0 | AD11: 0 | AE11: 0 | AF11: 0 | AG11: 0 | AH11: 0 | AJ11: =Q11 -> 20 | AK11: 8 | AL11: 0 | AO11: 0 | AP11: 0
A12: 239 | B12: O/C Principals | E12: 20 | F12: 8 | J12: 0 | M12: 0 | N12: 0 | O12: 0 | Q12: =E12 -> 20 | R12: 8 | V12: 0 | Y12: 0 | Z12: 0 | AA12: 0 | AB12: 0 | AC12: 0 | AD12: 0 | AE12: 0 | AF12: 0 | AG12: 0 | AH12: 0 | AJ12: =Q12 -> 20 | AK12: 8 | AL12: 0 | AO12: 0 | AP12: 0
A13: 240 | B13: O/C Principals | E13: 20 | F13: 8 | J13: 0 | M13: 0 | N13: 0 | O13: 0 | Q13: =E13 -> 20 | R13: 8 | V13: 0 | Y13: 0 | Z13: 0 | AA13: 0 | AB13: 0 | AC13: 0 | AD13: 0 | AE13: 0 | AF13: 0 | AG13: 0 | AH13: 0 | AJ13: =Q13 -> 20 | AK13: 8 | AL13: 0 | AO13: 0 | AP13: 0
A14: 241 | B14: O/C Principals | E14: 20 | F14: 8 | J14: 0 | M14: 0 | N14: 0 | O14: 0 | Q14: =E14 -> 20 | R14: 8 | V14: 0 | Y14: 0 | Z14: 0 | AA14: 0 | AB14: 0 | AC14: 0 | AD14: 0 | AE14: 0 | AF14: 0 | AG14: 0 | AH14: 0 | AJ14: =Q14 -> 20 | AK14: 8 | AL14: 0 | AO14: 0 | AP14: 0
A15: 242 | B15: O/C Principals | E15: 20 | F15: 8 | J15: 0 | M15: 0 | N15: 0 | O15: 0 | Q15: =E15 -> 20 | R15: 8 | V15: 0 | Y15: 0 | Z15: 0 | AA15: 0 | AB15: 0 | AC15: 0 | AD15: 0 | AE15: 0 | AF15: 0 | AG15: 0 | AH15: 0 | AJ15: =Q15 -> 20 | AK15: 8 | AL15: 0 | AO15: 0 | AP15: 0
A16: 243 | B16: O/C Principals | E16: 20 | F16: 8 | J16: 0 | M16: 0 | N16: 0 | O16: 0 | Q16: =E16 -> 20 | R16: 8 | V16: 0 | Y16: 0 | Z16: 0 | AA16: 0 | AB16: 0 | AC16: 0 | AD16: 0 | AE16: 0 | AF16: 0 | AG16: 0 | AH16: 0 | AJ16: =Q16 -> 20 | AK16: 8 | AL16: 0 | AO16: 0 | AP16: 0
A17: 244 | E17: 20 | F17: 8 | J17: 0 | M17: 0 | N17: 0 | O17: 0 | Q17: =E17 -> 20 | R17: 8 | V17: 0 | Y17: 0 | Z17: 0 | AA17: 0 | AB17: 0 | AC17: 0 | AD17: 0 | AE17: 0 | AF17: 0 | AG17: 0 | AH17: 0 | AJ17: =Q17 -> 20 | AK17: 8 | AL17: 0 | AO17: 0 | AP17: 0
A18: 245 | E18: 20 | F18: 8 | J18: 0 | M18: 0 | N18: 0 | O18: 0 | Q18: =E18 -> 20 | R18: 8 | V18: 0 | Y18: 0 | Z18: 0 | AA18: 0 | AB18: 0 | AC18: 0 | AD18: 0 | AE18: 0 | AF18: 0 | AG18: 0 | AH18: 0 | AJ18: =Q18 -> 20 | AK18: 8 | AL18: 0 | AO18: 0 | AP18: 0
A19: 246 | E19: 20 | F19: 8 | J19: 0 | M19: 0 | N19: 0 | O19: 0 | Q19: =E19 -> 20 | R19: 8 | V19: 0 | Y19: 0 | Z19: 0 | AA19: 0 | AB19: 0 | AC19: 0 | AD19: 0 | AE19: 0 | AF19: 0 | AG19: 0 | AH19: 0 | AJ19: =Q19 -> 20 | AK19: 8 | AL19: 0 | AO19: 0 | AP19: 0
A20: 247 | B20: General Extras | E20: 20 | F20: 8 | J20: 0 | M20: 0 | N20: 0 | O20: 0 | Q20: =E20 -> 20 | R20: 8 | V20: 0 | Y20: 0 | Z20: 0 | AA20: 0 | AB20: 0 | AC20: 0 | AD20: 0 | AE20: 0 | AF20: 0 | AG20: 0 | AH20: 0 | AJ20: =Q20 -> 20 | AK20: 8 | AL20: 0 | AO20: 0 | AP20: 0
A21: 248 | B21: General Extras | E21: 20 | F21: 8 | J21: 0 | M21: 0 | N21: 0 | O21: 0 | Q21: =E21 -> 20 | R21: 8 | V21: 0 | Y21: 0 | Z21: 0 | AA21: 0 | AB21: 0 | AC21: 0 | AD21: 0 | AE21: 0 | AF21: 0 | AG21: 0 | AH21: 0 | AJ21: =Q21 -> 20 | AK21: 8 | AL21: 0 | AO21: 0 | AP21: 0
A22: 249 | B22: General Extras | E22: 20 | F22: 8 | M22: 0 | N22: 0 | O22: 0 | Q22: =E22 -> 20 | R22: 8 | Y22: 0 | Z22: 0 | AA22: 0 | AB22: 0 | AC22: 0 | AD22: 0 | AE22: 0 | AF22: 0 | AG22: 0 | AH22: 0 | AJ22: =Q22 -> 20 | AK22: 8 | AO22: 0 | AP22: 0
A23: 250 | B23: General Extras | E23: 20 | F23: 8 | J23: 0 | M23: 0 | N23: 0 | O23: 0 | Q23: =E23 -> 20 | R23: 8 | V23: 0 | Y23: 0 | Z23: 0 | AA23: 0 | AB23: 0 | AC23: 0 | AD23: 0 | AE23: 0 | AF23: 0 | AG23: 0 | AH23: 0 | AJ23: =Q23 -> 20 | AK23: 8 | AL23: 0 | AO23: 0 | AP23: 0
A24: 251 | B24: General Extras | E24: 20 | F24: 8 | J24: 0 | M24: 0 | N24: 0 | O24: 0 | Q24: =E24 -> 20 | R24: 8 | V24: 0 | Y24: 0 | Z24: 0 | AA24: 0 | AB24: 0 | AC24: 0 | AD24: 0 | AE24: 0 | AF24: 0 | AG24: 0 | AH24: 0 | AJ24: =Q24 -> 20 | AK24: 8 | AL24: 0 | AO24: 0 | AP24: 0
A25: 252 | B25: General Extras | E25: 20 | F25: 8 | J25: 0 | M25: 0 | N25: 0 | O25: 0 | Q25: =E25 -> 20 | R25: 8 | V25: 0 | Y25: 0 | Z25: 0 | AA25: 0 | AB25: 0 | AC25: 0 | AD25: 0 | AE25: 0 | AF25: 0 | AG25: 0 | AH25: 0 | AJ25: =Q25 -> 20 | AK25: 8 | AL25: 0 | AO25: 0 | AP25: 0
A26: 253 | E26: 20 | F26: 8 | J26: 0 | M26: 0 | N26: 0 | O26: 0 | Q26: =E26 -> 20 | R26: 8 | V26: 0 | Y26: 0 | Z26: 0 | AA26: 0 | AB26: 0 | AC26: 0 | AD26: 0 | AE26: 0 | AF26: 0 | AG26: 0 | AH26: 0 | AJ26: =Q26 -> 20 | AK26: 8 | AL26: 0 | AO26: 0 | AP26: 0
A27: 254 | E27: 20 | F27: 8 | J27: 0 | M27: 0 | N27: 0 | O27: 0 | Q27: =E27 -> 20 | R27: 8 | V27: 0 | Y27: 0 | Z27: 0 | AA27: 0 | AB27: 0 | AC27: 0 | AD27: 0 | AE27: 0 | AF27: 0 | AG27: 0 | AH27: 0 | AJ27: =Q27 -> 20 | AK27: 8 | AL27: 0 | AO27: 0 | AP27: 0
A28: 255 | E28: 20 | F28: 8 | J28: 0 | M28: 0 | N28: 0 | O28: 0 | Q28: =E28 -> 20 | R28: 8 | V28: 0 | Y28: 0 | Z28: 0 | AA28: 0 | AB28: 0 | AC28: 0 | AD28: 0 | AE28: 0 | AF28: 0 | AG28: 0 | AH28: 0 | AJ28: =Q28 -> 20 | AK28: 8 | AL28: 0 | AO28: 0 | AP28: 0
A29: 256 | B29: Hand Models | E29: 20 | F29: 8 | J29: 0 | M29: 0 | N29: 0 | O29: 0 | Q29: =E29 -> 20 | R29: 8 | V29: 0 | Y29: 0 | Z29: 0 | AA29: 0 | AB29: 0 | AC29: 0 | AD29: 0 | AE29: 0 | AF29: 0 | AG29: 0 | AH29: 0 | AJ29: =Q29 -> 20 | AK29: 8 | AL29: 0 | AO29: 0 | AP29: 0
A30: 257 | E30: 20 | F30: 8 | J30: 0 | M30: 0 | N30: 0 | O30: 0 | Q30: =E30 -> 20 | R30: 8 | V30: 0 | Y30: 0 | Z30: 0 | AA30: 0 | AB30: 0 | AC30: 0 | AD30: 0 | AE30: 0 | AF30: 0 | AG30: 0 | AH30: 0 | AJ30: =Q30 -> 20 | AK30: 8 | AL30: 0 | AO30: 0 | AP30: 0
A31: 258 | E31: 20 | F31: 8 | J31: 0 | M31: 0 | N31: 0 | O31: 0 | Q31: =E31 -> 20 | R31: 8 | V31: 0 | Y31: 0 | Z31: 0 | AA31: 0 | AB31: 0 | AC31: 0 | AD31: 0 | AE31: 0 | AF31: 0 | AG31: 0 | AH31: 0 | AJ31: =Q31 -> 20 | AK31: 8 | AL31: 0 | AO31: 0 | AP31: 0
A32: 259 | B32: Voice Over | E32: 20 | F32: 8 | J32: 0 | M32: 0 | N32: 0 | O32: 0 | Q32: =E32 -> 20 | R32: 8 | V32: 0 | Y32: 0 | Z32: 0 | AA32: 0 | AB32: 0 | AC32: 0 | AD32: 0 | AE32: 0 | AF32: 0 | AG32: 0 | AH32: 0 | AJ32: =Q32 -> 20 | AK32: 8 | AL32: 0 | AO32: 0 | AP32: 0
A33: 260 | B33: Fitting Fees | E33: 20 | F33: 8 | J33: 0 | M33: 0 | N33: 0 | O33: 0 | Q33: =E33 -> 20 | R33: 8 | V33: 0 | Y33: 0 | Z33: 0 | AA33: 0 | AB33: 0 | AC33: 0 | AD33: 0 | AE33: 0 | AF33: 0 | AG33: 0 | AH33: 0 | AJ33: =Q33 -> 20 | AK33: 8 | AL33: 0 | AO33: 0 | AP33: 0
A34: 261 | B34: Fitting Fees | E34: 20 | F34: 8 | J34: 0 | M34: 0 | N34: 0 | O34: 0 | Q34: =E34 -> 20 | R34: 8 | V34: 0 | Y34: 0 | Z34: 0 | AA34: 0 | AB34: 0 | AC34: 0 | AD34: 0 | AE34: 0 | AF34: 0 | AG34: 0 | AH34: 0 | AJ34: =Q34 -> 20 | AK34: 8 | AL34: 0 | AO34: 0 | AP34: 0
A35: 262 | E35: 20 | F35: 8 | J35: 0 | M35: 0 | N35: 0 | O35: 0 | Q35: =E35 -> 20 | R35: 8 | V35: 0 | Y35: 0 | Z35: 0 | AA35: 0 | AB35: 0 | AC35: 0 | AD35: 0 | AE35: 0 | AF35: 0 | AG35: 0 | AH35: 0 | AJ35: =Q35 -> 20 | AK35: 8 | AL35: 0 | AO35: 0 | AP35: 0
A36: 263 | B36: Audition Fees | E36: 20 | F36: 8 | J36: 0 | M36: 0 | N36: 0 | O36: 0 | Q36: =E36 -> 20 | R36: 8 | V36: 0 | Y36: 0 | Z36: 0 | AA36: 0 | AB36: 0 | AC36: 0 | AD36: 0 | AE36: 0 | AF36: 0 | AG36: 0 | AH36: 0 | AJ36: =Q36 -> 20 | AK36: 8 | AL36: 0 | AO36: 0 | AP36: 0
A37: 264 | B37: Audition Fees | E37: 20 | F37: 8 | J37: 0 | M37: 0 | N37: 0 | O37: 0 | Q37: =E37 -> 20 | R37: 8 | V37: 0 | Y37: 0 | Z37: 0 | AA37: 0 | AB37: 0 | AC37: 0 | AD37: 0 | AE37: 0 | AF37: 0 | AG37: 0 | AH37: 0 | AJ37: =Q37 -> 20 | AK37: 8 | AL37: 0 | AO37: 0 | AP37: 0
A38: 265 | E38: 20 | F38: 8 | J38: 0 | M38: 0 | N38: 0 | O38: 0 | Q38: =E38 -> 20 | R38: 8 | V38: 0 | Y38: 0 | Z38: 0 | AA38: 0 | AB38: 0 | AC38: 0 | AD38: 0 | AE38: 0 | AF38: 0 | AG38: 0 | AH38: 0 | AJ38: =Q38 -> 20 | AK38: 8 | AL38: 0 | AO38: 0 | AP38: 0
G39: =SUM(G7:G38) -> 0 | H39: =SUM(H13:H38) -> 0 | I39: =SUM(I7:I38) -> 0 | L39: Sub-total M | N39: =SUM(N7:N38) -> 0 | O39: 0 | S39: =SUM(S7:S38) -> 0 | T39: 0 | U39: 0 | X39: Sub-total Mw | Y39: =SUM(Y7:Y38) -> 0 | Z39: 0 | AG39: Sub-total M | AH39: =SUM(AH7:AH38) -> 0 | AN39: Sub-total OT | AO39: =SUM(AO7:AO38) -> 0 | AP39: 0
M40: R/C | N40: =PT_M -> 0 | W40: PT/P&W | Y40: =PT_Mw -> 0 | AF40: PT/P&W | AH40: 0 | AN40: PT/P&W | AO40: =PT_Mot -> 0
A41: 266 | B41: Talent Agency Fees | J41: 0.2 | K41: =N39 -> 0 | M41: =K41:K44*X_RATE -> 0 | N41: =ROUND(J41:J44*K41:K44*IF(L41:L44=0,1,L41:L44),0) -> 0 | V41: =J41 -> 0.2 | W41: 0 | Y41: =ROUND(V41:V44*W41:W44*IF(X41:X44=0,1,X41:X44),2) -> 0 | AH41: 0 | AN41: TOTAL OT | AO41: =SUM(AO39:AO40) -> 0
A42: 267 | B42: Talent Payroll Service | K42: 0 | M42: 0 | N42: 0 | V42: =J42 ->  | W42: 0 | Y42: 0 | AH42: 0
A43: 268 | B43: Talent Wardrobe Allowance | M43: 0 | N43: 0 | V43: =J43 ->  | Y43: 0 | AH43: 0
A44: 269 | B44: Other | K44: 0 | M44: 0 | N44: 0 | V44: =J44 ->  | W44: 0 | Y44: 0 | AH44: 0
A45: 270 | B45: Mark Up | J45: 0.15 | K45: =SUM(N39:N44) -> 0 | N45: =J45*K45 -> 0 | V45: =IF(D_Talent=0,0,"Talent Labor Mark-up") -> 0 | Y45: =IF(D_Talent=0,0,'Top Sheet'!J38) -> 0 | AH45: =IF(OR(A_TOTAL_AtoK<>0,SUM('Page 5'!AH39:AH44)<>0,SUM(ACTUAL_N)<>0,A_TOTAL_O<>0,A_TOTAL_P<>0),E_TOTAL_TALENTMARKUP,0) -> 0
K46: TOTAL M | N46: =SUM(N39:N45) -> 0 | W46: TOTAL Mw | Y46: =SUM(Y39:Y45) -> 0 | AF46: TOTAL M | AH46: =SUM(AH39:AH45) -> 0
A49: N | B49: TALENT EXPENSES | J49: Amount | K49: Rate | L49: x | M49: R/C | N49: ESTIMATED | V49: Amount | W49: Rate | X49: x | Y49: WORKING | AH49: ACTUAL
A50: 271 | B50: Talent Air Fares | M50: =K50:K54*X_RATE -> 0 | N50: =ROUND(J50:J54*K50:K54*IF(L50:L54=0,1,L50:L54),0) -> 0 | V50: =J50 ->  | Y50: =ROUND(V50:V54*W50:W54*IF(X50:X54=0,1,X50:X54),2) -> 0 | AH50: 0
A51: 272 | B51: Talent Per Diem | K51: 0 | M51: 0 | N51: 0 | V51: =J51 ->  | W51: 0 | Y51: 0 | AH51: 0
A52: 273 | B52: Talent Ground Transportation | K52: 0 | M52: 0 | N52: 0 | V52: =J52 ->  | W52: 0 | Y52: 0 | AH52: 0
A53: 274 | B53: Other | K53: 0 | M53: 0 | N53: 0 | V53: =J53 ->  | W53: 0 | Y53: 0 | AH53: 0
A54: 275 | B54: Other | K54: 0 | M54: 0 | N54: 0 | V54: =J54 ->  | W54: 0 | Y54: 0 | AH54: 0
A55: 276 | B55: Mark Up | J55: 0.15 | K55: =N50+N51+N52+N53+N54 -> 0 | N55: =J55*K55 -> 0 | V55: =IF(D_TalentExpenses=0,0,"Talent Exp Mark-up") -> Talent Exp Mark-up | Y55: =IF(D_TalentExpenses=0,0,'Top Sheet'!J39) -> 0 | AH55: =IF(OR(A_TOTAL_AtoK<>0,SUM('Page 5'!AH39:AH44)<>0,SUM(ACTUAL_N)<>0,A_TOTAL_O<>0,A_TOTAL_P<>0),E_TOTAL_TALENTEXPENSESMARKUP,0) -> 0
K56: TOTAL N | N56: =SUM(N50:N55) -> 0 | W56: TOTAL Nw | Y56: =SUM(Y50:Y55) -> 0 | AF56: TOTAL N | AH56: =SUM(AH50:AH55) -> 0

Sheet Page 6
A2: =IF('Top Sheet'!$C$5="","",'Top Sheet'!$C$5) ->  | O2: Page 6 | P2: Page 6
A3: =IF('Top Sheet'!$G$5="Agency:",IF('Top Sheet'!$L$15="","",'Top Sheet'!$L$15),IF('Top Sheet'!$L$12="","",'Top Sheet'!$L$12)) -> 
A4: =IF('Top Sheet'!$G$5="Agency:",IF('Top Sheet'!$L$16="","",'Top Sheet'!$L$16),IF('Top Sheet'!$L$13="","",'Top Sheet'!$L$13)) ->  | D4: %
A5: O | B5: OFF-LINE | D5: PT/P&W | E5: Amount | F5: Rate | G5: x | H5: R/C | I5: ESTIMATED | J5: PT/P&W | L5: Amount | M5: Rate | N5: x | O5: WORKING | P5: ACTUAL
A6: 277 | B6: Post Supervisor | D6: 20 | F6: 650 | H6: =F6:F10*X_RATE -> 650 | I6: =ROUND(E6:E10*F6:F10*IF(G6:G10=0,1,G6:G10),0) -> 0 | J6: =ROUND(I6:I10*D6:D10/100,0) -> 0 | L6: =E6 ->  | M6: 650 | O6: =ROUND(L6:L10*M6:M10*IF(N6:N10=0,1,N6:N10),2) -> 0 | P6: 0
A7: 278 | B7: Off-line Editor | D7: 20 | F7: 2500 | H7: 2500 | I7: 0 | J7: 0 | L7: =E7 ->  | M7: 2500 | O7: 0 | P7: 0
A8: 279 | B8: Assistant Editor | D8: 20 | F8: 425 | H8: 425 | I8: 0 | J8: 0 | L8: =E8 ->  | M8: 425 | O8: 0 | P8: 0
A9: 280 | B9: Avid Rental | D9: 20 | F9: 1500 | H9: 1500 | I9: 0 | J9: 0 | L9: =E9 ->  | M9: 1500 | O9: 0 | P9: 0
A10: 281 | B10: Miscellaneous | D10: 20 | F10: 0 | H10: 0 | I10: 0 | J10: 0 | L10: =E10 ->  | M10: 0 | O10: 0 | P10: 0
G11: Sub-total O | I11: =SUM(I6:I10) -> 0 | J11: 0 | N11: Sub-total Ow | O11: =SUM(O6:O10) -> 0 | P11: 0
F12: P&W | I12: =PT_O -> 0 | M12: PT/P&W | O12: =I12 -> 0 | P12: 0
F13: TOTAL O | I13: =SUM(I11:I12) -> 0 | M13: TOTAL Ow | O13: =SUM(O11:O12) -> 0 | P13: 0
A15: P | B15: TRAVEL | E15: Amount | F15: Rate | G15: x | H15: R/C | I15: ESTIMATED | L15: Amount | M15: Rate | N15: x | O15: WORKING | P15: ACTUAL
A16: 282 | B16: Airport Transfers | C16: per person | F16: 120 | G16: 4 | H16: =F16:F63*X_RATE -> 120 | I16: =ROUND(E16:E63*F16:F63*IF(G16:G63=0,1,G16:G63),0) -> #REF! | L16: =E16 ->  | M16: 120 | N16: 4 | O16: =ROUND(L16:L63*M16:M63*IF(N16:N63=0,1,N16:N63),2) -> 0 | P16: 0
A17: 283 | B17: Local Production Office & Conference Room | F17: 0 | H17: 0 | L17: =E17 ->  | M17: 0 | O17: 0 | P17: 0
A18: 284 | F18: 0 | H18: 0 | L18: =E18 ->  | M18: 0 | O18: 0 | P18: 0
A19: 285 | B19: Director | F19: 0 | H19: 0 | L19: =E19 ->  | M19: 0 | O19: 0 | P19: 0
A20: 286 | B20: Airfare | H20: 0 | L20: =E20 ->  | O20: 0 | P20: 0
A21: 287 | B21: Hotel/Per Diem | H21: 0 | L21: =E21 ->  | O21: 0 | P21: 0
A22: 288 | B22: Producer | H22: 0 | L22: =E22 ->  | O22: 0 | P22: 0
A23: 289 | B23: Airfare | F23: 0 | H23: 0 | L23: =E23 ->  | M23: 0 | O23: 0 | P23: 0
A24: 290 | B24: Hotel/Per Diem | F24: 0 | H24: 0 | L24: =E24 ->  | M24: 0 | O24: 0 | P24: 0
A25: 291 | B25: Director of Photography | F25: 0 | H25: 0 | L25: =E25 ->  | M25: 0 | O25: 0 | P25: 0
A26: 292 | B26: Airfare | F26: 0 | H26: 0 | L26: =E26 ->  | M26: 0 | O26: 0 | P26: 0
A27: 293 | B27: Hotel/Per Diem | F27: 0 | H27: 0 | L27: =E27 ->  | M27: 0 | O27: 0 | P27: 0
A28: 294 | B28: Production Designer | F28: 0 | H28: 0 | L28: =E28 ->  | M28: 0 | O28: 0 | P28: 0
A29: 295 | B29: Airfare | F29: 0 | H29: 0 | L29: =E29 ->  | M29: 0 | O29: 0 | P29: 0
A30: 296 | B30: Hotel/Per Diem | F30: 0 | H30: 0 | L30: =E30 ->  | M30: 0 | O30: 0 | P30: 0
A31: 297 | B31: 1AD | F31: 0 | H31: 0 | L31: =E31 ->  | M31: 0 | O31: 0 | P31: 0
A32: 298 | B32: Airfare | F32: 0 | H32: 0 | L32: =E32 ->  | M32: 0 | O32: 0 | P32: 0
A33: 299 | B33: Hotel/Per Diem | F33: 0 | H33: 0 | L33: =E33 ->  | M33: 0 | O33: 0 | P33: 0
A34: 300 | B34: Stylist | F34: 0 | H34: 0 | L34: =E34 ->  | M34: 0 | O34: 0 | P34: 0
A35: 301 | B35: Airfare | F35: 0 | H35: 0 | L35: =C35 ->  | M35: =F35 -> 0 | O35: 0 | P35: 0
A36: 302 | B36: Hotel/Per Diem | F36: 0 | H36: 0 | L36: =E36 ->  | M36: 0 | O36: 0 | P36: 0
A37: 303 | B37: PM | F37: 0 | H37: 0 | L37: =E37 ->  | M37: 0 | O37: 0 | P37: 0
A38: 304 | B38: Airfare | F38: 0 | H38: 0 | L38: =E38 ->  | M38: 0 | O38: 0 | P38: 0
A39: 305 | B39: Hotel/Per Diem | H39: 0 | L39: =E39 ->  | O39: 0 | P39: 0
A40: 306 | B40: AC/Gaffer/Grip | F40: 0 | H40: 0 | L40: =E40 ->  | M40: 0 | O40: 0 | P40: 0
A41: 307 | B41: Airfare | F41: 0 | H41: 0 | L41: =E41 ->  | M41: 0 | O41: 0 | P41: 0
A42: 308 | B42: Hotel/Per Diem | F42: 0 | H42: 0 | L42: =E42 ->  | M42: 0 | O42: 0 | P42: 0
A43: 309 | B43: SFX Supervisor | H43: 0 | L43: =E43 ->  | O43: 0 | P43: 0
A44: 310 | B44: Airfare | F44: 0 | H44: 0 | L44: =E44 ->  | M44: 0 | O44: 0 | P44: 0
A45: 311 | B45: Hotel/Per Diem | F45: 0 | H45: 0 | L45: =E45 ->  | M45: 0 | O45: 0 | P45: 0
A46: 312 | B46: Postproduction Supervisor | F46: 0 | H46: 0 | L46: =E46 ->  | M46: 0 | O46: 0 | P46: 0
A47: 313 | B47: Airfare | H47: 0 | L47: =E47 ->  | O47: 0 | P47: 0
A48: 314 | B48: Hotel/Per Diem | F48: 0 | H48: 0 | L48: =E48 ->  | M48: 0 | O48: 0 | P48: 0
A49: 315 | H49: 0 | L49: =E49 ->  | O49: 0 | P49: 0
A50: 316 | H50: 0 | L50: =E50 ->  | O50: 0 | P50: 0
A51: 317 | H51: 0 | L51: =E51 ->  | O51: 0 | P51: 0
A52: 318 | H52: 0 | L52: =E52 ->  | O52: 0 | P52: 0
A53: 319 | H53: 0 | L53: =E53 ->  | O53: 0 | P53: 0
A54: 320 | H54: 0 | L54: =E54 ->  | O54: 0 | P54: 0
A55: 321 | H55: 0 | L55: =E55 ->  | O55: 0 | P55: 0
A56: 322 | H56: 0 | L56: =E56 ->  | O56: 0 | P56: 0
A57: 323 | H57: 0 | L57: =E57 ->  | O57: 0 | P57: 0
A58: 324 | H58: 0 | L58: =E58 ->  | O58: 0 | P58: 0
A59: 325 | H59: 0 | L59: =E59 ->  | O59: 0 | P59: 0
A60: 326 | H60: 0 | L60: =E60 ->  | O60: 0 | P60: 0
A61: 327 | H61: 0 | L61: =E61 ->  | O61: 0 | P61: 0
A62: 328 | H62: 0 | L62: =E62 ->  | O62: 0 | P62: 0
A63: 329 | B63: Travel Handling Fee (P) | E63: 0.15 | F63: =SUM(I16:I62) -> #REF! | L63: =E63 -> 0.15 | M63: #REF! | P63: 0
F64: TOTAL P | I64: =SUM(I16:I63) -> #REF! | M64: TOTAL Pw | O64: =SUM(O16:O63) -> #REF! | P64: 0

Sheet Sales Log
A2: SALES LOG
A3: =IF('Top Sheet'!$G$5="Agency:",IF('Top Sheet'!$L$15="","",'Top Sheet'!$L$15),IF('Top Sheet'!$L$12="","",'Top Sheet'!$L$12)) -> 
A4: =IF('Top Sheet'!$G$5="Agency:",IF('Top Sheet'!$L$16="","",'Top Sheet'!$L$16),IF('Top Sheet'!$L$13="","",'Top Sheet'!$L$13)) -> 
A5: =IF('Top Sheet'!$C$10="","","Job #: "&'Top Sheet'!$C$10) -> 
A7: Line | B7: Payer | C7: Notes | D7: Receive ID | E7: ACTUAL | F7: Description | G7: Row
F8: =IF(A8="","",IF(AND(A8>0,A8<330),VLOOKUP(A8,Totals!$B$1:$C$359,2),"LINE NUMBER?")) ->  | G8: 1
F9: =IF(A9="","",IF(AND(A9>0,A9<330),VLOOKUP(A9,Totals!$B$1:$C$359,2),"LINE NUMBER?")) ->  | G9: 2
F10: =IF(A10="","",IF(AND(A10>0,A10<330),VLOOKUP(A10,Totals!$B$1:$C$359,2),"LINE NUMBER?")) ->  | G10: 3
F11: =IF(A11="","",IF(AND(A11>0,A11<330),VLOOKUP(A11,Totals!$B$1:$C$359,2),"LINE NUMBER?")) ->  | G11: 4
F12: =IF(A12="","",IF(AND(A12>0,A12<330),VLOOKUP(A12,Totals!$B$1:$C$359,2),"LINE NUMBER?")) ->  | G12: 5
F13: =IF(A13="","",IF(AND(A13>0,A13<330),VLOOKUP(A13,Totals!$B$1:$C$359,2),"LINE NUMBER?")) ->  | G13: 6
F14: =IF(A14="","",IF(AND(A14>0,A14<330),VLOOKUP(A14,Totals!$B$1:$C$359,2),"LINE NUMBER?")) ->  | G14: 7
F15: =IF(A15="","",IF(AND(A15>0,A15<330),VLOOKUP(A15,Totals!$B$1:$C$359,2),"LINE NUMBER?")) ->  | G15: 8
F16: =IF(A16="","",IF(AND(A16>0,A16<330),VLOOKUP(A16,Totals!$B$1:$C$359,2),"LINE NUMBER?")) ->  | G16: 9
F17: =IF(A17="","",IF(AND(A17>0,A17<330),VLOOKUP(A17,Totals!$B$1:$C$359,2),"LINE NUMBER?")) ->  | G17: 10
D19: TOTAL SALES | E19: =SUM(E8:E17) -> 0

Sheet Purchase Order Log
A2: PURCHASE ORDER LOG
A3: =IF('Top Sheet'!$G$5="Agency:",IF('Top Sheet'!$L$15="","",'Top Sheet'!$L$15),IF('Top Sheet'!$L$12="","",'Top Sheet'!$L$12)) -> 
A4: =IF('Top Sheet'!$G$5="Agency:",IF('Top Sheet'!$L$16="","",'Top Sheet'!$L$16),IF('Top Sheet'!$L$13="","",'Top Sheet'!$L$13)) -> 
A5: =IF('Top Sheet'!$C$10="","","Job #: "&'Top Sheet'!$C$10) -> 
A7: Line | B7: Payee | C7: PO | D7: Date | E7: Pay ID | F7: ACTUAL | G7: Description | H7: Row
G8: =IF(A8="PC","PETTY CASH LOG",IF(A8="PR","PAYROLL LOG",IF(A8="","",IF(AND(A8>0,A8<330),VLOOKUP(A8,Totals!$B$1:$C$359,2),"LINE NUMBER?")))) ->  | H8: 1
G9: =IF(A9="PC","PETTY CASH LOG",IF(A9="PR","PAYROLL LOG",IF(A9="","",IF(AND(A9>0,A9<330),VLOOKUP(A9,Totals!$B$1:$C$359,2),"LINE NUMBER?")))) ->  | H9: 2
G10: =IF(A10="PC","PETTY CASH LOG",IF(A10="PR","PAYROLL LOG",IF(A10="","",IF(AND(A10>0,A10<330),VLOOKUP(A10,Totals!$B$1:$C$359,2),"LINE NUMBER?")))) ->  | H10: 3
G11: =IF(A11="PC","PETTY CASH LOG",IF(A11="PR","PAYROLL LOG",IF(A11="","",IF(AND(A11>0,A11<330),VLOOKUP(A11,Totals!$B$1:$C$359,2),"LINE NUMBER?")))) ->  | H11: 4
G12: =IF(A12="PC","PETTY CASH LOG",IF(A12="PR","PAYROLL LOG",IF(A12="","",IF(AND(A12>0,A12<330),VLOOKUP(A12,Totals!$B$1:$C$359,2),"LINE NUMBER?")))) ->  | H12: 5
G13: =IF(A13="PC","PETTY CASH LOG",IF(A13="PR","PAYROLL LOG",IF(A13="","",IF(AND(A13>0,A13<330),VLOOKUP(A13,Totals!$B$1:$C$359,2),"LINE NUMBER?")))) ->  | H13: 6
G14: =IF(A14="PC","PETTY CASH LOG",IF(A14="PR","PAYROLL LOG",IF(A14="","",IF(AND(A14>0,A14<330),VLOOKUP(A14,Totals!$B$1:$C$359,2),"LINE NUMBER?")))) ->  | H14: 7
G15: =IF(A15="PC","PETTY CASH LOG",IF(A15="PR","PAYROLL LOG",IF(A15="","",IF(AND(A15>0,A15<330),VLOOKUP(A15,Totals!$B$1:$C$359,2),"LINE NUMBER?")))) ->  | H15: 8
G16: =IF(A16="PC","PETTY CASH LOG",IF(A16="PR","PAYROLL LOG",IF(A16="","",IF(AND(A16>0,A16<330),VLOOKUP(A16,Totals!$B$1:$C$359,2),"LINE NUMBER?")))) ->  | H16: 9
G17: =IF(A17="PC","PETTY CASH LOG",IF(A17="PR","PAYROLL LOG",IF(A17="","",IF(AND(A17>0,A17<330),VLOOKUP(A17,Totals!$B$1:$C$359,2),"LINE NUMBER?")))) ->  | H17: 10
G18: =IF(A18="PC","PETTY CASH LOG",IF(A18="PR","PAYROLL LOG",IF(A18="","",IF(AND(A18>0,A18<330),VLOOKUP(A18,Totals!$B$1:$C$359,2),"LINE NUMBER?")))) ->  | H18: 11
G19: =IF(A19="PC","PETTY CASH LOG",IF(A19="PR","PAYROLL LOG",IF(A19="","",IF(AND(A19>0,A19<330),VLOOKUP(A19,Totals!$B$1:$C$359,2),"LINE NUMBER?")))) ->  | H19: 12
G20: =IF(A20="PC","PETTY CASH LOG",IF(A20="PR","PAYROLL LOG",IF(A20="","",IF(AND(A20>0,A20<330),VLOOKUP(A20,Totals!$B$1:$C$359,2),"LINE NUMBER?")))) ->  | H20: 13
G21: =IF(A21="PC","PETTY CASH LOG",IF(A21="PR","PAYROLL LOG",IF(A21="","",IF(AND(A21>0,A21<330),VLOOKUP(A21,Totals!$B$1:$C$359,2),"LINE NUMBER?")))) ->  | H21: 14
G22: =IF(A22="PC","PETTY CASH LOG",IF(A22="PR","PAYROLL LOG",IF(A22="","",IF(AND(A22>0,A22<330),VLOOKUP(A22,Totals!$B$1:$C$359,2),"LINE NUMBER?")))) ->  | H22: 15
G23: =IF(A23="PC","PETTY CASH LOG",IF(A23="PR","PAYROLL LOG",IF(A23="","",IF(AND(A23>0,A23<330),VLOOKUP(A23,Totals!$B$1:$C$359,2),"LINE NUMBER?")))) ->  | H23: 16
G24: =IF(A24="PC","PETTY CASH LOG",IF(A24="PR","PAYROLL LOG",IF(A24="","",IF(AND(A24>0,A24<330),VLOOKUP(A24,Totals!$B$1:$C$359,2),"LINE NUMBER?")))) ->  | H24: 17
G25: =IF(A25="PC","PETTY CASH LOG",IF(A25="PR","PAYROLL LOG",IF(A25="","",IF(AND(A25>0,A25<330),VLOOKUP(A25,Totals!$B$1:$C$359,2),"LINE NUMBER?")))) ->  | H25: 18
G26: =IF(A26="PC","PETTY CASH LOG",IF(A26="PR","PAYROLL LOG",IF(A26="","",IF(AND(A26>0,A26<330),VLOOKUP(A26,Totals!$B$1:$C$359,2),"LINE NUMBER?")))) ->  | H26: 19
G27: =IF(A27="PC","PETTY CASH LOG",IF(A27="PR","PAYROLL LOG",IF(A27="","",IF(AND(A27>0,A27<330),VLOOKUP(A27,Totals!$B$1:$C$359,2),"LINE NUMBER?")))) ->  | H27: 20
G28: =IF(A28="PC","PETTY CASH LOG",IF(A28="PR","PAYROLL LOG",IF(A28="","",IF(AND(A28>0,A28<330),VLOOKUP(A28,Totals!$B$1:$C$359,2),"LINE NUMBER?")))) ->  | H28: 21
E30: TOTAL PURCHASE ORDERS | F30: =SUM(F8:F28) -> 0

Sheet Petty Cash Log
A2: PETTY CASH LOG
A3: =IF('Top Sheet'!$G$5="Agency:",IF('Top Sheet'!$L$15="","",'Top Sheet'!$L$15),IF('Top Sheet'!$L$12="","",'Top Sheet'!$L$12)) -> 
A4: =IF('Top Sheet'!$G$5="Agency:",IF('Top Sheet'!$L$16="","",'Top Sheet'!$L$16),IF('Top Sheet'!$L$13="","",'Top Sheet'!$L$13)) -> 
A5: =IF('Top Sheet'!$C$10="","","Job #: "&'Top Sheet'!$C$10) -> 
B6: PC Envelopes
A7: Line | B7: name? | C7: name? | D7: name? | E7: name? | F7: name? | G7: name? | H7: ACTUAL | I7: Description | J7: Row
H8: =SUM(B8:G8) -> 0 | I8: =IF(A8=0,"",IF(AND(A8>0,A8<330),VLOOKUP(A8,Totals!$B$1:$C$359,2),"LINE NUMBER?")) ->  | J8: 1
H9: 0 | I9: =IF(A9=0,"",IF(AND(A9>0,A9<330),VLOOKUP(A9,Totals!$B$1:$C$359,2),"LINE NUMBER?")) ->  | J9: 2
H10: 0 | I10: =IF(A10=0,"",IF(AND(A10>0,A10<330),VLOOKUP(A10,Totals!$B$1:$C$359,2),"LINE NUMBER?")) ->  | J10: 3
H11: 0 | I11: =IF(A11=0,"",IF(AND(A11>0,A11<330),VLOOKUP(A11,Totals!$B$1:$C$359,2),"LINE NUMBER?")) ->  | J11: 4
H12: 0 | I12: =IF(A12=0,"",IF(AND(A12>0,A12<330),VLOOKUP(A12,Totals!$B$1:$C$359,2),"LINE NUMBER?")) ->  | J12: 5
H13: 0 | I13: =IF(A13=0,"",IF(AND(A13>0,A13<330),VLOOKUP(A13,Totals!$B$1:$C$359,2),"LINE NUMBER?")) ->  | J13: 6
H14: 0 | I14: =IF(A14=0,"",IF(AND(A14>0,A14<330),VLOOKUP(A14,Totals!$B$1:$C$359,2),"LINE NUMBER?")) ->  | J14: 7
H15: 0 | I15: =IF(A15=0,"",IF(AND(A15>0,A15<330),VLOOKUP(A15,Totals!$B$1:$C$359,2),"LINE NUMBER?")) ->  | J15: 8
H16: 0 | I16: =IF(A16=0,"",IF(AND(A16>0,A16<330),VLOOKUP(A16,Totals!$B$1:$C$359,2),"LINE NUMBER?")) ->  | J16: 9
H17: 0 | I17: =IF(A17=0,"",IF(AND(A17>0,A17<330),VLOOKUP(A17,Totals!$B$1:$C$359,2),"LINE NUMBER?")) ->  | J17: 10
B18: 1 | C18: 2 | D18: 3 | E18: 4 | F18: 5 | G18: 6
B19: =SUM(B8:B17) -> 0 | C19: 0 | D19: 0 | E19: 0 | F19: 0 | G19: 0 | H19: 0 | I19: TOTAL PC RECEIPTS
H21: =SUM(B21:G21) -> 0 | I21: Cash Received
B22: =B19-B21 -> 0 | C22: 0 | D22: 0 | E22: 0 | F22: 0 | G22: 0 | H22: 0 | I22: Due Personnel / (Due Co)
H24: =Totals!K358 -> 0 | I24: Total PC from POs
H25: =ROUND(H21-H24,2) -> 0 | I25: =IF(H25=0,"PC Reconciled","PC Not Reconciled") -> PC Reconciled

Sheet Payroll Log
A2: PAYROLL LOG
A3: =IF('Top Sheet'!$G$5="Agency:",IF('Top Sheet'!$L$15="","",'Top Sheet'!$L$15),IF('Top Sheet'!$L$12="","",'Top Sheet'!$L$12)) -> 
A4: =IF('Top Sheet'!$G$5="Agency:",IF('Top Sheet'!$L$16="","",'Top Sheet'!$L$16),IF('Top Sheet'!$L$13="","",'Top Sheet'!$L$13)) -> 
A5: =IF('Top Sheet'!$C$10="","","Job #: "&'Top Sheet'!$C$10) -> 
D6: % | E6: OT | H6: OT Hours | K6: Misc | L6: Misc
A7: Line | B7: Payee | C7: PO | D7: PT/P&W | E7: Based | F7: Days | G7: Rate | H7: 1.5 | I7: 2 | J7: 3 | K7: Taxable | L7: Non-taxable | M7: Total ST | N7: OT hrs | O7: Total OT | P7: ACTUAL | Q7: Description | R7: PT/P&W | S7: Row
M8: =F8*G8 -> 0 | N8: =H8+I8+J8 -> 0 | O8: =ROUND(IF(E8>0,(G8/E8*$H$7*H8)+(G8/E8*$I$7*I8)+(G8/E8*$J$7*J8),0),2) -> 0 | P8: =K8+L8+M8+O8 -> 0 | Q8: =IF(A8="","",IF(AND(A8>0,A8<330),VLOOKUP(A8,Totals!$B$1:$C$359,2),"LINE NUMBER?")) ->  | R8: =ROUND((K8+M8+O8)*D8/100,2) -> 0 | S8: 1
M9: 0 | N9: 0 | O9: 0 | P9: 0 | Q9: =IF(A9="","",IF(AND(A9>0,A9<330),VLOOKUP(A9,Totals!$B$1:$C$359,2),"LINE NUMBER?")) ->  | R9: 0 | S9: 2
M10: 0 | N10: 0 | O10: 0 | P10: 0 | Q10: =IF(A10="","",IF(AND(A10>0,A10<330),VLOOKUP(A10,Totals!$B$1:$C$359,2),"LINE NUMBER?")) ->  | R10: 0 | S10: 3
M11: 0 | N11: 0 | O11: 0 | P11: 0 | Q11: =IF(A11="","",IF(AND(A11>0,A11<330),VLOOKUP(A11,Totals!$B$1:$C$359,2),"LINE NUMBER?")) ->  | R11: 0 | S11: 4
M12: 0 | N12: 0 | O12: 0 | P12: 0 | Q12: =IF(A12="","",IF(AND(A12>0,A12<330),VLOOKUP(A12,Totals!$B$1:$C$359,2),"LINE NUMBER?")) ->  | R12: 0 | S12: 5
M13: 0 | N13: 0 | O13: 0 | P13: 0 | Q13: =IF(A13="","",IF(AND(A13>0,A13<330),VLOOKUP(A13,Totals!$B$1:$C$359,2),"LINE NUMBER?")) ->  | R13: 0 | S13: 6
M14: 0 | N14: 0 | O14: 0 | P14: 0 | Q14: =IF(A14="","",IF(AND(A14>0,A14<330),VLOOKUP(A14,Totals!$B$1:$C$359,2),"LINE NUMBER?")) ->  | R14: 0 | S14: 7
M15: 0 | N15: 0 | O15: 0 | P15: 0 | Q15: =IF(A15="","",IF(AND(A15>0,A15<330),VLOOKUP(A15,Totals!$B$1:$C$359,2),"LINE NUMBER?")) ->  | R15: 0 | S15: 8
M16: 0 | N16: 0 | O16: 0 | P16: 0 | Q16: =IF(A16="","",IF(AND(A16>0,A16<330),VLOOKUP(A16,Totals!$B$1:$C$359,2),"LINE NUMBER?")) ->  | R16: 0 | S16: 9
M17: 0 | N17: 0 | O17: 0 | P17: 0 | Q17: =IF(A17="","",IF(AND(A17>0,A17<330),VLOOKUP(A17,Totals!$B$1:$C$359,2),"LINE NUMBER?")) ->  | R17: 0 | S17: 10
M18: 0 | N18: 0 | O18: 0 | P18: 0 | Q18: =IF(A18="","",IF(AND(A18>0,A18<330),VLOOKUP(A18,Totals!$B$1:$C$359,2),"LINE NUMBER?")) ->  | R18: 0 | S18: 11
M19: 0 | N19: 0 | O19: 0 | P19: 0 | Q19: =IF(A19="","",IF(AND(A19>0,A19<330),VLOOKUP(A19,Totals!$B$1:$C$359,2),"LINE NUMBER?")) ->  | R19: 0 | S19: 12
M20: 0 | N20: 0 | O20: 0 | P20: 0 | Q20: =IF(A20="","",IF(AND(A20>0,A20<330),VLOOKUP(A20,Totals!$B$1:$C$359,2),"LINE NUMBER?")) ->  | R20: 0 | S20: 13
M21: 0 | N21: 0 | O21: 0 | P21: 0 | Q21: =IF(A21="","",IF(AND(A21>0,A21<330),VLOOKUP(A21,Totals!$B$1:$C$359,2),"LINE NUMBER?")) ->  | R21: 0 | S21: 14
M22: 0 | N22: 0 | O22: 0 | P22: 0 | Q22: =IF(A22="","",IF(AND(A22>0,A22<330),VLOOKUP(A22,Totals!$B$1:$C$359,2),"LINE NUMBER?")) ->  | R22: 0 | S22: 15
M23: 0 | N23: 0 | O23: 0 | P23: 0 | Q23: =IF(A23="","",IF(AND(A23>0,A23<330),VLOOKUP(A23,Totals!$B$1:$C$359,2),"LINE NUMBER?")) ->  | R23: 0 | S23: 16
M24: 0 | N24: 0 | O24: 0 | P24: 0 | Q24: =IF(A24="","",IF(AND(A24>0,A24<330),VLOOKUP(A24,Totals!$B$1:$C$359,2),"LINE NUMBER?")) ->  | R24: 0 | S24: 17
M25: 0 | N25: 0 | O25: 0 | P25: 0 | Q25: =IF(A25="","",IF(AND(A25>0,A25<330),VLOOKUP(A25,Totals!$B$1:$C$359,2),"LINE NUMBER?")) ->  | R25: 0 | S25: 18
M26: 0 | N26: 0 | O26: 0 | P26: 0 | Q26: =IF(A26="","",IF(AND(A26>0,A26<330),VLOOKUP(A26,Totals!$B$1:$C$359,2),"LINE NUMBER?")) ->  | R26: 0 | S26: 19
M27: 0 | N27: 0 | O27: 0 | P27: 0 | Q27: =IF(A27="","",IF(AND(A27>0,A27<330),VLOOKUP(A27,Totals!$B$1:$C$359,2),"LINE NUMBER?")) ->  | R27: 0 | S27: 20
J29: TOTAL PAYROLL | K29: =SUM(K8:K27) -> 0 | L29: 0 | M29: 0 | O29: =SUM(O8:O27) -> 0 | P29: 0 | Q29: TOTAL PT/P&W | R29: =SUM(R8:R27) -> 0
C31: PO | G31: Total for PO | O31: Total Payroll | P31: =P29+R29 -> 0
G32: =DSUM(PAYROLLLOG2,"ACTUAL",C31:C32)+DSUM(PAYROLLLOG2,"PT/P&W",C31:C32) -> 0 | O32: Total Payroll from POs | P32: =Totals!K359 -> 0
O33: =IF(P33=0,"Payroll Reconciled","Payroll not Reconciled") -> Payroll Reconciled | P33: =ROUND(P31-P32,2) -> 0

Sheet Check Log
A2: CHECK LOG
A3: =IF('Top Sheet'!$G$5="Agency:",IF('Top Sheet'!$L$15="","",'Top Sheet'!$L$15),IF('Top Sheet'!$L$12="","",'Top Sheet'!$L$12)) -> 
A4: =IF('Top Sheet'!$G$5="Agency:",IF('Top Sheet'!$L$16="","",'Top Sheet'!$L$16),IF('Top Sheet'!$L$13="","",'Top Sheet'!$L$13)) -> 
A5: =IF('Top Sheet'!$C$10="","","Job #: "&'Top Sheet'!$C$10) -> 
A7: Line | B7: Payee | C7: Check ID | D7: Date | E7: PO | F7: ACTUAL | G7: Description | H7: Row
G8: =IF(A8="","",IF(AND(A8>0,A8<330),VLOOKUP(A8,Totals!$B$1:$C$359,2),"LINE NUMBER?")) ->  | H8: 1
G9: =IF(A9="","",IF(AND(A9>0,A9<330),VLOOKUP(A9,Totals!$B$1:$C$359,2),"LINE NUMBER?")) ->  | H9: 2
G10: =IF(A10="","",IF(AND(A10>0,A10<330),VLOOKUP(A10,Totals!$B$1:$C$359,2),"LINE NUMBER?")) ->  | H10: 3
G11: =IF(A11="","",IF(AND(A11>0,A11<330),VLOOKUP(A11,Totals!$B$1:$C$359,2),"LINE NUMBER?")) ->  | H11: 4
G12: =IF(A12="","",IF(AND(A12>0,A12<330),VLOOKUP(A12,Totals!$B$1:$C$359,2),"LINE NUMBER?")) ->  | H12: 5
A13: NOTE: | B13: The figures in this Check Log are
B14: not linked to the Actual Budget. | E14: TOTAL CHECKS | F14: =SUM(F8:F12) -> 0
